{"text_format":"3","workbook":"xlsx","n_sheets":3,"sheets":["CLAUSE!!!","Bills Of Quantities","Final Summary"],"not_rendered":{"defined_names":8},"read":"whole","date_system":"1900"}

{"sheet":"CLAUSE!!!","index":0,"n_rows":1,"n_cols":1,"rows_kept":1,"merged":[[0,0,5,10]]}
["NOTE TO ALL TENDERERS: \nThe tenderer shall compile his tender in accordance with the original Bills of Quantities in PDf format including any addendums issued. The excel soft copy issued must be checked for correctness and completeness by the tenderer and the Employer accepts no liability for any errors or ommissions, or misuse, of the Excel file. "]

{"sheet":"Bills Of Quantities","index":1,"n_rows":2946,"n_cols":35,"rows_kept":2946}
["Page","Item","Description","Uom","Quantity","Rate","Amount","Total","x","Formatted Qty","x","Abstract RecID","x","Lcode","x","x","x","x","x","x","x","x","x","x","x","x","Package","Section","Bill","Trade","Type","ABUm","PayRef"]
[]
[null,null,"SECTION NO. 1 : PRELIMINARIES",{"$nulls":23},1,0,1,-2,"H"]
[{"$nulls":34},"NOTE:  the column headings a - z must be present for the importer."]
[{"$nulls":34},"These contain an X which is set forecolor = white"]
[null,null,"BILL NO.1 : PRELIMINARIES",{"$nulls":23},1,0,1,-2,"H"]
[]
["1-2",null,"BUILDING AGREEMENT AND PRELIMINARIES",{"$nulls":8},5795,null,0,{"$nulls":12},1,0,1,-2,"H","0"]
[]
["1-2",null,"SECTION A:  PRINCIPAL BUILDING AGREEMENT",{"$nulls":8},5796,null,9,{"$nulls":12},1,0,1,-2,"H","0"]
[]
["1-2",null,"NOTES",{"$nulls":8},5797,null,1,{"$nulls":12},1,0,1,-2,"H","0"]
[]
["1-2",null,"1. The Principal Building Agreement shall be the JBCC Series Edition 4.1, March 2005 as recommended by the Joint Building Contract Committee and as amended by this Tender Enquiry.",{"$nulls":8},5798,null,3,{"$nulls":12},1,0,1,-2,"C","0"]
[]
["1-2",null,"2. The Preliminaries shall be JBCC Series, May 2005 for use with the Principal Building Agreement as recommended by the Joint Building Contracts Committee and as amended by this Tender Enquiry shall be deemed to be incorporated herein.",{"$nulls":8},5799,null,4,{"$nulls":12},1,0,1,-2,"C","0"]
[]
["1-2",null,"3. Tenderers are referred to the abovementioned documents for the full intent and meaning of each clause thereof. These clauses are hereinafter referred to by clause number and heading only.",{"$nulls":8},5800,null,5,{"$nulls":12},1,0,1,-2,"C","0"]
[]
["1-2",null,"4. Where standard clauses or alternatives are not entirely applicable to this contract, such modifications, corrections or additions as are necessary, are given as far as possible under each relevant clause heading. Additional Preliminary clauses are contained in Section C hereof.",{"$nulls":8},5801,null,6,{"$nulls":12},1,0,1,-2,"C","0"]
[]
["1-2",null,"5. No claim whatsoever shall be entertained in respect of errors or omissions in pricing due to brevity of descriptions of items which are fully described when read in conjunction with the relevant clauses of the said Principal Building Agreement, Preliminaries and Preambles.",{"$nulls":8},5802,null,-1,{"$nulls":12},1,0,1,-2,"C","0"]
[]
["1-2",null,"6. The Tenderers shall allow opposite each of the clauses whatever costs and charges he may consider necessary for the carrying out, complying with and due observance of the provisions, conditions and requirements set out herein. Only priced items will be considered in respect of any adjustment of this Section. Any items left unpriced will be understood to be provided free of charge and no claim for any extras arising out of the Tenderer's omission to price any item will be entertained.",{"$nulls":8},5803,null,-2,{"$nulls":12},1,0,1,-2,"C","0"]
[]
["1-2",null,"7. Where modifications or amendments as described are made, such modifications and/or amendments shall supercede any conflicting provisions in the relevant clauses of the Standard Preliminaries or the Principal Building Agreement and the Tenderer shall make due allowance for whatever costs and charges he may consider necessary for the carrying out and observance of the provisions of the clauses as modified and/or amended.",{"$nulls":8},5804,null,-3,{"$nulls":12},1,0,1,-2,"C","0"]
[]
["1-2",null,"8. Where any item is not relevant to this specific contract, such item is marked N/A.",{"$nulls":8},5805,null,7,{"$nulls":12},1,0,1,-2,"C","0"]
[]
["1-2",null,"9. If Alternative A as set out in clause B10.3 hereinafter is to be used for the adjustment of the preliminaries, each item priced is to be allocated to one or more of the three categories by insertion of \"F\",\"V\",\"T\" as the case may be against the price in the \"rate\" column immediately preceding the \"amount\" column, where \"F\" denotes a fixed amount (amount not to be varied), \"V\" denotes an amount variable in proportion to value, and \"T\" denotes an amount proportionate to time.",{"$nulls":8},5806,null,8,{"$nulls":12},1,0,1,-2,"C","0"]
[]
["1-3",null,"DEFINITIONS",{"$nulls":8},5807,null,11,{"$nulls":12},1,0,1,-2,"S","0"]
[]
["1-3","1","Definitions and interpretation (Clause 1).","Item",{"v":1,"d":"1.00"},null,{"$f":"J34*F34","v":0},null,null,1,null,5808,null,12,{"$nulls":12},1,0,1,-2,"I","I"]
[]
["1-3",null,"OBJECTIVE AND PREPARATION",{"$nulls":8},5809,null,13,{"$nulls":12},1,0,1,-2,"S","0"]
[]
["1-3","2","Offer, acceptance and performance (Clause 2).","Item",{"v":1,"d":"1.00"},null,{"$f":"J38*F38","v":0},null,null,1,null,5810,null,14,{"$nulls":12},1,0,1,-2,"I","I"]
[]
["1-3","3","Documents (Clause 3).",{"$nulls":8},5811,null,16,{"$nulls":12},1,0,1,-2,"I","I"]
[]
[null,null,"Clause 3.1 is deleted and substituted with:  'This tender is for a Government Contract. No Payment Guarantee will be provided.'","Item",{"v":1,"d":"1.00"},null,{"$f":"J42*F42","v":0},null,null,1,null,5811,null,16,{"$nulls":12},1,0,1,-2,"I","I"]
[]
["1-3","4","Design responsibility (Clause 4).",{"$nulls":8},5812,null,17,{"$nulls":12},1,0,1,-2,"I","I"]
[]
[null,null,"Clause 4.1 is amended by adding the following:",{"$nulls":8},5812,null,17,{"$nulls":12},1,0,1,-2,"I","I"]
[]
[null,null,"The Contractor shall indemnify and hold free the Employer and his agents from responsibility for any claim or proceeding whatsoever due to fault in the design, detailing, calculation etc., to the extent undertaken by the Contractor.'",{"$nulls":8},5812,null,17,{"$nulls":12},1,0,1,-2,"I","I"]
[]
[null,null,"Clause 4.2 is amended by adding the adding the following:",{"$nulls":8},5812,null,17,{"$nulls":12},1,0,1,-2,"I","I"]
[]
[null,null,"The Sub-contractors shall indemnify and hold free the Employer or his agents and the Contractor from responsibility for any claim or proceeding whatsoever due to fault in the design, detailing, calculations, etc., to the extent undertaken by the Sub-contractor/s.'","Item",{"v":1,"d":"1.00"},null,{"$f":"J52*F52","v":0},null,null,1,null,5812,null,17,{"$nulls":12},1,0,1,-2,"I","I"]
[]
["1-3","5","Employer's agents (Clause 5).","Item",{"v":1,"d":"1.00"},null,{"$f":"J54*F54","v":0},null,null,1,null,5813,null,18,{"$nulls":12},1,0,1,-2,"I","I"]
[]
["1-3","6","Site representative (Clause 6).","Item",{"v":1,"d":"1.00"},null,{"$f":"J56*F56","v":0},null,null,1,null,5814,null,19,{"$nulls":12},1,0,1,-2,"I","I"]
[]
["1-3","7","Compliance with regulations (Clause 7).",{"$nulls":8},5815,null,20,{"$nulls":12},1,0,1,-2,"I","I"]
[]
[null,null,"Without limiting the generality of the provisions of clause 7.0 of the agreement, the contractor’s attention is drawn to the provisions of the Construction Regulations, 2003 issued in terms of the Occupational Health and Safety Act, 1993 in which it is specifically stated that the employer shall prepare a documented health and safety specification for the works and that the employer shall ensure that the contractor has made provision for the cost of health and safety measures during the execution of the works. The principal agent shall, on behalf of the employer, issue such health and safety specification and the contractor shall price opposite this item for compliance with the act and the regulations and the provisions of the aforementioned health and safety specification, provided such provisions are reasonable in terms of the act and the regulations.","Item",{"v":1,"d":"1.00"},null,{"$f":"J60*F60","v":0},null,null,1,null,5815,null,20,{"$nulls":12},1,0,1,-2,"I","I"]
[]
["1-3","8","Works risk (Clause 8)","Item",{"v":1,"d":"1.00"},null,{"$f":"J62*F62","v":0},null,null,1,null,5816,null,21,{"$nulls":12},1,0,1,-2,"I","I"]
[]
["1-3","9","Indemnities (Clause 9).",{"$nulls":8},5817,null,22,{"$nulls":12},1,0,1,-2,"I","I"]
[]
[null,null,"Clause 9.1.1 is deleted and substituted with:  'Claims from other parties consequent upon death of bodily injury or illness of any person or physical loss or damage to any property, other than the works, arising out or due to the execution of the works or occupation of the site by the contractor or his sub contractors'.","Item",{"v":1,"d":"1.00"},null,{"$f":"J66*F66","v":0},null,null,1,null,5817,null,22,{"$nulls":12},1,0,1,-2,"I","I"]
[]
["1-3","10","Works insurances (Clause 10).","Item",{"v":1,"d":"1.00"},null,{"$f":"J68*F68","v":0},null,null,1,null,5818,null,23,{"$nulls":12},1,0,1,-2,"I","I"]
[]
["1-4","11","Liability insurances (Clause 11).","Item",{"v":1,"d":"1.00"},null,{"$f":"J70*F70","v":0},null,null,1,null,5819,null,24,{"$nulls":12},1,0,1,-2,"I","I"]
[]
["1-4","12","Effecting insurances (Clause 12).","Item",{"v":1,"d":"1.00"},null,{"$f":"J72*F72","v":0},null,null,1,null,5820,null,25,{"$nulls":12},1,0,1,-2,"I","I"]
[]
["1-4","13","No clause (Clause 13).","Item",{"v":1,"d":"1.00"},null,{"$f":"J74*F74","v":0},null,null,1,null,5821,null,26,{"$nulls":12},1,0,1,-2,"I","I"]
[]
["1-4","14","Security (Clause 14).",{"$nulls":8},5822,null,27,{"$nulls":12},1,0,1,-2,"I","I"]
[]
[null,null,"Clause 14.0 is amended by the addition of the following Clauses:   14.9  The guarantee provided by the Contractor's Guarantor shall have an expiry date (if stated) no less than 3 months after the practical completion date  and shall be extended accordingly should the practical completion date be extended.   14.10  Should the Contractor's security lapse and not be renewed by the Contractor any time prior to the payment of final payment certificate, then: 14.10.1  An amount equal to five percent (5%) of the Contract Sum shall be withheld from the Contractor until security is reinstated or the final payment certificate is issued, whichever comes first.  14.10.2  The Contractor shall not be compensated with interest on the withheld amount stated in 14.10.1.","Item",{"v":1,"d":"1.00"},null,{"$f":"J78*F78","v":0},null,null,1,null,5822,null,27,{"$nulls":12},1,0,1,-2,"I","I"]
[]
["1-4",null,"EXECUTION",{"$nulls":8},5823,null,28,{"$nulls":12},1,0,1,-2,"S","0"]
[]
["1-4","15","Preparation for and execution of the works (Clause 15).","Item",{"v":1,"d":"1.00"},null,{"$f":"J82*F82","v":0},null,null,1,null,5824,null,29,{"$nulls":12},1,0,1,-2,"I","I"]
[]
["1-4","16","Access to the works (Clause 16).",{"$nulls":8},5825,null,30,{"$nulls":12},1,0,1,-2,"I","I"]
[]
[null,null,"It shall be the responsibility of the contractor to obtain all necessary statutory permissions required relating to the use of pavements, roadways and access to the Site, and the tenderer is deemed to have allowed against this item for any cost associated with use of pavements, access, use of other sites for temporary use by the Contractor during the progress of the Works, etc.",{"$nulls":8},5825,null,30,{"$nulls":12},1,0,1,-2,"I","I"]
[]
[null,null,"The area of the works to be occupied by the contractor, any restriction on the area and the limit of access or exit shall be established by the tenderer prior to submitting the tender.   The Tenderer shall ascertain any other restrictions to the area that may be occupied by the Contractor including any restrictions imposed by any buildings, etc. and any limitations or restrictions that may be imposed by any Authorities.     Workmen employed on the site are to be restricted to the immediate area of the site and access thereto.  Space on the pavement areas  for the storage of building materials, etc., must be arranged with the Local Authorities by the Tenderer who will be responsible for all charges in connection therewith.   The Tenderer shall make all necessary provision in all rates to take into account these requirements as no claims for extras arising from these matters will be subsequently ente",{"$nulls":8},5825,null,30,{"$nulls":12},1,0,1,-2,"I","I"]
[null,null,"rtained or admitted.",{"$nulls":8},5825,null,30,{"$nulls":12},1,0,1,-2,"I","I"]
[{"$nulls":3},"Item",{"v":1,"d":"1.00"},null,{"$f":"J90*F90","v":0},null,null,1,null,5825,null,30]
[]
["1-4","17","Contract instructions (Clause 17).",{"$nulls":8},5826,null,31,{"$nulls":12},1,0,1,-2,"I","I"]
[]
[null,null,"Contract instructions issued on site shall be recorded in a Site instruction book provided by the Contractor. Only those instructions signed off by the Principal Agent will be recognized.","Item",{"v":1,"d":"1.00"},null,{"$f":"J94*F94","v":0},null,null,1,null,5826,null,31,{"$nulls":12},1,0,1,-2,"I","I"]
[]
["1-4","18","Setting out of the works (Clause 18).",{"$nulls":8},5827,null,32,{"$nulls":12},1,0,1,-2,"I","I"]
[]
[null,null,"The contractor shall notify the principal agent if any encroachments of adjoining foundations, buildings, structures, pavements, boundaries, etc., exist in order that the necessary arrangements may be made for the rectification of any such encroachments.","Item",{"v":1,"d":"1.00"},null,{"$f":"J98*F98","v":0},null,null,1,null,5827,null,32,{"$nulls":12},1,0,1,-2,"I","I"]
[]
["1-5","19","Assignment (Clause 19).","Item",{"v":1,"d":"1.00"},null,{"$f":"J100*F100","v":0},null,null,1,null,5828,null,34,{"$nulls":12},1,0,1,-2,"I","I"]
[]
["1-5","20","Nominated subcontractors (Clause 20).",{"$nulls":8},5829,null,35,{"$nulls":12},1,0,1,-2,"I","I"]
[]
[null,null,"All subcontractors will be appointed as Selected Sub-contractors, unless otherwise agreed.","Item",{"v":1,"d":"1.00"},null,{"$f":"J104*F104","v":0},null,null,1,null,5829,null,35,{"$nulls":12},1,0,1,-2,"I","I"]
[]
["1-5","21","Selected subcontractors (Clause 21).","Item",{"v":1,"d":"1.00"},null,{"$f":"J106*F106","v":0},null,null,1,null,5830,null,36,{"$nulls":12},1,0,1,-2,"I","I"]
[]
["1-5","22","Employer's Direct contractors (Clause 22).",{"$nulls":8},5831,null,37,{"$nulls":12},1,0,1,-2,"I","I"]
[]
[null,null,"Clause 22 is amended by the addition of the following clause:",{"$nulls":8},5831,null,37,{"$nulls":12},1,0,1,-2,"I","I"]
[]
[null,null,"Clause 22.6 Refer to clause C25 'Direct and Separate Contracts' for details in respect of Direct Contracts'","Item",{"v":1,"d":"1.00"},null,{"$f":"J112*F112","v":0},null,null,1,null,5831,null,37,{"$nulls":12},1,0,1,-2,"I","I"]
[]
["1-5","23","Contractor's Domestic subcontractors (Clause 23).","Item",{"v":1,"d":"1.00"},null,{"$f":"J114*F114","v":0},null,null,1,null,5832,null,-12,{"$nulls":12},1,0,1,-2,"I","I"]
[]
["1-5",null,"COMPLETION",{"$nulls":8},5833,null,39,{"$nulls":12},1,0,1,-2,"S","0"]
[]
["1-5","24","Practical completion (Clause 24).","Item",{"v":1,"d":"1.00"},null,{"$f":"J118*F118","v":0},null,null,1,null,5834,null,41,{"$nulls":12},1,0,1,-2,"I","I"]
[]
["1-5","25","Works completion (Clause 25).",{"$nulls":8},5835,null,42,{"$nulls":12},1,0,1,-2,"I","I"]
[]
[null,null,"Clause 25.1 is amended by the addition of the following Clauses:",{"$nulls":8},5835,null,42,{"$nulls":12},1,0,1,-2,"I","I"]
[]
[null,null,"25.1.1  The Contractor shall, within five (5) working days of receipt of the works completion list, issue a programme indicating the dates for completion of the works completion list, for the approval of the Principal Agent.",{"$nulls":8},5835,null,42,{"$nulls":12},1,0,1,-2,"I","I"]
[]
[null,null,"25.1.2  Should the Contractor fail to issue such a programme, it shall be deemed that the Contractor agrees to complete the works completion list within forty (40) working days of the date of receipt of the works completion list.",{"$nulls":8},5835,null,42,{"$nulls":12},1,0,1,-2,"I","I"]
[]
[null,null,"25.1.3  Should the Contractor fail to complete the defects and achieve works completion in accordance with the agreed programme or the deemed forty (40) day period, and without prejudice to any other rights that the Employer may have, the Contractor shall be liable to the Employer for the penalty as described as the Works Completion Penalty per day until works completion is achieved. Refer to Clause 30.","Item",{"v":1,"d":"1.00"},null,{"$f":"J128*F128","v":0},null,null,1,null,5835,null,42,{"$nulls":12},1,0,1,-2,"I","I"]
[]
["1-5","26","Final completion (Clause 26).","Item",{"v":1,"d":"1.00"},null,{"$f":"J130*F130","v":0},null,null,1,null,5836,null,43,{"$nulls":12},1,0,1,-2,"I","I"]
[]
["1-5","27","Latent defects liability period (Clause 27).",{"$nulls":8},5837,null,44,{"$nulls":12},1,0,1,-2,"I","I"]
[]
[null,null,"Clause 27.0 is amended by the addition of the following clauses:  \"27.3 Any water leakage into the building, whether in the roof, external wall or other element of the building susceptible to water leakage shall, unless proven to be a design defect, or as a result of obvious storm damage, be classified as a latent defect in terms of clause 1.0 Definitions and Interpretations\".  \"27.4 The Contractor shall attend to defects during the Defects Liability Period on a progressive basis, to the satisfaction of the Principal Agent and will not be permitted to wait until the end of the Defect Liability Period or until the amount of defects accummulates in order to attend to a comprehensive list of defects\"","Item",{"v":1,"d":"1.00"},null,{"$f":"J134*F134","v":0},null,null,1,null,5837,null,44,{"$nulls":12},1,0,1,-2,"I","I"]
[]
["1-6","28","Sectional completion (Clause 28).","Item",{"v":1,"d":"1.00"},null,{"$f":"J136*F136","v":0},null,null,1,null,5838,null,45,{"$nulls":12},1,0,1,-2,"I","I"]
[]
["1-6","29","Revision of date for practical completion (Clause 29).",{"$nulls":8},5839,null,46,{"$nulls":12},1,0,1,-2,"I","I"]
[]
[null,null,"Clause 29 is amended as follows:",{"$nulls":8},5839,null,46,{"$nulls":12},1,0,1,-2,"I","I"]
[]
[null,null,"Should possession of the site not be given on or before the date stated in the Contract Data EC Schedule (2.4), then the extension to that date will also be applicable to the date for practical completion (4.0) and the contract sum will not be adjusted.",{"$nulls":8},5839,null,46,{"$nulls":12},1,0,1,-2,"I","I"]
[]
[null,null,"Clause 29.1.1 is deemed to be deleted and replace by the addition of the following:",{"$nulls":8},5839,null,46,{"$nulls":12},1,0,1,-2,"I","I"]
[]
[null,null,"29.1.1  Inclement weather which shall be defined as weather in excess of the average recorded for the past ten (10) years by the nearest commonly recognised weather bureau in the region of the project. The Contractor shall be deemed to have allowed in his programme of the works and opposite this item or in in his rates, for the cost of all delays as a result of weather conditions which are below average or average (as defined above) Furthermore, the Contractor shall also have been deemed to have allowed in his programme for the and opposite this item or in his rates, for the cost of the loss of twelve (12) working days lost on the critical path of the programme due to delays as a result of inclement weather as defined above.",{"$nulls":8},5839,null,46,{"$nulls":12},1,0,1,-2,"I","I"]
[]
[null,null,"The above float which is included in the Contractor's programme may also be used for any other critical path delays which the Contractor may become entitled to, at the sole discretion of the Principal Agent. Each claim for delays as a result of inclement weather shall be made to the Principal Agent within seven (7) calendar days of the occurrence thereof, failing which no delays shall be recorded.",{"$nulls":8},5839,null,46,{"$nulls":12},1,0,1,-2,"I","I"]
[]
[null,null,"NOTE: Revision to the date of Practical Completion shall only be considered when work on the critical path of the agreed programme for the works is delayed.                      Clause 29 is amended by the addition of the following clause:                                                      The removal and replacement of materials and/or workmanship which do not conform to specification or drawing shall not constitute grounds for the extension of the construction period nor the adjustment of contract value.","Item",{"v":1,"d":"1.00"},null,{"$f":"J150*F150","v":0},null,null,1,null,5839,null,46,{"$nulls":12},1,0,1,-2,"I","I"]
[]
["1-6","30","Penalty for non-completion (Clause 30).",{"$nulls":8},5840,null,47,{"$nulls":12},1,0,1,-2,"I","I"]
[]
[null,null,"Clause 30.0 is amended by the addition of the following Clause:",{"$nulls":8},5840,null,47,{"$nulls":12},1,0,1,-2,"I","I"]
[]
[null,null,"30.3  Penalties for not achieving the Date of Works Completion in terms of Clause 25.4 shall be levied at fifty percent (50%) of the penalties defined for not achieving Practical Completion. The penalty shall be in addition to any penalties due in terms of Clause 30.1; 30.2; and 30.3.","Item",{"v":1,"d":"1.00"},null,{"$f":"J156*F156","v":0},null,null,1,null,5840,null,47,{"$nulls":12},1,0,1,-2,"I","I"]
[]
["1-7",null,"PAYMENT",{"$nulls":8},5841,null,48,{"$nulls":12},1,0,1,-2,"S","0"]
[]
["1-7","31","Interim payment to the contractor (Clause 31).",{"$nulls":8},5842,null,49,{"$nulls":12},1,0,1,-2,"I","I"]
[]
[null,null,"Clause 31 is amended as follows:",{"$nulls":8},5842,null,49,{"$nulls":12},1,0,1,-2,"I","I"]
[]
[null,null,"The inclusion of materials and goods stored off site in the amount authorised for payment in terms of clause 31.3 shall be at the sole discretion of the principal agent and such inclusion shall only be considered upon the provision, by the contractor, of an approved guarantee issued by a registered commercial bank. Clause 31.6.5 is therefore not applicable.",{"$nulls":8},5842,null,49,{"$nulls":12},1,0,1,-2,"I","I"]
[]
[null,null,"Where prices are submitted by the contractor or nominated/selected sub contractor during the progress of the works in respect of contract instructions or in regard to a claim under the terms of the contract and notwithstanding the fact that such prices may be used in an interim payment certificate, there is to be no presumption of acceptance. Should the principal agent wish to accept any such prices prior to the issue of the final certificate, it will be in writing.",{"$nulls":8},5842,null,49,{"$nulls":12},1,0,1,-2,"I","I"]
[]
[null,null,"Clause 31.9 is amended as follows:",{"$nulls":8},5842,null,49,{"$nulls":12},1,0,1,-2,"I","I"]
[]
[null,null,"line 1, 'delete reference to seven (7) calender days and insert thirty (30) calender days'    Clause 31.10 is amended by the deletion of 'date of practical completion' in the second and fourth sentence and replacing with 'date of final completion.'",{"$nulls":8},5842,null,49,{"$nulls":12},1,0,1,-2,"I","I"]
[]
[null,null,"The contractor shall attach a tax invoice as prescribed in the Value Added Tax legislation to each payment certificate when presenting the certificate to the employer for payment. Such tax invoices shall correctly reflect the prescribed information and the amounts shall match precisely the amounts included in the payment certificate. Should the contractor fail to comply with these requirements, the date of presentation of the certificate shall be deemed to be delayed at the contractor’s default until such time as the requirements are met.'","Item",{"v":1,"d":"1.00"},null,{"$f":"J172*F172","v":0},null,null,1,null,5842,null,49,{"$nulls":12},1,0,1,-2,"I","I"]
[]
["1-7","32","Adjustment to the contract value (Clause 32).",{"$nulls":8},5843,null,52,{"$nulls":12},1,0,1,-2,"I","I"]
[]
[null,null,"FIXED PRICE CONTRACT   Clause 32.13 is deleted and replaced as follows:   The tender is a fixed price and NO escalations in respect of increased costs of labour, materials, plant, fuel, freight, transportation and railage charges, taxes (save for VAT), customs or other duties, fees and charges shall be applicable. The contractor shall take the risk of all fluctuations in the rates of exchange of the rand or any other currency.",{"$nulls":8},5843,null,52,{"$nulls":12},1,0,1,-2,"I","I"]
[]
[null,null,"Bidders are advised that this Contract shall be a Fixed Price Contract and shall not be subject to the Contract Price Adjustment Provisions (CPAP) or any other escalation formula and therefore bidders are to allow for any increases (except any variations in the rate of Value Added Tax) in cost of labour, materials, transport, etc.",{"$nulls":8},5843,null,52,{"$nulls":12},1,0,1,-2,"I","I"]
[]
[null,null,"Add Clause 32.16: The Principal Agent and/or the Quantity Surveyor shall be entitled to call for, and review, documentation to substantiate any variations from any supplier, subcontractor, etc.","Item",{"v":1,"d":"1.00"},null,{"$f":"J180*F180","v":0},null,null,1,null,5843,null,52,{"$nulls":12},1,0,1,-2,"I","I"]
[]
["1-8","33","Recovery of expense and loss (Clause 33).","Item",{"v":1,"d":"1.00"},null,{"$f":"J182*F182","v":0},null,null,1,null,5844,null,54,{"$nulls":12},1,0,1,-2,"I","I"]
[]
["1-8","34","Final account and final payment (Clause 34).",{"$nulls":8},5845,null,55,{"$nulls":12},1,0,1,-2,"I","I"]
[]
[null,null,"Clause 34.1 is amended as follows:  'The principal agent shall prepare a final account for submission to the contractor within ninety (90) working days.'","Item",{"v":1,"d":"1.00"},null,{"$f":"J186*F186","v":0},null,null,1,null,5845,null,55,{"$nulls":12},1,0,1,-2,"I","I"]
[]
["1-8","35","Payment to other parties (Clause 35).","Item",{"v":1,"d":"1.00"},null,{"$f":"J188*F188","v":0},null,null,1,null,5846,null,56,{"$nulls":12},1,0,1,-2,"I","I"]
[]
["1-8",null,"CANCELLATION",{"$nulls":8},5847,null,60,{"$nulls":12},1,0,1,-2,"S","0"]
[]
["1-8","36","Cancellation by Employer - Contractor's default (Clause 36).",{"$nulls":8},5848,null,61,{"$nulls":12},1,0,1,-2,"I","I"]
[]
[null,null,"Should it appear to the Principal Agent concerned that the contractor is not executing the contract in accordance with the true intent and meaning thereof, or that he is refusing or delaying to execute the contract or that he is not carrying on the contract at such rate of progress as to ensure delivery by the date of delivery or that the time has expired within which delivery should have taken place or in the event of any other failure or default by the contractor, then in any such events, the Principal Agent, may give notice in writing to the contractor to make good the failure or default, and should the contractor fail to comply with the notice within the period specified therein, then and in such case report the matter to the Bid Adjudication Committee who shall, without prejudice to any of the Council’s rights under the contract, be at liberty forthwith to appoint the next most responsive tend",{"$nulls":8},5848,null,61,{"$nulls":12},1,0,1,-2,"I","I"]
[null,null,"erer to perform such service as the contractor may have neglected to do so, or take the contract wholly or in part out of the contractor’s hands and order from or contract with any other person.",{"$nulls":8},5848,null,61,{"$nulls":12},1,0,1,-2,"I","I"]
[]
[]
[null,null,"The contractor shall be responsible for any loss the Council may sustain by reason of such action as may be taken in terms of this clause.  The termination of contracts awarded via the Bid Adjudication Committee are to be approved by the Bid Adjudication Committee.  Should a contract be awarded and it subsequently be established that - Prohibition on awards to persons in the service of the state, of the SCM Regulations has been breached, the contract will be terminated with immediate effect.","Item",{"v":1,"d":"1.00"},null,{"$f":"J198*F198","v":0},null,null,1,null,5848,null,61,{"$nulls":12},1,0,1,-2,"I","I"]
[]
["1-8","37","Cancellation by Employer - Loss and damage (Clause 37).","Item",{"v":1,"d":"1.00"},null,{"$f":"J200*F200","v":0},null,null,1,null,5849,null,62,{"$nulls":12},1,0,1,-2,"I","I"]
[]
["1-8","38","Cancellation by Contractor - Employer's default (Clause 38).","Item",{"v":1,"d":"1.00"},null,{"$f":"J202*F202","v":0},null,null,1,null,5850,null,63,{"$nulls":12},1,0,1,-2,"I","I"]
[]
["1-8","39","Cancellation - Cessation of the works (Clause 39).","Item",{"v":1,"d":"1.00"},null,{"$f":"J204*F204","v":0},null,null,1,null,5851,null,64,{"$nulls":12},1,0,1,-2,"I","I"]
[]
["1-8",null,"DISPUTE",{"$nulls":8},5852,null,65,{"$nulls":12},1,0,1,-2,"S","0"]
[]
["1-8","40","Dispute Settlement (Clause 40).","Item",{"v":1,"d":"1.00"},null,{"$f":"J208*F208","v":0},null,null,1,null,5853,null,66,{"$nulls":12},1,0,1,-2,"I","I"]
[]
["1-8",null,"SUBSTITUTE PROVISIONS",{"$nulls":8},5854,null,65,{"$nulls":12},1,0,1,-2,"S","0"]
[]
["1-8","41","State clauses (Clause 41).","Item",{"v":1,"d":"1.00"},null,{"$f":"J212*F212","v":0},null,null,1,null,5855,null,66,{"$nulls":12},1,0,1,-2,"I","I"]
[]
["1-8",null,"CONTRACT VARIABLES",{"$nulls":8},5856,null,67,{"$nulls":12},1,0,1,-2,"S","0"]
[]
["1-8","42","The Schedule:  Pre-Tender information (Clause 42).","Item",{"v":1,"d":"1.00"},null,{"$f":"J216*F216","v":0},null,null,1,null,5857,null,68,{"$nulls":12},1,0,1,-2,"I","I"]
[]
["1-9","43","DEFINITIONS AND INTERPRETATION (B1)","Item",{"v":1,"d":"1.00"},null,{"$f":"J218*F218","v":0},null,null,1,null,5888,null,-16,{"$nulls":12},1,0,1,-2,"I","I"]
[]
["1-9",null,"Clause 42.2.5  Date on which possession of the site is intended to be given on :- Refer to Tender Document",{"$nulls":8},5870,null,94,{"$nulls":12},1,0,1,-2,"C","0"]
[]
["1-9",null,"Employer:",{"$nulls":8},5859,null,72,{"$nulls":12},1,0,1,-2,"C","0"]
[]
[null,null,"Development Bank of South Africa (DBSA),",{"$nulls":8},5859,null,72,{"$nulls":12},1,0,1,-2,"C","0"]
[]
[null,null,"Address: 1258 Lever Road, Halfway House, Midrand, 1658",{"$nulls":8},5859,null,72,{"$nulls":12},1,0,1,-2,"C","0"]
[]
[null,null,"Telephone: 011 313 3911",{"$nulls":8},5859,null,72,{"$nulls":12},1,0,1,-2,"C","0"]
[]
[null,null,"Email: iddlegal@dbsa.org",{"$nulls":8},5859,null,72,{"$nulls":12},1,0,1,-2,"C","0"]
[]
["1-9",null,"Principal Agent:",{"$nulls":8},5860,null,75,{"$nulls":12},1,0,1,-2,"C","0"]
[]
["1-9",null,"Architect:",{"$nulls":8},5861,null,75,{"$nulls":12},1,0,1,-2,"C","0"]
[]
["1-9",null,"Agent's Service:  Electrical Agent ( 1 ):",{"$nulls":8},5863,null,78,{"$nulls":12},1,0,1,-2,"C","0"]
[]
["1-9",null,"Agent's Service:  Quantity Surveyor Agent ( 2 ):",{"$nulls":8},5862,null,75,{"$nulls":12},1,0,1,-2,"C","0"]
[]
["1-9",null,"Agent's Service: Structural Engineer Agent ( 3 ):",{"$nulls":8},5864,null,73,{"$nulls":12},1,0,1,-2,"C","0"]
[]
["1-9",null,"Clause 42.2.1  Works Description:",{"$nulls":8},5866,null,90,{"$nulls":12},1,0,1,-2,"C","0"]
[]
[null,null,"Refer to Tender Document",{"$nulls":8},5866,null,90,{"$nulls":12},1,0,1,-2,"C","0"]
[]
["1-9",null,"Clause 42.2.2  Site Description:",{"$nulls":8},5867,null,90,{"$nulls":12},1,0,1,-2,"C","0"]
[]
[null,null,"Refer to Tender Document",{"$nulls":8},5867,null,90,{"$nulls":12},1,0,1,-2,"C","0"]
[]
["1-9",null,"Clause 42.3.2  Supplementary insurance is required : Refer to Tender Document",{"$nulls":8},5877,null,104,{"$nulls":12},1,0,1,-2,"C","0"]
[]
["1-9",null,"Clause 42.4.6  The contract value is to be adjusted using CPAP:-  Refer to Tender Document",{"$nulls":8},5885,null,112,{"$nulls":12},1,0,1,-2,"C","0"]
[]
["1-9",null,"Clause 42.4.5  JBCC Engineering General Conditions are to be included in the documents :- No",{"$nulls":8},5884,null,111,{"$nulls":12},1,0,1,-2,"C","0"]
[]
["1-9",null,"Clause 42.4.4  Number of days for submission of priced documents : Refer to Tender Document",{"$nulls":8},5883,null,110,{"$nulls":12},1,0,1,-2,"C","0"]
[]
["1-9",null,"Clause 42.4.3  Bills of Quantities drawn up in accordance with :- Standard System of Measuring Building Work - Seventh Edition including all latest amendments at date of tender",{"$nulls":8},5882,null,109,{"$nulls":12},1,0,1,-2,"C","0"]
[]
["1-9",null,"Clause 42.4.2  Number of construction document copies to be supplied to the Contractor free of charge :- Refer to Tender Document",{"$nulls":8},5881,null,108,{"$nulls":12},1,0,1,-2,"C","0"]
[]
["1-9",null,"Clause 42.4.1  Waiver of the contractor's lien is required :-  Refer to Tender Document",{"$nulls":8},5880,null,107,{"$nulls":12},1,0,1,-2,"C","0"]
[]
["1-9",null,"Clause 42.4.7  Details of changes made to the provisions of JBCC standard documentation:",{"$nulls":8},5886,null,113,{"$nulls":12},1,0,1,-2,"C","0"]
[]
[null,null,"Note: The tenderer must study the modifications and amendments made to the relevant clauses in the Preliminaries section of the Bills of Quantities, under each clause heading.",{"$nulls":8},5886,null,113,{"$nulls":12},1,0,1,-2,"C","0"]
[]
["1-9",null,"Clause 42.3.3  Public liability insurance to be effected by Contractor For the amount of: Refer to Tender Document",{"$nulls":8},5878,null,104,{"$nulls":12},1,0,1,-2,"C","0"]
[]
["1-9",null,"Clause 42.2.4",{"$nulls":8},5869,null,93,{"$nulls":12},1,0,1,-2,"C","0"]
[]
[null,null,"This Agreement is for a State Contract :- Yes",{"$nulls":8},5869,null,93,{"$nulls":12},1,0,1,-2,"C","0"]
[]
[null,null,"Payment will be made for materials and goods:- Yes",{"$nulls":8},5869,null,93,{"$nulls":12},1,0,1,-2,"C","0"]
[]
[null,null,"Dispute resolution :- Mediation (in terms of 40.4) followed by litigation.",{"$nulls":8},5869,null,93,{"$nulls":12},1,0,1,-2,"C","0"]
[]
[null,null,"Arbitration rules as recommended by the Association of Arbitrators (SA) :- N/A",{"$nulls":8},5869,null,93,{"$nulls":12},1,0,1,-2,"C","0"]
[]
["1-10",null,"Clause 42.3.1  Contract works insurance to be effected by Contractor for the sum of: Refer to Tender Document",{"$nulls":8},5876,null,104,{"$nulls":12},1,0,1,-2,"C","0"]
[]
["1-10",null,"Clause 42.2.9  The law applicable to this agreement shall be that of - South Africa.",{"$nulls":8},5874,null,100,{"$nulls":12},1,0,1,-2,"C","0"]
[]
["1-10",null,"Clause 42.2.8  Intended dates of practical completion and the penalties per calendar day for the works in sections :   Refer to Tender Document",{"$nulls":8},5873,null,97,{"$nulls":12},1,0,1,-2,"C","0"]
[]
["1-10",null,"Clause 42.2.7  Intended date of practical completion and the penalty per calendar day for the works as a whole :- Refer to Tender Document",{"$nulls":8},5872,null,96,{"$nulls":12},1,0,1,-2,"C","0"]
[]
["1-10",null,"Clause 42.2.6  Period for the commencement of the works after the contractor takes possession of the site :- Refer to Tender Document",{"$nulls":8},5871,null,95,{"$nulls":12},1,0,1,-2,"C","0"]
[]
["1-10",null,"Clause 42.2.3  Work or Installations by Others:  Yes",{"$nulls":8},5868,null,92,{"$nulls":12},1,0,1,-2,"C","0"]
[]
["1-10",null,"CONTRACTING AND OTHER PARTIES (Clause 42.1)",{"$nulls":8},5858,null,71,{"$nulls":12},1,0,1,-2,"H","0"]
[]
["1-10",null,"CONTRACT DETAILS (Clause 42.2)",{"$nulls":8},5865,null,88,{"$nulls":12},1,0,1,-2,"H","0"]
[]
["1-10",null,"INSURANCES (Clause 42.3)",{"$nulls":8},5875,null,101,{"$nulls":12},1,0,1,-2,"H","0"]
[]
["1-10",null,"DOCUMENTS (Clause 42.4)",{"$nulls":8},5879,null,105,{"$nulls":12},1,0,1,-2,"H","0"]
[]
["1-10",null,"SECTION B: PRELIMINARIES",{"$nulls":8},5887,null,114,{"$nulls":12},1,0,1,-2,"H","0"]
[]
["1-10",null,"DOCUMENTS (B2)",{"$nulls":8},5889,null,116,{"$nulls":12},1,0,1,-2,"S","0"]
[]
["1-10","44","Checking of documents (B2.1)  The items in these Bills of Quantities are to be read and priced in conjunction with, and the descriptions regarded as amplified by the Model Preambles for Trades as recommended and published by the Association of South African Quantity Surveyors, 1999 edition, and no claim arising from brevity of description of items fully described in the said Model Preambles to all Trades  and Supplementary documentation will be entertained.",{"$nulls":8},5890,null,117,{"$nulls":12},1,0,1,-2,"I","I"]
[]
[null,null,"Notwithstanding the issue of the tender drawings, it will remain the responsibility of the Tenderer to study all available drawings at the offices of the Principal Agent during normal working hours in order to acquaint himself with all the cost implications of the design, programming, phasing, etc.","Item",{"v":1,"d":"1.00"},null,{"$f":"J306*F306","v":0},null,null,1,null,5890,null,117,{"$nulls":12},1,0,1,-2,"I","I"]
[]
["1-10","45","Provisional Bills of Quantities (B2.2)",{"$nulls":8},5891,null,120,{"$nulls":12},1,0,1,-2,"I","I"]
[]
[null,null,"Clause 2.2 is deemed to be deleted and replaced by the following:",{"$nulls":8},5891,null,120,{"$nulls":12},1,0,1,-2,"I","I"]
[]
[null,null,"\"Except where indicated otherwise, the quantities of and classes and kinds of works set out in these Bills of Quantities are provisional and do not purport to represent the final quantities  of and classes and kinds of work eventually required to be done.  The quantities of and classes and kinds of work contained herein have been set down solely in order to form a basis  for obtaining competitive tenders.",{"$nulls":8},5891,null,120,{"$nulls":12},1,0,1,-2,"I","I"]
[]
[null,null,"The Bills of Quantities are not to be used for ordering materials under any circumstances whether this be with regard to description or specification of materials  or goods required, or with regard to quantities.  Failure to comply with this condition is entirely at the Contractor's own risk.",{"$nulls":8},5891,null,120,{"$nulls":12},1,0,1,-2,"I","I"]
[]
[null,null,"The Contractor shall be obliged upon instruction of the Principal Agent to execute such quantities of and classes and kinds of work as the Principal Agent in his sole discretion may deem necessary or which, in the Principal Agent's opinion, become expedient from time to time or which may be required to meet the Employer's requirements, whether or not such quantities  of and classes or kinds of work may appear in these Bills of Quantities  or the contract drawings.",{"$nulls":8},5891,null,120,{"$nulls":12},1,0,1,-2,"I","I"]
[]
[null,null,"The consideration payable to the Contractor in respect of the works shall be determined by the Agent by the application of the rates contained in the priced Bill of Quantities to the quantities of and classes and kinds of work actually executed, which quantities of and classes and kinds of work shall be determined by the Agent.",{"$nulls":8},5891,null,120,{"$nulls":12},1,0,1,-2,"I","I"]
[]
[null,null,"The rates contained in the priced Bills of Quantities shall apply irrespective of the final quantities of the different classes and kinds of work actually executed.  No claims for extras, loss of profit, variation of rates or other similar claims will be entertained as a result of any variations whatsoever between the quantities of work set out in these Bills of Quantities and the quantities of work actually executed, nor as a result of any variation whatsoever between the contract sum and the final value of works.",{"$nulls":8},5891,null,120,{"$nulls":12},1,0,1,-2,"I","I"]
[]
[null,null,"Prime Cost Amounts, Budgetary Allowances, Provisional Amounts, etc., contained herein may be omitted or reduced at the Principal Agent's sole discretion and the Contractor shall not be entitled to claim for any loss by way of reduction or omission of any discount, or percentage relating to Prime Cost Amounts, Budgetary Allowances, Provisional Amounts, etc., or loss of profit related thereto.\"","Item",{"v":1,"d":"1.00"},null,{"$f":"J322*F322","v":0},null,null,1,null,5891,null,120,{"$nulls":12},1,0,1,-2,"I","I"]
[]
["1-11","46","Availability of construction documentation (B2.3)",{"$nulls":8},5892,null,122,{"$nulls":12},1,0,1,-2,"I","I"]
[]
[null,null,"Construction drawings are incomplete and will be progressively completed during the construction period.","Item",{"v":1,"d":"1.00"},null,{"$f":"J326*F326","v":0},null,null,1,null,5892,null,122,{"$nulls":12},1,0,1,-2,"I","I"]
[]
["1-11","47","Interests of Agents (B2.4)","Item",{"v":1,"d":"1.00"},null,{"$f":"J328*F328","v":0},null,null,1,null,5893,null,124,{"$nulls":12},1,0,1,-2,"I","I"]
[]
["1-11","48","Priced documents (B2.5)","Item",{"v":1,"d":"1.00"},null,{"$f":"J330*F330","v":0},null,null,1,null,5894,null,125,{"$nulls":12},1,0,1,-2,"I","I"]
[]
["1-11","49","Tender submission (B2.6)","Item",{"v":1,"d":"1.00"},null,{"$f":"J332*F332","v":0},null,null,1,null,5895,null,126,{"$nulls":12},1,0,1,-2,"I","I"]
[]
["1-11",null,"THE SITE (B3)",{"$nulls":8},5896,null,133,{"$nulls":12},1,0,1,-2,"S","0"]
[]
["1-11","50","Defined works area (B3.1)",{"$nulls":8},5897,null,134,{"$nulls":12},1,0,1,-2,"I","I"]
[]
[null,null,"The area of the works to be occupied by the contractor, any restriction on the area and the limit of access or exit will be pointed out to the contractor by the principal agent on handing over of the site.  The Tenderer shall ascertain any other restrictions to the area that may be occupied by the Contractor including any restrictions imposed by any buildings, etc. And any limitations or restrictions that may be imposed by any Authorities.  Workmen employed on the site are to be restricted to the immediate area of the site and access thereto.  Space on the pavement areas for the storage of building materials, etc., must be arranged with the Local Authorities by the Tenderer who will be responsible for all charges in connection therewith.  The Tenderer shall make all necessary provision in all rates to take into account these requirements as no claims for extras arising from these matters will be su",{"$nulls":8},5897,null,134,{"$nulls":12},1,0,1,-2,"I","I"]
[null,null,"bsequently entertained or admitted.",{"$nulls":8},5897,null,134,{"$nulls":12},1,0,1,-2,"I","I"]
[{"$nulls":3},"Item",{"v":1,"d":"1.00"},null,{"$f":"J340*F340","v":0},null,null,1,null,5897,null,134]
[]
["1-12","51","Geotechnical investigation (B3.2)","Item",{"v":1,"d":"1.00"},null,{"$f":"J342*F342","v":0},null,null,1,null,5898,null,136,{"$nulls":12},1,0,1,-2,"I","I"]
[]
["1-12","52","Inspection of the Site (B3.3) No Claim for extras arising from the contractor having failed to comply with the clause will be entertained.","Item",{"v":1,"d":"1.00"},null,{"$f":"J344*F344","v":0},null,null,1,null,5899,null,137,{"$nulls":12},1,0,1,-2,"I","I"]
[]
["1-12","53","Existing premises occupied (B3.4)  - YES","Item",{"v":1,"d":"1.00"},null,{"$f":"J346*F346","v":0},null,null,1,null,5900,null,139,{"$nulls":12},1,0,1,-2,"I","I"]
[]
["1-12","54","Previous work - dimensional accuracy (B3.5)",{"$nulls":8},5901,null,140,{"$nulls":12},1,0,1,-2,"I","I"]
[]
[null,null,"The piling positions, tolerances, etc., must be surveyed, confirmed and accepted in writing by the Principal Contractor within 7 calender days of construction commencement.",{"$nulls":8},5901,null,140,{"$nulls":12},1,0,1,-2,"I","I"]
[]
[null,null,"Furthermore, the Contractor shall within 7 calender days of commencement of construction arrange for the Piling contractor to undertake and confirm integrity tests of the piling (the cost of testing of piles has been allowed for in the seperate piling contract.","Item",{"v":1,"d":"1.00"},null,{"$f":"J352*F352","v":0},null,null,1,null,5901,null,140,{"$nulls":12},1,0,1,-2,"I","I"]
[]
["1-12","55","Previous work - defects (B3.6)","Item",{"v":1,"d":"1.00"},null,{"$f":"J354*F354","v":0},null,null,1,null,5902,null,141,{"$nulls":12},1,0,1,-2,"I","I"]
[]
["1-12","56","Services - known (B3.7)","Item",{"v":1,"d":"1.00"},null,{"$f":"J356*F356","v":0},null,null,1,null,5903,null,142,{"$nulls":12},1,0,1,-2,"I","I"]
[]
["1-12","57","Services - unknown (B3.8)","Item",{"v":1,"d":"1.00"},null,{"$f":"J358*F358","v":0},null,null,1,null,5904,null,143,{"$nulls":12},1,0,1,-2,"I","I"]
[]
["1-12","58","Protection of trees (B3.9)","Item",{"v":1,"d":"1.00"},null,{"$f":"J360*F360","v":0},null,null,1,null,5905,null,144,{"$nulls":12},1,0,1,-2,"I","I"]
[]
["1-12","59","Articles of value (B3.10)","Item",{"v":1,"d":"1.00"},null,{"$f":"J362*F362","v":0},null,null,1,null,5906,null,145,{"$nulls":12},1,0,1,-2,"I","I"]
[]
["1-12","60","Inspection of adjoining properties (B3.11)",{"$nulls":8},5907,null,146,{"$nulls":12},1,0,1,-2,"I","I"]
[]
[null,null,"Note: The Contractor shall undertake the inquisitions and take the required actions as defined in this Clause.",{"$nulls":8},5907,null,146,{"$nulls":12},1,0,1,-2,"I","I"]
[]
[null,null,"The Tenderer shall inspect access roads, etc and shall be responsible for any damage evident at the end of the contract which has not been pointed out.","Item",{"v":1,"d":"1.00"},null,{"$f":"J368*F368","v":0},null,null,1,null,5907,null,146,{"$nulls":12},1,0,1,-2,"I","I"]
[]
["1-13",null,"MANAGEMENT OF CONTRACT (B4)",{"$nulls":8},5908,null,149,{"$nulls":12},1,0,1,-2,"S","0"]
[]
["1-13","61","Management of the Works (B4.1)  Clause 4.1 shall be deemed to be amended by the addition of the following:  'The contractor shall, to the satisfaction of the principal agent, provide the services of an experienced and competent Construction Manager and Site Agent supported by a management team who shall inter alia be responsible for all activities of the contractor and all sub-contractors and in particular:-  a) Programming b) Scheduling c) Reporting d) Production of shop drawings and samples e) Procurement and expediting f)  Liaison and co-ordinating of construction g) Commissioning, instruction, handover and follow up. h) Monitoring and reporting on building activities taking place off site.  The names and CV's on the contractor's site management team shall be submitted to the principal agent prior to commencement on site and, after the principal agent's agreement on the composition thereof has b",{"$nulls":8},5909,null,150,{"$nulls":12},1,0,1,-2,"I","I"]
[null,null,"een obtained. No changes shall be made nor shall any member of the said team be removed from site while remaining in employ of the contractor without the principal agent's express written approval.",{"$nulls":8},5909,null,150,{"$nulls":12},1,0,1,-2,"I","I"]
[{"$nulls":3},"Item",{"v":1,"d":"1.00"},null,{"$f":"J374*F374","v":0},null,null,1,null,5909,null,150]
[]
["1-13","62","Programme for the Works (B4.2)","Item",{"v":1,"d":"1.00"},null,{"$f":"J376*F376","v":0},null,null,1,null,5910,null,151,{"$nulls":12},1,0,1,-2,"I","I"]
[]
["1-13","63","Progress meetings (B4.3)","Item",{"v":1,"d":"1.00"},null,{"$f":"J378*F378","v":0},null,null,1,null,5911,null,152,{"$nulls":12},1,0,1,-2,"I","I"]
[]
["1-13","64","Technical meetings (B4.4)","Item",{"v":1,"d":"1.00"},null,{"$f":"J380*F380","v":0},null,null,1,null,5912,null,153,{"$nulls":12},1,0,1,-2,"I","I"]
[]
["1-13","65","Labour and Plant Records (B4.5)","Item",{"v":1,"d":"1.00"},null,{"$f":"J382*F382","v":0},null,null,1,null,5913,null,153,{"$nulls":12},1,0,1,-2,"I","I"]
[]
["1-13",null,"SAMPLES AND SHOP DRAWINGS (B5)",{"$nulls":8},5914,null,154,{"$nulls":12},1,0,1,-2,"S","0"]
[]
["1-13","66","Samples of materials (B5.1)","Item",{"v":1,"d":"1.00"},null,{"$f":"J386*F386","v":0},null,null,1,null,5915,null,155,{"$nulls":12},1,0,1,-2,"I","I"]
[]
["1-13","67","Workmanship samples (B5.2)","Item",{"v":1,"d":"1.00"},null,{"$f":"J388*F388","v":0},null,null,1,null,5916,null,156,{"$nulls":12},1,0,1,-2,"I","I"]
[]
["1-13","68","Shop drawings (B5.3)",{"$nulls":8},5917,null,157,{"$nulls":12},1,0,1,-2,"I","I"]
[]
[null,null,"The term 'shop drawings' shall mean drawings, layout drawings, diagrams, illustrations, schedules, performance charts, brochures, operating manuals and other data which are prepared by the Contractor or any Sub-Contractor, manufacturer, supplier or distributor and which illustrate the specified portion of the work.",{"$nulls":8},5917,null,157,{"$nulls":12},1,0,1,-2,"I","I"]
[]
[null,null,"The Contractor shall ensure that all shop drawings required for the Works in terms of this Contract, all Selected/Nominated Sub-Contracts and/or any Principal Agent's instruction, are prepared and submitted timeously in accordance with the following procedure:",{"$nulls":8},5917,null,157,{"$nulls":12},1,0,1,-2,"I","I"]
[]
[null,null,"(a)  Three prints of shop drawings of all fabricated work, working or setting out drawings, shop details and schedules shall be submitted to the Principal Agent, for approval.  Such work shall not be carried out until such approval has been given.",{"$nulls":8},5917,null,157,{"$nulls":12},1,0,1,-2,"I","I"]
[]
[null,null,"(b)  Shop drawings shall be submitted to the Principals Agents for approval at least two weeks prior to the date on which such approval is required in order to comply with the Contract Programme.",{"$nulls":8},5917,null,157,{"$nulls":12},1,0,1,-2,"I","I"]
[]
[null,null,"(c)  All submissions shall be prepared in accordance with the Contract drawings and specifications and/or any Principal Agents instructions and any deviation shall be specifically highlighted in writing, with a detailed explanation of the reason for such deviation, together with any cost and/or time implications.  Delays in approval of shop drawings due to non-compliance with drawings, specifications and/or Principal Agents instruction shall not constitute grounds for any claims for delay, extension of time and the like.",{"$nulls":8},5917,null,157,{"$nulls":12},1,0,1,-2,"I","I"]
[]
[null,null,"(d)  When the Principal Agent advises that shop drawings have been approved, the original transparencies of such drawings shall immediately be submitted to the Principal Agent so that the Principal Agent's stamp of approval may be appended thereto.  Thereafter, four prints of the approved shop drawings, setting out drawings and schedules shall be furnished to the Principal Agent.  As many prints of the approved shop drawings and schedules as required shall also be furnished to the Works.  No work shall be performed in accordance with drawings and/or catalogues not stamped with the Principal Agent's approval.",{"$nulls":8},5917,null,157,{"$nulls":12},1,0,1,-2,"I","I"]
[]
[null,null,"(e)  The Contractor, Sub-Contractor or Supplier, as the case may be, shall be responsible for ensuring that all dimensions affecting shop drawings conform to the dimensions of built work.",{"$nulls":8},5917,null,157,{"$nulls":12},1,0,1,-2,"I","I"]
[]
[null,null,"(f)  The Principal Agent or other Agents approval of shop drawings is limited to checking conformity with specification and shall not relieve the Contractor, Sub-Contractor or Supplier of his responsibility for design, erection or installation fit, nor does it vary his contractual or delictual obligations and liabilities.",{"$nulls":8},5917,null,157,{"$nulls":12},1,0,1,-2,"I","I"]
[]
[null,null,"(g)  Should the Contractor, Sub-Contractor or Supplier be of the opinion that corrections to shop drawings made by the Principal Agent or other Agents, constitute a change to the scope of work, then he shall immediately advise the Principal Agent in writing of this, together with the cost and/or programme implications thereof, in order to obtain the Principal Agents directive.",{"$nulls":8},5917,null,157,{"$nulls":12},1,0,1,-2,"I","I"]
[]
[null,null,"(h)  One additional copy of the final approved set of 'Shop drawings' is to be submitted to the Quantity Surveyors for purposes of valuation and final account remeasurement.","Item",{"v":1,"d":"1.00"},null,{"$f":"J410*F410","v":0},null,null,1,null,5917,null,157,{"$nulls":12},1,0,1,-2,"I","I"]
[]
["1-14",null,"TEMPORARY WORKS AND PLANT (B6)",{"$nulls":8},5918,null,158,{"$nulls":12},1,0,1,-2,"S","0"]
[]
["1-14","69","Deposits and fees (B6.1)","Item",{"v":1,"d":"1.00"},null,{"$f":"J414*F414","v":0},null,null,1,null,5919,null,159,{"$nulls":12},1,0,1,-2,"I","I"]
[]
["1-14","70","Enclosure of the works (B6.2)","Item",{"v":1,"d":"1.00"},null,{"$f":"J416*F416","v":0},null,null,1,null,5920,null,160,{"$nulls":12},1,0,1,-2,"I","I"]
[]
["1-14","71","Advertising (B6.3)","Item",{"v":1,"d":"1.00"},null,{"$f":"J418*F418","v":0},null,null,1,null,5921,null,161,{"$nulls":12},1,0,1,-2,"I","I"]
[]
["1-14","72","Plant, equipment, sheds and offices (B6.4)","Item",{"v":1,"d":"1.00"},null,{"$f":"J420*F420","v":0},null,null,1,null,5922,null,162,{"$nulls":12},1,0,1,-2,"I","I"]
[]
["1-14","73","Main notice board (B6.5)  One notice board shall be provided.","Item",{"v":1,"d":"1.00"},null,{"$f":"J422*F422","v":0},null,null,1,null,5923,null,163,{"$nulls":12},1,0,1,-2,"I","I"]
[]
["1-14","74","Subcontractors' notice board (B6.6)","Item",{"v":1,"d":"1.00"},null,{"$f":"J424*F424","v":0},null,null,1,null,5924,null,164,{"$nulls":12},1,0,1,-2,"I","I"]
[]
["1-14",null,"TEMPORARY SERVICES (B7)",{"$nulls":8},5925,null,165,{"$nulls":12},1,0,1,-2,"S","0"]
[]
["1-14","75","Location (B7.1)","Item",{"v":1,"d":"1.00"},null,{"$f":"J428*F428","v":0},null,null,1,null,5926,null,166,{"$nulls":12},1,0,1,-2,"I","I"]
[]
["1-15","76","Water (B7.2)  The contractor shall provide water for the works in accordance with:  Refer to Tender Document","Item",{"v":1,"d":"1.00"},null,{"$f":"J430*F430","v":0},null,null,1,null,5927,null,167,{"$nulls":12},1,0,1,-2,"I","I"]
[]
["1-15","77","Electricity (B7.3)  The contractor shall provide electricity for the works in accordance with:  Refer to Tender Document","Item",{"v":1,"d":"1.00"},null,{"$f":"J432*F432","v":0},null,null,1,null,5928,null,168,{"$nulls":12},1,0,1,-2,"I","I"]
[]
["1-15","78","Telecommunication equipment (B7.4)  The contractor shall provide telephones on site for the works in accordance with:  Refer to Tender Document","Item",{"v":1,"d":"1.00"},null,{"$f":"J434*F434","v":0},null,null,1,null,5929,null,169,{"$nulls":12},1,0,1,-2,"I","I"]
[]
["1-15","79","Ablution facilities (B7.5)  The contractor shall provide toilet facilties on site for the works in accordance with:  Refer to Tender Document","Item",{"v":1,"d":"1.00"},null,{"$f":"J436*F436","v":0},null,null,1,null,5930,null,170,{"$nulls":12},1,0,1,-2,"I","I"]
[]
["1-15",null,"PRIME COST AMOUNTS (B8)",{"$nulls":8},5931,null,171,{"$nulls":12},1,0,1,-2,"S","0"]
[]
["1-15","80","Responsibility for prime cost amounts (B8.1)","Item",{"v":1,"d":"1.00"},null,{"$f":"J440*F440","v":0},null,null,1,null,5932,null,172,{"$nulls":12},1,0,1,-2,"I","I"]
[]
["1-15",null,"ATTENDANCE ON N/S SUBCONTRACTORS (B9)",{"$nulls":8},5933,null,173,{"$nulls":12},1,0,1,-2,"S","0"]
[]
["1-15","81","General Attendance (B9.1)  Clause 9.1 shall be amended by the addition of the following:",{"$nulls":8},5934,null,174,{"$nulls":12},1,0,1,-2,"I","I"]
[]
[null,null,"The contractor shall:",{"$nulls":8},5934,null,174,{"$nulls":12},1,0,1,-2,"I","I"]
[]
[null,null,"a) Provide every assistance necessary for the due performance by all sub-contractors of their work and to enable them to execute their work in a like manner, in a proper order and sequence. The Contractor shall provide to all subcontractors all necessary scaffolding, board movements, cranage, hoisting, storage, etc. needed for the due and proper fulfillment of the Works.",{"$nulls":8},5934,null,174,{"$nulls":12},1,0,1,-2,"I","I"]
[]
[null,null,"b) Supervise and administer the sub-contractors and arrange and monitor programmes with each sub-contractor and supplier and co-ordinate the work of all sub-contractors and deliveries by suppliers.",{"$nulls":8},5934,null,174,{"$nulls":12},1,0,1,-2,"I","I"]
[]
[null,null,"c) Attendance on Nominated/Selected sub-contractors includes co-operating to the fullest extent with all parties and providing facilities for general attendance.","Item",{"v":1,"d":"1.00"},null,{"$f":"J452*F452","v":0},null,null,1,null,5934,null,174,{"$nulls":12},1,0,1,-2,"I","I"]
[]
["1-15","82","Special Attendance (B9.2) Clause 9.2 is deleted and replaced with the following:",{"$nulls":8},5935,null,175,{"$nulls":12},1,0,1,-2,"I","I"]
[]
[null,null,"The tenderer shall examine all drawings and information pertaining to the Works as a whole and shall provide all neccassary resources for the due and proper execution and completion of the Works.",{"$nulls":8},5935,null,175,{"$nulls":12},1,0,1,-2,"I","I"]
[]
[null,null,"The provision, erection, moving as necessary and dismantling of scaffolding by the Contractor as required for the work, shall be done in the best interests of the project whereby the duration of erected scaffolding shall allow following trades to use such scaffolding and all trades and subcontracts shall have adequate and proper use of scaffolding for the contract duration.",{"$nulls":8},5935,null,175,{"$nulls":12},1,0,1,-2,"I","I"]
[]
[null,null,"The Contractor shall also provide all neccassary hoistage, cranage, storage, etc., for the due fulfillment of the Contract and all trades and sub-contracts.","Item",{"v":1,"d":"1.00"},null,{"$f":"J460*F460","v":0},null,null,1,null,5935,null,175,{"$nulls":12},1,0,1,-2,"I","I"]
[]
["1-15","83","Commissioning - fuel, water and power (B9.3)","Item",{"v":1,"d":"1.00"},null,{"$f":"J462*F462","v":0},null,null,1,null,5936,null,176,{"$nulls":12},1,0,1,-2,"I","I"]
[]
["1-16",null,"FINANCIAL ASPECTS (B10)",{"$nulls":8},5937,null,177,{"$nulls":12},1,0,1,-2,"S","0"]
[]
["1-16","84","Statutory taxes, duties and levies (B10.1)  Provision is made in the Final Summary of these Bills of Quantities for the inclusion of Value Added Tax (VAT).","Item",{"v":1,"d":"1.00"},null,{"$f":"J466*F466","v":0},null,null,1,null,5938,null,178,{"$nulls":12},1,0,1,-2,"I","I"]
[]
["1-16","85","Payment of Preliminaries (B10.2)","Item",{"v":1,"d":"1.00"},null,{"$f":"J468*F468","v":0},null,null,1,null,5939,null,180,{"$nulls":12},1,0,1,-2,"I","I"]
[]
["1-16","86","Adjustment of Preliminaries (B10.3)","Item",{"v":1,"d":"1.00"},null,{"$f":"J470*F470","v":0},null,null,1,null,5940,null,181,{"$nulls":12},1,0,1,-2,"I","I"]
[]
["1-16","87","Payment certificate cash flow (B10.4)","Item",{"v":1,"d":"1.00"},null,{"$f":"J472*F472","v":0},null,null,1,null,5941,null,182,{"$nulls":12},1,0,1,-2,"I","I"]
[]
["1-16",null,"GENERAL (B11)",{"$nulls":8},5942,null,185,{"$nulls":12},1,0,1,-2,"S","0"]
[]
["1-16","88","Protection of the Works (B11.1)","Item",{"v":1,"d":"1.00"},null,{"$f":"J476*F476","v":0},null,null,1,null,5943,null,186,{"$nulls":12},1,0,1,-2,"I","I"]
[]
["1-16","89","Protection/isolation of existing/sectionally occupied works (B11.2)","Item",{"v":1,"d":"1.00"},null,{"$f":"J478*F478","v":0},null,null,1,null,5944,null,187,{"$nulls":12},1,0,1,-2,"I","I"]
[]
["1-16","90","Security of the Works (B11.3)","Item",{"v":1,"d":"1.00"},null,{"$f":"J480*F480","v":0},null,null,1,null,5945,null,188,{"$nulls":12},1,0,1,-2,"I","I"]
[]
["1-16","91","Notice before covering work (B11.4)","Item",{"v":1,"d":"1.00"},null,{"$f":"J482*F482","v":0},null,null,1,null,5946,null,189,{"$nulls":12},1,0,1,-2,"I","I"]
[]
["1-16","92","Disturbance (B11.5)","Item",{"v":1,"d":"1.00"},null,{"$f":"J484*F484","v":0},null,null,1,null,5947,null,190,{"$nulls":12},1,0,1,-2,"I","I"]
[]
["1-16","93","Environmental Disturbance (B11.6)","Item",{"v":1,"d":"1.00"},null,{"$f":"J486*F486","v":0},null,null,1,null,5948,null,190,{"$nulls":12},1,0,1,-2,"I","I"]
[]
["1-16","94","Works cleaning and clearing (B11.7)","Item",{"v":1,"d":"1.00"},null,{"$f":"J488*F488","v":0},null,null,1,null,5949,null,191,{"$nulls":12},1,0,1,-2,"I","I"]
[]
["1-16","95","Vermin (B11.8)","Item",{"v":1,"d":"1.00"},null,{"$f":"J490*F490","v":0},null,null,1,null,5950,null,192,{"$nulls":12},1,0,1,-2,"I","I"]
[]
["1-16","96","Overhand work (B11.9)","Item",{"v":1,"d":"1.00"},null,{"$f":"J492*F492","v":0},null,null,1,null,5951,null,193,{"$nulls":12},1,0,1,-2,"I","I"]
[]
["1-16","97","Instruction Manuals and Guarantees (B11.10)","Item",{"v":1,"d":"1.00"},null,{"$f":"J494*F494","v":0},null,null,1,null,5952,null,193,{"$nulls":12},1,0,1,-2,"I","I"]
[]
["1-16","98","As built information (B11.11)","Item",{"v":1,"d":"1.00"},null,{"$f":"J496*F496","v":0},null,null,1,null,5953,null,193,{"$nulls":12},1,0,1,-2,"I","I"]
[]
["1-16","99","Tenant Installation (B11.12)","Item",{"v":1,"d":"1.00"},null,{"$f":"J498*F498","v":0},null,null,1,null,5954,null,193,{"$nulls":12},1,0,1,-2,"I","I"]
[]
["1-16",null,"SCHEDULE OF VARIABLES (B12)",{"$nulls":8},5955,null,194,{"$nulls":12},1,0,1,-2,"S","0"]
[]
["1-16","100","Pre-tender information (B12.1)  Information necessary for elections and completion of those clauses contained in the schedule which are necessary for tender purposes is given hereunder.  Where no information is given, it shall mean that either no details are available or that the clause is not relevant to this specific contract.","Item",{"v":1,"d":"1.00"},null,{"$f":"J502*F502","v":0},null,null,1,null,5956,null,195,{"$nulls":12},1,0,1,-2,"I","I"]
[]
["1-16",null,"Provisional bills of quantities (B2.2)  The quantities are provisional - YES",{"$nulls":8},5957,null,197,{"$nulls":12},1,0,1,-2,"C","0"]
[]
["1-16",null,"Availability of construction documentation (B2.3)",{"$nulls":8},5958,null,198,{"$nulls":12},1,0,1,-2,"C","0"]
[]
["1-16",null,"Interests of agents (B2.4)",{"$nulls":8},5959,null,199,{"$nulls":12},1,0,1,-2,"C","0"]
[]
["1-16",null,"Defined works area (B3.1)  Tenderers shall establish by personal viewing of the site conditions any restrictions imposed by existing buildings, limited means of access and the like.",{"$nulls":8},5960,null,200,{"$nulls":12},1,0,1,-2,"C","0"]
[]
["1-16",null,"Geotechnical investigation (B3.2) - n/a",{"$nulls":8},5961,null,201,{"$nulls":12},1,0,1,-2,"C","0"]
[]
["1-16",null,"Existing premises occupied (B3.4):  - YES",{"$nulls":8},5962,null,202,{"$nulls":12},1,0,1,-2,"C","0"]
[]
["1-17",null,"Services - known (B3.7)",{"$nulls":8},5963,null,203,{"$nulls":12},1,0,1,-2,"C","0"]
[]
["1-17",null,"Protection of trees (B3.9)",{"$nulls":8},5964,null,204,{"$nulls":12},1,0,1,-2,"C","0"]
[]
["1-17",null,"Inspection of adjoining properties (B3.11)",{"$nulls":8},5965,null,205,{"$nulls":12},1,0,1,-2,"C","0"]
[]
["1-17",null,"Enclosure of the works (B6.2)",{"$nulls":8},5966,null,206,{"$nulls":12},1,0,1,-2,"C","0"]
[]
["1-17",null,"Office accommodation for meetings (B6.4.3)",{"$nulls":8},5967,null,207,{"$nulls":12},1,0,1,-2,"C","0"]
[]
["1-17",null,"Main notice board (B6.5) One main notice board shall be provided as per the details provided herewith.",{"$nulls":8},5968,null,208,{"$nulls":12},1,0,1,-2,"C","0"]
[]
["1-17",null,"Subcontractors' notice board (B6.6)  A notice board is required (No).",{"$nulls":8},5969,null,209,{"$nulls":12},1,0,1,-2,"C","0"]
[]
["1-17",null,"Water (B7.2)  Refer to Tender Document",{"$nulls":8},5970,null,210,{"$nulls":12},1,0,1,-2,"C","0"]
[]
["1-17",null,"Electricity (B7.3)  Refer to Tender Document",{"$nulls":8},5971,null,211,{"$nulls":12},1,0,1,-2,"C","0"]
[]
["1-17",null,"Telecommunication facilities (B7.4)  Refer to Tender Document",{"$nulls":8},5972,null,212,{"$nulls":12},1,0,1,-2,"C","0"]
[]
["1-17",null,"Ablution facilities (B7.5)  Refer to Tender Document",{"$nulls":8},5973,null,213,{"$nulls":12},1,0,1,-2,"C","0"]
[]
["1-17",null,"Special Attendance (B9.2)",{"$nulls":8},5974,null,214,{"$nulls":12},1,0,1,-2,"C","0"]
[]
["1-17",null,"Protection of the works (B11.1)",{"$nulls":8},5975,null,215,{"$nulls":12},1,0,1,-2,"C","0"]
[]
["1-17",null,"Protection/isolation of existing/sectionally occupied works (B11.2)",{"$nulls":8},5976,null,216,{"$nulls":12},1,0,1,-2,"C","0"]
[]
["1-17",null,"Disturbance (B11.5)",{"$nulls":8},5977,null,217,{"$nulls":12},1,0,1,-2,"C","0"]
[]
["1-17",null,"SECTION C: SPECIFIC PRELIMINARIES",{"$nulls":8},5978,null,366,{"$nulls":12},1,0,1,-2,"H","0"]
[]
["1-17",null,"Section C: Specific Preliminaries:",{"$nulls":8},5979,null,368,{"$nulls":12},1,0,1,-2,"S","0"]
[]
["1-17","101","C1. Proprietary branded products",{"$nulls":8},5980,null,369,{"$nulls":12},1,0,1,-2,"I","I"]
[]
[null,null,"The contractor shall take delivery of, handle, store, use, apply and/or fix all proprietary branded products in strict accordance with the manufacturer's instructions after consultation with the manufacturer's authorised representative.","Item",{"v":1,"d":"1.00"},null,{"$f":"J552*F552","v":0},null,null,1,null,5980,null,369,{"$nulls":12},1,0,1,-2,"I","I"]
[]
["1-17","102","C2. Trade Names, etc.",{"$nulls":8},5981,null,369,{"$nulls":12},1,0,1,-2,"I","I"]
[]
[null,null,"All materials, fittings, finishings, etc., specified hereinafter under a trade name, catalogue number or reference, must be exactly as described.  The Architect's approval in writing must be obtained for the use of any alternative to the specification before the submission of tenders otherwise the specified materials, fittings, finishings, etc., will be assumed to have been allowed for in the tender.  The Contractor must take delivery of, handle, store, use, apply and/or fix all proprietary branded products in strict accordance with the manufacturer's instructions after consultation with the manufacturer's authorised representative.","Item",{"v":1,"d":"1.00"},null,{"$f":"J556*F556","v":0},null,null,1,null,5981,null,369,{"$nulls":12},1,0,1,-2,"I","I"]
[]
["1-17","103","C3. Contractors responsibility",{"$nulls":8},5982,null,369,{"$nulls":12},1,0,1,-2,"I","I"]
[]
[null,null,"The Employer, the Principal Agent and the other professional  consultants shall not be responsible for any act or omission on the part of the Contractor which may result in any patent or latent defects, in materials or workmanship, breach or neglect of any local regulations.  The Contractor shall at all times be responsible for any such neglect, deviation or wrong act, whether the same is discovered before or after the final certificate, or any other Certificate, has been approved.","Item",{"v":1,"d":"1.00"},null,{"$f":"J560*F560","v":0},null,null,1,null,5982,null,369,{"$nulls":12},1,0,1,-2,"I","I"]
[]
["1-18","104","C4. Overtime",{"$nulls":8},5983,null,371,{"$nulls":12},1,0,1,-2,"I","I"]
[]
[null,null,"Should overtime be required to be worked for any reason whatsoever, the costs of such overtime are to be borne by the contractor unless the principal agent has specifically authorised in writing, prior to the execution thereof, that costs for such overtime are to be borne by the employer.","Item",{"v":1,"d":"1.00"},null,{"$f":"J564*F564","v":0},null,null,1,null,5983,null,371,{"$nulls":12},1,0,1,-2,"I","I"]
[]
["1-18","105","C5. As built drawings",{"$nulls":8},5984,null,373,{"$nulls":12},1,0,1,-2,"I","I"]
[]
[null,null,"The position of construction breaks and the extent of individual concrete pours are to be recorded by the contractor on the structural engineer's drawings and are to be submitted to the principal agent and the structural engineer for their records.  Three full sets of as-built drawings shall be submitted to the Principal Agent no later than fourteen days after practical completion.","Item",{"v":1,"d":"1.00"},null,{"$f":"J568*F568","v":0},null,null,1,null,5984,null,373,{"$nulls":12},1,0,1,-2,"I","I"]
[]
["1-18","106","C6. Construction Instructions",{"$nulls":8},5985,null,375,{"$nulls":12},1,0,1,-2,"I","I"]
[]
[null,null,"Contract instructions issued on site are to be recorded in triplicate in a site instruction book which is to be maintained on site by the contractor.  The Contractor shall supply and have available at the site of the works at all times, the following site books:",{"$nulls":8},5985,null,375,{"$nulls":12},1,0,1,-2,"I","I"]
[]
[null,null,"a)  Construction Instruction Book:  Receiving and recording instructions in a suitable A4 size triplicate book kept on site.  Instructions issued shall be recorded by the Architect or other Employer's Agents to whom the Architect has delegated Authority in the book.  Only instructions issued in such book shall be recognised",{"$nulls":8},5985,null,375,{"$nulls":12},1,0,1,-2,"I","I"]
[]
[null,null,"b)  Daily Record Book  The Contractor shall record in triplicate in a suitable A4 size triplicate book kept at the site, a daily record of work done, all site visits by the Principal Agent and other professional personnel and all events affecting the Works, such as progress, issue of plans, breakdown of machinery, etc. The labour, plant and material on site shall be recorded as well as work performed. Entries must be made by the Contractor and must be signed and forwarded to the Principal Agent for his counter-signature on a daily basis. Copies of these records shall be for the Architect, Quantity Surveyor and Contractor.","Item",{"v":1,"d":"1.00"},null,{"$f":"J576*F576","v":0},null,null,1,null,5985,null,375,{"$nulls":12},1,0,1,-2,"I","I"]
[]
["1-18","107","C7. Labour record",{"$nulls":8},5986,null,377,{"$nulls":12},1,0,1,-2,"I","I"]
[]
[null,null,"At the end of each week the contractor shall provide the principal agent with a written record, in schedule form, reflecting the number and description of tradesmen and labourers employed by him and all subcontractors on the works each day.","Item",{"v":1,"d":"1.00"},null,{"$f":"J580*F580","v":0},null,null,1,null,5986,null,377,{"$nulls":12},1,0,1,-2,"I","I"]
[]
["1-18","108","C8. Plant record",{"$nulls":8},5987,null,379,{"$nulls":12},1,0,1,-2,"I","I"]
[]
[null,null,"At the end of each week the contractor shall provide the principal agent with a written record, in schedule form, reflecting the number, type and capacity of all plant, excluding hand tools, currently used on the works.","Item",{"v":1,"d":"1.00"},null,{"$f":"J584*F584","v":0},null,null,1,null,5987,null,379,{"$nulls":12},1,0,1,-2,"I","I"]
[]
["1-18","109","C9. Encroachment",{"$nulls":8},5988,null,379,{"$nulls":12},1,0,1,-2,"I","I"]
[]
[null,null,"During the course of the building operations, the Contractor shall be held entirely responsible for any encroachment onto any adjoining properties, buildings, etc., or servitudes and the cost of any remedial measures as required by the Principal Agent shall be borne by the Contractor.","Item",{"v":1,"d":"1.00"},null,{"$f":"J588*F588","v":0},null,null,1,null,5988,null,379,{"$nulls":12},1,0,1,-2,"I","I"]
[]
["1-19","110","C10. Method Statement",{"$nulls":8},5989,null,379,{"$nulls":12},1,0,1,-2,"I","I"]
[]
[null,null,"The Tenderer shall produce, when required to do so by the Principal Agent, a Method Statement outlining the methods of construction and labour and plant resources that he proposes to use in the execution of the Works.  Any approval given or observation made by the Principal Agent shall not relieve the Contractor of his sole responsibility to adopt the methods of construction and to provide the labour and plant resources necessary for the due and proper timeous execution of the Works.","Item",{"v":1,"d":"1.00"},null,{"$f":"J592*F592","v":0},null,null,1,null,5989,null,379,{"$nulls":12},1,0,1,-2,"I","I"]
[]
["1-19","111","C11. Unauthorised Persons/Workmen on Premises",{"$nulls":8},5990,null,379,{"$nulls":12},1,0,1,-2,"I","I"]
[]
[null,null,"The Contractor shall at all times strictly exclude all unauthorised persons from the Works and the site and shall set up notice boards to that effect.  No workmen or labourers (except security guards) are to be allowed under any circumstances to sleep or deposit any kit on the premises.  The Contractor must provide any necessary independent shelter or shed required for any labour or watchmen on site, to the approval of the Employer.","Item",{"v":1,"d":"1.00"},null,{"$f":"J596*F596","v":0},null,null,1,null,5990,null,379,{"$nulls":12},1,0,1,-2,"I","I"]
[]
["1-19","112","C12. Mode of Procedure",{"$nulls":8},5991,null,379,{"$nulls":12},1,0,1,-2,"I","I"]
[]
[null,null,"Notwithstanding anything to the contrary contained herein the Principal Agent at all times reserves the right to direct the order in which the various parts of the Contract are to be executed.  The Contractor shall give priority to any individual section or portion of the Works that, in the opinion of the Principal Agent, requires to be expedited.",{"$nulls":8},5991,null,379,{"$nulls":12},1,0,1,-2,"I","I"]
[]
[null,null,"Should it appear, in the Principal Agent's opinion, that work in any area is not being executed in accordance with the requirements of the Contract Programme, the Contractor shall provide additional manpower and resources and shall work additional overtime and do everything else required to bring the work back to programme to the satisfaction of the Principal Agent and to the Contractor's cost.","Item",{"v":1,"d":"1.00"},null,{"$f":"J602*F602","v":0},null,null,1,null,5991,null,379,{"$nulls":12},1,0,1,-2,"I","I"]
[]
["1-19","113","C13. Shop Drawings",{"$nulls":8},5992,null,379,{"$nulls":12},1,0,1,-2,"I","I"]
[]
[null,null,"The term 'shop drawings' shall mean drawings, layout drawings, diagrams, illustrations, schedules, performance charts, brochures, operating manuals and other data which are prepared by the Contractor or any Sub-Contractor, manufacturer, supplier or distributor and which illustrate the specified portion of the work.",{"$nulls":8},5992,null,379,{"$nulls":12},1,0,1,-2,"I","I"]
[]
[null,null,"The Contractor shall ensure that all shop drawings required for the Works in terms of this Contract, all Selected/Nominated Sub-Contracts and/or any Principal Agent's instruction, are prepared and submitted timeously in accordance with the following procedure:",{"$nulls":8},5992,null,379,{"$nulls":12},1,0,1,-2,"I","I"]
[]
[null,null,"(a)  Three prints of shop drawings of all fabricated work, working or setting out drawings, shop details and schedules shall be submitted to the Principal Agent, for approval.  Such work shall not be carried out until such approval has been given.",{"$nulls":8},5992,null,379,{"$nulls":12},1,0,1,-2,"I","I"]
[]
[null,null,"(b)  Shop drawings shall be submitted to the Principal Agents for approval at least two weeks prior to the date on which such approval is required in order to comply with the Contract Programme.",{"$nulls":8},5992,null,379,{"$nulls":12},1,0,1,-2,"I","I"]
[]
[null,null,"(c)  All submissions shall be prepared in accordance with the Contract drawings and specifications and/or any Principal Agents instructions and any deviation shall be specifically highlighted in writing, with a detailed explanation of the reason for such deviation, together with any cost and/or time implications.  Delays in approval of shop drawings due to non-compliance with drawings, specifications and/or Principal Agents instruction shall not constitute grounds for any claims for delay, extension of time and the like.",{"$nulls":8},5992,null,379,{"$nulls":12},1,0,1,-2,"I","I"]
[]
[null,null,"(d)  When the Principal Agent advises that shop drawings have been approved, the original transparencies of such drawings shall immediately be submitted to the Principal Agent so that the Principal Agent's stamp of approval may be appended thereto.  Thereafter, four prints of the approved shop drawings, setting out drawings and schedules shall be furnished to the Principal Agent.  As many prints of the approved shop drawings and schedules as required shall also be furnished to the Works.  No work shall be performed in accordance with drawings and/or catalogues not stamped with the Principal Agent's approval.",{"$nulls":8},5992,null,379,{"$nulls":12},1,0,1,-2,"I","I"]
[]
[null,null,"(e)  The Contractor, Sub-Contractor or Supplier, as the case may be, shall be responsible for ensuring that all dimensions affecting shop drawings conform to the dimensions of built work.",{"$nulls":8},5992,null,379,{"$nulls":12},1,0,1,-2,"I","I"]
[]
[null,null,"(f)  The Architects approval of shop drawings is limited to checking conformity with specification and shall not relieve the Contractor, Sub-Contractor or Supplier of his responsibility for design, erection or installation fit, nor does it vary his contractual or delictual obligations and liabilities.",{"$nulls":8},5992,null,379,{"$nulls":12},1,0,1,-2,"I","I"]
[]
[null,null,"(g)  Should the Contractor, Sub-Contractor or Supplier be of the opinion that corrections to shop drawings made by the Architect constitute a change to the scope of work, then he shall immediately advise the Architect in writing of this, together with the cost and/or programme implications thereof, in order to obtain the Architects directive.  (h)  One additional copy of the final approved set of 'Shop drawings' is to be submitted to the Quantity Surveyors for purposes of valuation remeasurement.","Item",{"v":1,"d":"1.00"},null,{"$f":"J622*F622","v":0},null,null,1,null,5992,null,379,{"$nulls":12},1,0,1,-2,"I","I"]
[]
["1-20","114","C14. Commodities to be New",{"$nulls":8},5993,null,379,{"$nulls":12},1,0,1,-2,"I","I"]
[]
[null,null,"All commodities, goods, articles or materials throughout the building are to be new except where re-use of existing is specified and are to be handled, stored, used, and/or fixed with care to ensure that they are in perfect condition when incorporated into the Works and thereafter properly protected so as to ensure that they are likewise in perfect condition when handed over at completion of the Work.","Item",{"v":1,"d":"1.00"},null,{"$f":"J626*F626","v":0},null,null,1,null,5993,null,379,{"$nulls":12},1,0,1,-2,"I","I"]
[]
["1-20","115","C15. Standard of Workmanship and Materials",{"$nulls":8},5994,null,379,{"$nulls":12},1,0,1,-2,"I","I"]
[]
[null,null,"In the absence of detailed specifications for any item or items, National Building Regulations, the latest applicable South African Bureau of Standards Specification, or where such does not exist, then the latest applicable British Standard Specification shall apply.","Item",{"v":1,"d":"1.00"},null,{"$f":"J630*F630","v":0},null,null,1,null,5994,null,379,{"$nulls":12},1,0,1,-2,"I","I"]
[]
["1-20","116","C16. Making Good",{"$nulls":8},5995,null,379,{"$nulls":12},1,0,1,-2,"I","I"]
[]
[null,null,"All materials and workmanship in building up, making good, etc., are to match existing and where new materials abutt existing, they are to be neatly jointed to same.",{"$nulls":8},5995,null,379,{"$nulls":12},1,0,1,-2,"I","I"]
[]
[null,null,"Making good' existing work where disturbed or damaged shall mean the provision of the necessary new material to match existing and the necessary workmanship so that a complete restoration is achieved to the satisfaction of the Principal Agent.",{"$nulls":8},5995,null,379,{"$nulls":12},1,0,1,-2,"I","I"]
[]
[null,null,"Making good' where abutting walls, etc., are removed, shall mean the provision of the necessary material and workmanship in filling the gaps to match surrounding finishes so that a complete and perfect surface, continuous with surrounding surfaces and matching of same, is obtained to the Architect's satisfaction.","Item",{"v":1,"d":"1.00"},null,{"$f":"J638*F638","v":0},null,null,1,null,5995,null,379,{"$nulls":12},1,0,1,-2,"I","I"]
[]
["1-21","117","C17. Location of Temporary Buildings and Temporary Services",{"$nulls":8},5996,null,379,{"$nulls":12},1,0,1,-2,"I","I"]
[]
[null,null,"The Contractor shall provide all necessary temporary works, including temporary roads, tracks, crossings, hardstanding and services, hoardings, dust screens, tunnelling, etc., required for his own and Sub-Contractors use during the construction and maintenance period.  There is no guarantee given or implied that Site conditions will be such that the Contractor will be able to erect such temporary works, roads, hardhats, offices, stores and temporary accommodation within the site boundaries and it shall be the Contractor's responsibility to adopt whatever measures he deems necessary in this regard and to obtain all necessary permission and pay all costs in connection therewith. The location of all temporary works, roads, hard-stands, offices, temporary stores, etc on site are deemed to be entirely at the Contractor's risk. Should there be the requirement to relocate any of the above mentioned items",{"$nulls":8},5996,null,379,{"$nulls":12},1,0,1,-2,"I","I"]
[null,null,"from established locations, the cost shall be borne entirely by the Contractor.",{"$nulls":8},5996,null,379,{"$nulls":12},1,0,1,-2,"I","I"]
[]
[]
[null,null,"The Tenderer shall ascertain all requirements for the Works as a whole, in respect of access and egress to the site, including forming a temporary location for site establishment, etc. Any requirements, including creating and forming entry gates, hardstands, etc.; shall be provided, including neccassary hoardings, etc.; and all temporary works shall be removed and made good on completion.","Item",{"v":1,"d":"1.00"},null,{"$f":"J646*F646","v":0},null,null,1,null,5996,null,379,{"$nulls":12},1,0,1,-2,"I","I"]
[]
["1-21","118","C18. Removal and Making Good of Temporary Works, etc, on Completion",{"$nulls":8},5997,null,379,{"$nulls":12},1,0,1,-2,"I","I"]
[]
[null,null,"The Contractor shall remove (except where specifically stated otherwise) all temporary Works, roads, services and the like used for this Contract and shall make good to the entire satisfaction of the Principal Agent any damage resulting therefrom.","Item",{"v":1,"d":"1.00"},null,{"$f":"J650*F650","v":0},null,null,1,null,5997,null,379,{"$nulls":12},1,0,1,-2,"I","I"]
[]
["1-21","119","C19. Overloading",{"$nulls":8},5998,null,379,{"$nulls":12},1,0,1,-2,"I","I"]
[]
[null,null,"The Tenderer shall prior to submitting his tender determine from the Engineers any constraints and limitations in respect of Works to be executed, which have load limitations.",{"$nulls":8},5998,null,379,{"$nulls":12},1,0,1,-2,"I","I"]
[]
[null,null,"The Contractor shall take all necessary steps to ensure that no damage occurs due to overloading of any portion of the Works.  The Contractor shall submit details of his proposed loading, storage, plant erection, etc., to the Principal Agents for their approval prior to proceeding with such loading, storing, erecting or executing work and shall comply with and pay for the Engineers requirements in connection with the provision of temporary support work, etc.",{"$nulls":8},5998,null,379,{"$nulls":12},1,0,1,-2,"I","I"]
[]
[null,null,"Any damage caused by the Works by overloading shall be made good by the Contractor at his sole expense.  Notwithstanding any approval given by the Principal Agent or Engineer, the Contractor shall be entirely responsible for damage caused to the Works by overloading which damage shall be made good by the Contractor at his sole expense.","Item",{"v":1,"d":"1.00"},null,{"$f":"J658*F658","v":0},null,null,1,null,5998,null,379,{"$nulls":12},1,0,1,-2,"I","I"]
[]
["1-22","120","C20. Tender Sum to be Fully Inclusive",{"$nulls":8},5999,null,379,{"$nulls":12},1,0,1,-2,"I","I"]
[]
[null,null,"The Tender Sum is deemed to be the fully inclusive price for the finished work described and is deemed to include inter alia for:",{"$nulls":8},5999,null,379,{"$nulls":12},1,0,1,-2,"I","I"]
[]
[null,null,"-  The supply of all materials",{"$nulls":8},5999,null,379,{"$nulls":12},1,0,1,-2,"I","I"]
[]
[null,null,"-  Labour of every description including additional costs incurred in working overtime, weekends, public holidays, etc., to meet the stipulated programme dates.",{"$nulls":8},5999,null,379,{"$nulls":12},1,0,1,-2,"I","I"]
[]
[null,null,"-  All making, transport, conveying, cartage, carriage and delivery, etc.",{"$nulls":8},5999,null,379,{"$nulls":12},1,0,1,-2,"I","I"]
[]
[null,null,"-  Taking delivery, unloading, storing, unpacking, hoisting or lowering, settings, fixing and building into positions, cutting and waste, templates, patterns and models.",{"$nulls":8},5999,null,379,{"$nulls":12},1,0,1,-2,"I","I"]
[]
[null,null,"-  Provision and maintenance of all plant, equipment, machines, trucks and other vehicles, tackle, tools, staging, sheds, stores and temporary works necessary for the due and proper performance of the Contract Works, establishment charges and all fuel, operating costs and depreciation pertaining to plant, equipment, etc.  -  All applicable import taxes and duties.",{"$nulls":8},5999,null,379,{"$nulls":12},1,0,1,-2,"I","I"]
[]
[null,null,"-  Overheads and profit",{"$nulls":8},5999,null,379,{"$nulls":12},1,0,1,-2,"I","I"]
[]
[null,null,"-  All obligations arising out of the Bills of Quantities, and all costs and charges deemed necessary for complying with the terms and conditions herein.  All charges required by the Contractor in connection with Preliminary and General, site establishment and the like.","Item",{"v":1,"d":"1.00"},null,{"$f":"J676*F676","v":0},null,null,1,null,5999,null,379,{"$nulls":12},1,0,1,-2,"I","I"]
[]
["1-22","121","C21. Cost of Claims",{"$nulls":8},6000,null,379,{"$nulls":12},1,0,1,-2,"I","I"]
[]
[null,null,"All costs incurred by the Contractor in the preparation of claims to the satisfaction of the Principal Agent and/or Quantity Surveyor shall be borne by the Contractor.","Item",{"v":1,"d":"1.00"},null,{"$f":"J680*F680","v":0},null,null,1,null,6000,null,379,{"$nulls":12},1,0,1,-2,"I","I"]
[]
["1-22","122","C22. Media Releases",{"$nulls":8},6001,null,379,{"$nulls":12},1,0,1,-2,"I","I"]
[]
[null,null,"All rights of publication of articles in the media, together with any advertising relating to, or in any way connected with this project shall vest in the Employer.  The Contractor, together with his Sub-Contractor shall not, without the written consent of the Principal Agent, cause any statement or advertisement to be printed, screened or aired by the media.","Item",{"v":1,"d":"1.00"},null,{"$f":"J684*F684","v":0},null,null,1,null,6001,null,379,{"$nulls":12},1,0,1,-2,"I","I"]
[]
["1-22","123","C23. Guarantees and Maintenance Manuals",{"$nulls":8},6002,null,379,{"$nulls":12},1,0,1,-2,"I","I"]
[]
[null,null,"Where warranties for materials and/or workmanship are called for, the contractor shall obtain a written warrenty, addressed to the employer, from the firm supplying the materials and/or doing the work and shall deliver same to the Principal Agent on certified completion of contract. The warranty shall state that workmanship, materials and installation are warranteed for a specified period from the date of final completion and that any defects that may arise during the specified period shall be made good at the expense of the firm supplying the materials and/or doing the work, upon written notice to do so. The warranty will not be enforced if the work is damaged by defects in the construction of the building in which case the responsibility shall rest entirely with the contractor.",{"$nulls":8},6002,null,379,{"$nulls":12},1,0,1,-2,"I","I"]
[]
[null,null,"The Contractor shall ensure that all warranties and guarantees received are fully ceded to the Employer on Final Completion, failing which the release of the Construction Guarantee will be withheld until this is satisfactorily completed.","Item",{"v":1,"d":"1.00"},null,{"$f":"J690*F690","v":0},null,null,1,null,6002,null,379,{"$nulls":12},1,0,1,-2,"I","I"]
[]
["1-23","124","C24. Occupational Health and Safety Act",{"$nulls":8},6003,null,379,{"$nulls":12},1,0,1,-2,"I","I"]
[]
[null,null,"The Contractor shall comply with the provisions of the Occupational Health and Safety Act, Act 85 of 1993 and any amendments thereto, and shall comply with the arrangements relating thereto. In addition, the Contractor shall observe the recommendations of the National Occupations Safety Association and the BIFSA recommended loss control procedures.",{"$nulls":8},6003,null,379,{"$nulls":12},1,0,1,-2,"I","I"]
[]
[null,null,"The Contractor shall comply with and sign the Occupational Health and Safety Site Specific Specification documentation as appended in this Bills of Quantities (Annexure E). The Contractor shall also comply with the Enviromental Management Plan and also make sure that all regulations and bye-laws are complied with.","Item",{"v":1,"d":"1.00"},null,{"$f":"J696*F696","v":0},null,null,1,null,6003,null,379,{"$nulls":12},1,0,1,-2,"I","I"]
[]
["1-23","125","C25. Direct and Separate Contracts",{"$nulls":8},6004,null,379,{"$nulls":12},1,0,1,-2,"I","I"]
[]
[null,null,"The Employer shall have the right to employ other Contractors (hereinafter referred to as 'Direct Contractors') to execute any special or other works whether contained in this Agreement or not, concurrently with the work being executed under this Agreement.    In addition the Employer shall have the right to send his own employees or Direct Contractors on to the Works for the purpose of installing end-user/tenant installations and requirements and any other special installations and systems.",{"$nulls":8},6004,null,379,{"$nulls":12},1,0,1,-2,"I","I"]
[]
[null,null,"The Contractor is to allow against the relevant items as described in this Clause for any costs and no additional claims will be entertained due to the presence on the Works of such Direct Contractors, Employer's employees or end-users/ tenants.",{"$nulls":8},6004,null,379,{"$nulls":12},1,0,1,-2,"I","I"]
[]
[null,null,"Should the Contractor be required to make good after such Direct Contractors, Employer's employees or end-users/Tenants or to carry out jobbing, etc., the Contractor will be recompensated for any costs incurred by him in terms of Clause 32 of the Agreement.",{"$nulls":8},6004,null,379,{"$nulls":12},1,0,1,-2,"I","I"]
[]
[null,null,"The Contractor shall not be entitled to any percentage, profit or discount on the value of any work executed by 'Direct Contractors' but shall nevertheless allow these Direct Contractors and the Employer's employees to have access to the Works, allocate reasonable space in the building for the storage of their materials, tools and equipment and co-ordinate via the Principal Agent the work of such Direct Contractors as necessary, all to the satisfaction of the Principal Agent.   The Contractor shall allow the Direct Contractors, etc., to use, free of charge, the latrine accommodation and water and power supply on the site and shall not in any way hinder or prevent the execution of their work.",{"$nulls":8},6004,null,379,{"$nulls":12},1,0,1,-2,"I","I"]
[]
[null,null,"The Contractor is advised that the following works inter alia, but not limited to, will be carried out by the Employer and/or his Direct Contractors and/or the Employer's employees and/or Tenants:",{"$nulls":8},6004,null,379,{"$nulls":12},1,0,1,-2,"I","I"]
[]
[null,null,"Employers Furniture and Fittings",{"$nulls":8},6004,null,379,{"$nulls":12},1,0,1,-2,"I","I"]
[]
[null,null,"Computer Installations Specialist Lighting other than that provided by the Electrical Sub-contractor",{"$nulls":8},6004,null,379,{"$nulls":12},1,0,1,-2,"I","I"]
[]
[null,null,"Installations carried out by the Employer in the Normal course of his business",{"$nulls":8},6004,null,379,{"$nulls":12},1,0,1,-2,"I","I"]
[]
[null,null,"Building Management Systems / Security Control Systems",{"$nulls":8},6004,null,379,{"$nulls":12},1,0,1,-2,"I","I"]
[]
[null,null,"Raised Access Flooring","Item",{"v":1,"d":"1.00"},null,{"$f":"J718*F718","v":0},null,null,1,null,6004,null,379,{"$nulls":12},1,0,1,-2,"I","I"]
[]
["1-24","126","C26. Preferential Procurement",{"$nulls":8},6005,null,379,{"$nulls":12},1,0,1,-2,"I","I"]
[]
[null,null,"The Contractor shall comply with the provisions of the Preferential Procuremnt Regulations 2017.","Item",{"v":1,"d":"1.00"},null,{"$f":"J722*F722","v":0},null,null,1,null,6005,null,379,{"$nulls":12},1,0,1,-2,"I","I"]
[]
["1-24","127","C27. Contract Price Adjustment Provisions",{"$nulls":8},6006,null,379,{"$nulls":12},1,0,1,-2,"I","I"]
[]
[null,null,"Bidders are advised that this Contract shall be a Fixed Price Contract and shall not be subject to the Contract Price Adjustment Provisions (CPAP) or any other escalation formula and therefore the bidders are to allow for any increases (except any variations in the rate of Value Added Tax) in cost of labour, materials, transport, etc.","Item",{"v":1,"d":"1.00"},null,{"$f":"J726*F726","v":0},null,null,1,null,6006,null,379,{"$nulls":12},1,0,1,-2,"I","I"]
[]
["1-24","128","C28. Co-operation of Contractor for Cost Management",{"$nulls":8},6007,null,379,{"$nulls":12},1,0,1,-2,"I","I"]
[]
[null,null,"It is specifically agreed that the contractor accepts the obligation of assisting the principal agent in implementing proper cost management. The contractor will be advised by the principal agent of all cost management procedures which will be implemented to ensure that the final building cost does not exceed the budget. The principal agent undertakes to make available to the contractor all budgetary allowances and cost assessments/reports to enable the proper procedure to be implemented and the contractor shall attend all cost plan review and cost management meetings. The contractor undertakes to extend these procedures, as necessary, to all subcontractors.","Item",{"v":1,"d":"1.00"},null,{"$f":"J730*F730","v":0},null,null,1,null,6007,null,379,{"$nulls":12},1,0,1,-2,"I","I"]
[]
["1-24","129","C29. Confidentiality",{"$nulls":8},6008,null,379,{"$nulls":12},1,0,1,-2,"I","I"]
[]
[null,null,"The contractor undertakes to maintain in confidence any and all information regarding this project and shall obtain appropriate similar undertakings from all subcontractors and suppliers. Such information shall not be used in any way except in connection with the execution of the works. No information regarding this project shall be published or disclosed without prior written consent of the employer.","Item",{"v":1,"d":"1.00"},null,{"$f":"J734*F734","v":0},null,null,1,null,6008,null,379,{"$nulls":12},1,0,1,-2,"I","I"]
[]
["1-25","130","C30. Testing of Windows for Watertightness",{"$nulls":8},6009,null,379,{"$nulls":12},1,0,1,-2,"I","I"]
[]
[null,null,"Each window shall be tested for watertightness with water sprayed on by means of a 20mm hosepipe using adequate pressure. If in the opinion of the principal agent, the pressure proves to be inadequate, the the pressure in the hosepipe shall be boosted by means of compressed air or other approved means.","Item",{"v":1,"d":"1.00"},null,{"$f":"J738*F738","v":0},null,null,1,null,6009,null,379,{"$nulls":12},1,0,1,-2,"I","I"]
[]
["1-25","131","C31. Notes to tenderers",{"$nulls":8},6010,null,379,{"$nulls":12},1,0,1,-2,"I","I"]
[]
[null,null,"Items which the Tenderer wishes to price in order to provide for the due observance of the requirements of the \"Notes to Tenderers\" outlines at the beginning of this Bill may be priced under this item.","Item",{"v":1,"d":"1.00"},null,{"$f":"J742*F742","v":0},null,null,1,null,6010,null,379,{"$nulls":12},1,0,1,-2,"I","I"]
[]
["1-25","132","C32. Special conditions of contract",{"$nulls":8},6011,null,379,{"$nulls":12},1,0,1,-2,"I","I"]
[]
[null,null,"Items which the Tenderer wishes to price in relation to any Special Conditions of Contract that have been annexed to these Bill of Quantities shall be priced under this item.","Item",{"v":1,"d":"1.00"},null,{"$f":"J746*F746","v":0},null,null,1,null,6011,null,379,{"$nulls":12},1,0,1,-2,"I","I"]
[]
[]
[null,null,"Bill Total",{"$nulls":4},{"$f":"SUM(G8:G748)","v":0}]
[]
[]
[null,null,"Section Total ",{"$nulls":4},{"$f":"SUM(G4:G748)","v":0}]
[]
[]
[null,null,"SECTION NO. 2 : ALTERATIONS",{"$nulls":23},1,13,1,3,"H"]
[]
[]
[null,null,"BILL NO.1 : ALTERATIONS",{"$nulls":23},1,13,1,3,"H"]
[]
["2-2",null,"The Tenderer is referred to the relevant clauses in the separate document \"Model Preambles for Trades\" and to the Supplementary Preambles incorporated at the front of these Bills of Quantities as well as hereunder.",{"$nulls":8},4725,null,26100,{"$nulls":12},1,13,1,3,"C","0"]
[]
["2-2",null,"SUPPLEMENTARY PREAMBLES",{"$nulls":8},3287,null,26100,{"$nulls":12},1,13,1,3,"H","0"]
[]
["2-2",null,"General:",{"$nulls":8},3288,null,26600,{"$nulls":12},1,13,1,3,"S","0"]
[]
["2-2",null,"The contractor shall carry out the whole of the works with as little mess and noise as possible and with a minimum of disturbance to adjoining premises and their tenants.  He shall provide proper protection and provide, erect and remove when directed, any temporary tarpaulins that may be necessary during the progress of the works, all to the satisfaction of the principal agent.",{"$nulls":8},3289,null,26700,{"$nulls":12},1,13,1,3,"C","0"]
[]
["2-2",null,"Water supply pipes and other piping that may be encountered and found necessary to disconnect or cut, shall be effectually stopped off or grubbed up and removed, and any new connections that may be necessary shall be made with proper fittings, to the satisfaction of the principal agent.",{"$nulls":8},3290,null,26800,{"$nulls":12},1,13,1,3,"C","0"]
[]
["2-2",null,"Doors, fanlights, fittings, frames, linings, etc which are to be re-used shall be thoroughly overhauled before refixing including taking off, easing and rehanging, cramping up, re-wedging as required and making good cramps, dowels, etc, and easing, oiling, adjusting and repairing ironmongery as necessary, replacing any glass damaged in removal or subsequently and stopping up all nail and screw holes with tinted plastic wood to match timber, unless otherwise described. Re-painting or re-varnishing is given separately.",{"$nulls":8},3291,null,26900,{"$nulls":12},1,13,1,3,"C","0"]
[]
["2-2",null,"Prices for taking out of doors, windows, etc shall include for removal of all beads, architraves, ironmongery, etc.",{"$nulls":8},3292,null,27000,{"$nulls":12},1,13,1,3,"C","0"]
[]
["2-2",null,"Prices for taking out and removing doors and frames shall include for removing door stops, cabin hooks, etc and making good floor and wall finishes to match existing.",{"$nulls":8},3293,null,27100,{"$nulls":12},1,13,1,3,"C","0"]
[]
["2-2",null,"With regard to building up of openings in existing walls, cement screeds and pavings, granolithic, tops of walls, etc, shall be levelled and prepared for raising of brickwork.",{"$nulls":8},3294,null,27200,{"$nulls":12},1,13,1,3,"C","0"]
[]
["2-3",null,"Where existing openings are given in number as built up, the existing surfaces all round shall be prepared as necessary, brickwork or blockwork properly toothed and bonded to existing or tied to concrete with 30 x 1,6mm galvanised hoop iron ties to every third course, wedged up to underside of existing lintels and finishes shall be made good on both sides as described.",{"$nulls":8},3295,null,27200,{"$nulls":12},1,13,1,3,"C","0"]
[]
["2-3",null,"Making good of finishes shall include making good of the brick and concrete surfaces onto which the new finishes are applied, where necessary.",{"$nulls":8},3296,null,27300,{"$nulls":12},1,13,1,3,"C","0"]
[]
["2-3",null,"The contractor will be required to take all dimensions affecting the existing buildings on the site and he will be held solely responsible for the accuracy of all such dimensions where used in the manufacture of new items (doors, windows, fittings, etc).",{"$nulls":8},3297,null,27400,{"$nulls":12},1,13,1,3,"C","0"]
[]
["2-3",null,"Where items of value are removed, the Contractor shall hand these over to the client/school. Disposal/removal off-site of items shall only be allowed once the Contractor has obtained permission from the client/school.",{"$nulls":8},6015,null,27400,{"$nulls":12},1,13,1,3,"C","0"]
[]
["2-3",null,"Removal or demolition of existing work comprising or containing asbestos products:",{"$nulls":8},3298,null,26600,{"$nulls":12},1,13,1,3,"S","0"]
[]
["2-3",null,"Where existing works comprising or containing asbestos products are removed or demolished, the contractor shall ensure that such work is conducted in accordance with the provisions of the Asbestos Regulations promulgated by Government Notice No. R.155 of 10 February 2002, as amended, as provided for in clause 12 (9) of the Construction Regulations.  Such work shall be carried out by a company registered with the Department of Labour as an Asbestos Contractor.  Prior to the commencement of such works, a plan of work approved by an approved Asbestos Inspection Authority shall be submitted to the Provincial Director/Provincial Executive Manager.",{"$nulls":8},3299,null,27400,{"$nulls":12},1,13,1,3,"C","0"]
[]
["2-3",null,"The temporary barriers, screens and supports measured hereafter are those that are specified and indicated on drawings only.  The contractor shall provide all other barriers, screens and supports he deems necessary and shall allow for the cost thereof under the relevant items in the Preliminaries Bill.",{"$nulls":8},3301,null,26600,{"$nulls":12},1,13,1,3,"C","0"]
[]
["2-3",null,"REMOVAL OF EXISTING WORK",{"$nulls":8},3302,null,1132,{"$nulls":12},1,13,1,3,"H","0"]
[]
["2-3",null,"Breaking up and removing reinforced concrete including cutting off and removing reinforcement:",{"$nulls":8},4820,null,1132,{"$nulls":12},1,13,1,3,"S","0"]
[]
["2-3","1","Surface beds not exceeding 150mm thick.","m²",{"v":327,"d":"327.00"},null,{"$f":"J796*F796","v":0},null,null,327,null,4821,null,1132,{"$nulls":12},1,13,1,3,"I","2"]
[]
["2-4",null,"Taking out and removing piping, sanitary fittings, etc, including cutting off as necessary, disconnecting piping from fittings and making good floor and wall finishes (paintwork measured elsewhere):",{"$nulls":8},4692,null,1137,{"$nulls":12},1,13,1,3,"S","0"]
[]
["2-4","2","WC.","No",{"v":24,"d":"24.00"},null,{"$f":"J800*F800","v":0},null,null,24,null,4693,null,1137,{"$nulls":12},1,13,1,3,"I","N"]
[]
["2-4","3","Urinal.","No",{"v":3,"d":"3.00"},null,{"$f":"J802*F802","v":0},null,null,3,null,4694,null,1137,{"$nulls":12},1,13,1,3,"I","N"]
[]
["2-4","4","WHB.","No",{"v":16,"d":"16.00"},null,{"$f":"J804*F804","v":0},null,null,16,null,4695,null,1137,{"$nulls":12},1,13,1,3,"I","N"]
[]
["2-4",null,"Taking out and removing doors, etc including removing all ironmongery and preparing opening to receive new doors and frames (measured elsewhere):",{"$nulls":8},3303,null,1137,{"$nulls":12},1,13,1,3,"S","0"]
[]
["2-4","5","Timber single door and frame 880 x 1800mm high from half brick wall.","No",{"v":20,"d":"20.00"},null,{"$f":"J808*F808","v":0},null,null,20,null,4702,null,1137,{"$nulls":12},1,13,1,3,"I","N"]
[]
["2-4","6","Timber single door and frame 813 x 2032mm high from one brick wall.","No",{"v":26,"d":"26.00"},null,{"$f":"J810*F810","v":0},null,null,26,null,3306,null,1137,{"$nulls":12},1,13,1,3,"I","N"]
[]
["2-4",null,"Taking out and removing steel windows, frames, glazing, etc including preparing, building up and breaking out openings as necessary to receive new windows and glazing (new windows & glazing elsewhere):",{"$nulls":8},4638,null,1137,{"$nulls":12},1,13,1,3,"S","0"]
[]
["2-4","7","Steel window size 889 x 1250mm high or similar from one brick wall.","No",{"v":44,"d":"44.00"},null,{"$f":"J814*F814","v":0},null,null,44,null,4245,null,1137,{"$nulls":12},1,13,1,3,"I","N"]
[]
["2-4","8","Steel window size 889 x 854mm high or similar from one brick wall.","No",{"v":56,"d":"56.00"},null,{"$f":"J816*F816","v":0},null,null,56,null,4637,null,1137,{"$nulls":12},1,13,1,3,"I","N"]
[]
["2-4",null,"Taking down and removing roofs, floors, panelling, ceilings, partitions, etc.:",{"$nulls":8},4246,null,32100,{"$nulls":12},1,13,1,3,"S","0"]
[]
["2-4","9","Pitched roof  6.0 x 5.3 x 2.5m high overall, of corrugated  sheet steel covering, soffit covering, fascias, barge boards, gutters and rainwater pipes (timber roof construction to remain unless otherwise stated by the Engineer upon inspection). (Block E: Ablution)","No",{"v":1,"d":"1.00"},null,{"$f":"J820*F820","v":0},null,null,1,null,6046,null,1100,{"$nulls":12},1,13,1,3,"I","N"]
[]
["2-4","10","Gypsum plasterboard ceilings, including cornices, timber brandering, etc.","m²",{"v":704,"d":"704.00"},null,{"$f":"J822*F822","v":0},null,null,704,null,4247,null,32500,{"$nulls":12},1,13,1,3,"I","2"]
[]
["2-4","11","Drywall partitioning 2.8m high including doors, frames. Glazed borrowed lights, etc.","m",{"v":22,"d":"22.00"},null,{"$f":"J824*F824","v":0},null,null,22,null,6567,null,32500,{"$nulls":12},1,13,1,3,"I","1"]
[]
["2-4",null,"Taking out and removing sundry joinery work, appliances, kitchen fittings, including making good holes in plaster, brick walls, etc.:",{"$nulls":8},4248,null,32900,{"$nulls":12},1,13,1,3,"S","0"]
[]
["2-4","12","Timber classroom storage cupboard.","No",{"v":8,"d":"8.00"},null,{"$f":"J828*F828","v":0},null,null,8,null,4250,null,33300,{"$nulls":12},1,13,1,3,"I","N"]
[]
["2-5",null,"Taking out/off and removing sundry metalwork:",{"$nulls":8},3319,null,32200,{"$nulls":12},1,13,1,3,"S","0"]
[]
["2-5","13","Steel security gate 900 x 2100mm high and preparing opening to receive new gate.","No",{"v":16,"d":"16.00"},null,{"$f":"J832*F832","v":0},null,null,16,null,3320,null,32200,{"$nulls":12},1,13,1,3,"I","N"]
[]
["2-5","14","Existing 1.8m high perimeter security fence including all gates, posts, stays, bases, footings, etc., complete and backfilling to holes with suitable material where necessary.","m",{"v":714,"d":"714.00"},null,{"$f":"J834*F834","v":0},null,null,714,null,6077,null,32200,{"$nulls":12},1,13,1,3,"I","1"]
[]
["2-5",null,"Hacking up/off and removing granolithic, screeds, plaster, etc from concrete or brickwork and preparing surfaces for new screed, plaster, tile finishes, etc:",{"$nulls":8},3321,null,35400,{"$nulls":12},1,13,1,3,"S","0"]
[]
["2-5","15","30mm Granolithic/cement screed from concrete floors.","m²",{"v":894,"d":"894.00"},null,{"$f":"J838*F838","v":0},null,null,894,null,3322,null,35400,{"$nulls":12},1,13,1,3,"I","2"]
[]
["2-5",null,"Taking out and removing ironmongery:",{"$nulls":8},3325,null,35400,{"$nulls":12},1,13,1,3,"S","0"]
[]
["2-5","16","Steel chalkboard 4800 x 1200mm high including preparing brickwork for new chalkboard (measured elsewhere).","No",{"v":8,"d":"8.00"},null,{"$f":"J842*F842","v":0},null,null,8,null,3326,null,35400,{"$nulls":12},1,13,1,3,"I","N"]
[]
["2-5","17","Softboard pinning board including timber surround 2400 x 1200mm high overall including preparing brickwork for new pinning board (measured elsewhere).","No",{"v":8,"d":"8.00"},null,{"$f":"J844*F844","v":0},null,null,8,null,3318,null,1137,{"$nulls":12},1,13,1,3,"I","N"]
[]
["2-5",null,"DEMOLITION AND REMOVAL OF STRUCTURES CONTAINING ASBESTOS",{"$nulls":8},3593,null,1137,{"$nulls":12},1,13,1,3,"H","0"]
[]
["2-5","18","Allow for compliance with the relevant laws and regulations pertaining to the removal of structures containing asbestos cement products and disposal thereof.","Item",{"v":1,"d":"1.00"},null,{"$f":"J848*F848","v":0},null,null,1,null,3592,null,1137,{"$nulls":12},1,13,1,3,"I","I"]
[]
["2-5",null,"Taking off and removing existing double pitched Asbestos roof including all timber trusses, purlins, wall plates, roof sheeting, fascias, barge boards, gutters and rainwater goods:",{"$nulls":8},3307,null,1137,{"$nulls":12},1,13,1,3,"S","0"]
[]
["2-5","19","Double pitched roof to single storey L-shaped building approximately 55.0 x 9.5 x 2.5m high overall. (Block A: Admin)","No",{"v":1,"d":"1.00"},null,{"$f":"J852*F852","v":0},null,null,1,null,4670,null,1137,{"$nulls":12},1,13,1,3,"I","N"]
[]
["2-5","20","Double pitched roof to single storey building approximately 9.3 x 6.3 x 2.5m high overall. (Block B: Ablution)","No",{"v":1,"d":"1.00"},null,{"$f":"J854*F854","v":0},null,null,1,null,3308,null,1137,{"$nulls":12},1,13,1,3,"I","N"]
[]
["2-5","21","Mono pitched roof to single storey building approximately 10.6 x 4.6 x 2.5m high overall. (Block C: Caretakers/Store)","No",{"v":1,"d":"1.00"},null,{"$f":"J856*F856","v":0},null,null,1,null,4284,null,1137,{"$nulls":12},1,13,1,3,"I","N"]
[]
["2-5","22","Mono pitched roof to single storey building approximately 6.0 x 5.3 x 2.5m high overall. (Block F: Ablution)","No",{"v":1,"d":"1.00"},null,{"$f":"J858*F858","v":0},null,null,1,null,4834,null,1137,{"$nulls":12},1,13,1,3,"I","N"]
[]
["2-6","23","Double pitched roof to single storey building approximately 18.0 x 8.6 x 2.5m high overall. (Block G: X2 Classroom Block)","No",{"v":1,"d":"1.00"},null,{"$f":"J860*F860","v":0},null,null,1,null,6543,null,1137,{"$nulls":12},1,13,1,3,"I","N"]
[]
["2-6","24","Double pitched roof to single storey building approximately 15.5 x 8.6 x 2.5m high overall. (Block L: X2 Classroom Block)","No",{"v":1,"d":"1.00"},null,{"$f":"J862*F862","v":0},null,null,1,null,6544,null,1137,{"$nulls":12},1,13,1,3,"I","N"]
[]
["2-6","25","Mono pitched roof to single storey building approximately 8.6 x 6.8 x 2.5m high overall. (Block N: Caretaker's Residence Block)","No",{"v":1,"d":"1.00"},null,{"$f":"J864*F864","v":0},null,null,1,null,6545,null,1137,{"$nulls":12},1,13,1,3,"I","N"]
[]
["2-6","26","Double pitched roof to single storey building approximately 5.2 x 4.3 x 2.5m high overall. (Block P: Store)","No",{"v":1,"d":"1.00"},null,{"$f":"J866*F866","v":0},null,null,1,null,6546,null,1137,{"$nulls":12},1,13,1,3,"I","N"]
[]
["2-6","27","Mono pitched roof to single storey building approximately 4.3 x 3.6 x 2.5m high overall. (Block Q: Ablution)","No",{"v":1,"d":"1.00"},null,{"$f":"J868*F868","v":0},null,null,1,null,6547,null,1137,{"$nulls":12},1,13,1,3,"I","N"]
[]
["2-6","28","Mono pitched roof to single storey building approximately 3.9 x 2.1 x 2.5m high overall. (Block I: Store)","No",{"v":1,"d":"1.00"},null,{"$f":"J870*F870","v":0},null,null,1,null,6548,null,1137,{"$nulls":12},1,13,1,3,"I","N"]
[]
["2-6",null,"Demolish and remove complete buildings comprising of reinforced concrete surface bed, external and internal walls, roofing on timber trusses, timber doors in steel frames, glazed windows, etc  and including foundation brickwork and reinforced concrete trip footing, including filling up holes and trenches in ground with suitable fill material:",{"$nulls":8},4831,null,1137,{"$nulls":12},1,13,1,3,"S","0"]
[]
["2-6","29","Single storey asbestos building with mono pitched roof 8m long x 8m wide on plan and 3.10m high at eaves. (Block H: X1 Class)","No",{"v":1,"d":"1.00"},null,{"$f":"J874*F874","v":0},null,null,1,null,4832,null,1137,{"$nulls":12},1,13,1,3,"I","N"]
[]
["2-6","30","Single storey asbestos building with double pitched roof 8m long x 8m wide on plan and 3.10m high at eaves. (Block M: X1 Classroom)","No",{"v":1,"d":"1.00"},null,{"$f":"J876*F876","v":0},null,null,1,null,4833,null,1137,{"$nulls":12},1,13,1,3,"I","N"]
[]
["2-6",null,"MAKING GOOD OF FINISHES, ETC",{"$nulls":8},4643,null,41900,{"$nulls":12},1,13,1,3,"H","0"]
[]
["2-6",null,"Making good cement plaster:",{"$nulls":8},4646,null,43400,{"$nulls":12},1,13,1,3,"S","0"]
[]
["2-6","31","Internal walls in patches.","m²",{"v":742,"d":"742.00"},null,{"$f":"J882*F882","v":0},null,null,742,null,4647,null,43500,{"$nulls":12},1,13,1,3,"I","2"]
[]
["2-6","32","External walls in patches.","m²",{"v":76,"d":"76.00"},null,{"$f":"J884*F884","v":0},null,null,76,null,4735,null,43500,{"$nulls":12},1,13,1,3,"I","2"]
[]
["2-6",null,"Making good face brickwork:",{"$nulls":8},4837,null,43500,{"$nulls":12},1,13,1,3,"S","0"]
[]
["2-6","33","Clean face brick walls with approved cleaning agent including making good cracked joints, mortar, etc.","m²",{"v":876,"d":"876.00"},null,{"$f":"J888*F888","v":0},null,null,876,null,4838,null,43500,{"$nulls":12},1,13,1,3,"I","2"]
[]
["2-7",null,"BUDGETARY ALLOWANCES",{"$nulls":8},6036,null,43500,{"$nulls":12},1,13,1,3,"H","0"]
[]
["2-7",null,"The following budgetary allowances cover work which is not fully defined at tender date and which is intended to be executed by the contractor and/or specialist sub-contractors and will be measured at completion and priced in terms of the contract. Tenders are to make the necessary allowances for this scope of work as no claim for additional prliminaries, etc., will be entertained once this scope of work is realised. The amounts shown shall be used as directed by the Principal Agent and shall be deducted in whole or in part if not required:",{"$nulls":8},6037,null,43500,{"$nulls":12},1,13,1,3,"S","0"]
[]
["2-7","34","Provide the amount of R108,000.00 (One Hundred and Eight Thousand Rand) for Sundry Alteration Work not anticipated at Tender.","Item",null,{"v":108000,"d":"108,000.00"},{"$f":"J894*F894","v":{"v":108000,"d":"108,000.00"}},null,null,1,null,6038,null,43500,{"$nulls":12},1,13,1,3,"I","I"]
[]
[]
[null,null,"Bill Total",{"$nulls":4},{"$f":"SUM(G760:G896)","v":{"v":108000,"d":"108,000.00"}}]
[]
[]
[]
[null,null,"BILL NO.2 : EARTHWORKS",{"$nulls":23},1,13,2,6,"H"]
[]
["2-9",null,"The Tenderer is referred to the relevant clauses in the separate document \"Model Preambles for Trades\" and to the Supplementary Preambles incorporated at the front of these Bills of Quantities as well as hereunder.",{"$nulls":8},4736,null,0,{"$nulls":12},1,13,2,6,"C","0"]
[]
["2-9",null,"SUPPLEMENTARY PREAMBLES",{"$nulls":8},4737,null,45600,{"$nulls":12},1,13,2,6,"H","0"]
[]
["2-9",null,"Filling",{"$nulls":8},4738,null,47300,{"$nulls":12},1,13,2,6,"S","0"]
[]
["2-9",null,"Notwithstanding the reference to prescribed multiple handling in clause 1, Earthworks, of the Standard System of Measuring Building Work, prices for filling and backfilling shall include for all selection and any necessary multiple handling of material.",{"$nulls":8},4739,null,47400,{"$nulls":12},1,13,2,6,"C","0"]
[]
["2-9",null,"Testing",{"$nulls":8},4740,null,47700,{"$nulls":12},1,13,2,6,"S","0"]
[]
["2-9",null,"Prices for filling are to include for all necessary density tests in accordance with SABS 1200D except for additional specialist testing as instructed by the Engineer.",{"$nulls":8},4741,null,47800,{"$nulls":12},1,13,2,6,"C","0"]
[]
["2-9",null,"Proving existing services on site:",{"$nulls":8},4742,null,51520,{"$nulls":12},1,13,2,6,"S","0"]
[]
["2-9",null,"The Contractor is to allow for the cost for proving the existence of any unknown services (sewer, stormwater, electricity, etc) running through the site. The Contractor is also to allow for the cost for proving any known services that may not be located where indicated on Municipal plans.",{"$nulls":8},4743,null,51520,{"$nulls":12},1,13,2,6,"C","0"]
[]
["2-9","1","Proving of services as per the Supplementary Preambles above.","Item",{"v":1,"d":"1.00"},null,{"$f":"J919*F919","v":0},null,null,1,null,4744,null,51520,{"$nulls":12},1,13,2,6,"I","I"]
[]
["2-9",null,"Carting away of excavated material:",{"$nulls":8},4745,null,0,{"$nulls":12},1,13,2,6,"S","0"]
[]
["2-9",null,"Descriptions of carting away of excavated material shall be deemed to include loading excavated material onto trucks directly from the excavations or, alternatively, from stock piles situated on the building site.",{"$nulls":8},4746,null,0,{"$nulls":12},1,13,2,6,"C","0"]
[]
["2-9",null,"EXCAVATION, FILLING, ETC. OTHER THAN BULK",{"$nulls":8},4747,null,0,{"$nulls":12},1,13,2,6,"H","0"]
[]
["2-9",null,"Excavation in earth not exceeding 2m deep:",{"$nulls":8},4748,null,0,{"$nulls":12},1,13,2,6,"S","0"]
[]
["2-9","2","Reduced levels.","m³",{"v":84,"d":"84.00"},null,{"$f":"J929*F929","v":0},null,null,84,null,4870,null,0,{"$nulls":12},1,13,2,6,"I","3"]
[]
["2-9","3","Underpinning in 1.5m alternating sections and restrictive conditions under existing foundations.","m³",{"v":3,"d":"3.00"},null,{"$f":"J931*F931","v":0},null,null,3,null,4749,null,0,{"$nulls":12},1,13,2,6,"I","3"]
[]
["2-10",null,"Extra over trench and hole excavations in earth for excavation:",{"$nulls":8},4753,null,0,{"$nulls":12},1,13,2,6,"S","0"]
[]
["2-10","4","Soft rock.","m³",0.29,null,{"$f":"J935*F935","v":0},null,null,0.29,null,4754,null,0,{"$nulls":12},1,13,2,6,"I","3"]
[]
["2-10","5","Hard rock.","m³",0.15,null,{"$f":"J937*F937","v":0},null,null,0.15,null,4755,null,0,{"$nulls":12},1,13,2,6,"I","3"]
[]
["2-10",null,"Back excavation of vertical sides of excavations in earth for working space including backfilling compacted to 95% Mod AASHTO density:",{"$nulls":8},4756,null,60700,{"$nulls":12},1,13,2,6,"S","0"]
[]
["2-10","6","Exceeding 1m and not exceeding 1.5m deep for placing and removing formwork to walls etc., against excavated face.","m²",{"v":4,"d":"4.00"},null,{"$f":"J941*F941","v":0},null,null,4,null,4757,null,61100,{"$nulls":12},1,13,2,6,"I","2"]
[]
["2-10",null,"Extra over all excavations for carting away:",{"$nulls":8},4759,null,0,{"$nulls":12},1,13,2,6,"S","0"]
[]
["2-10","7","Surplus material from excavations and/or stock piles on site to a dumping site to be located by the Contractor.","m³",{"v":86,"d":"86.00"},null,{"$f":"J945*F945","v":0},null,null,86,null,4760,null,0,{"$nulls":12},1,13,2,6,"I","3"]
[]
["2-10",null,"Risk of collapse of excavations:",{"$nulls":8},4761,null,0,{"$nulls":12},1,13,2,6,"S","0"]
[]
["2-10","8","Sides of trench and hole excavations not exceeding 1,5m deep.","m²",{"v":4,"d":"4.00"},null,{"$f":"J949*F949","v":0},null,null,4,null,4762,null,0,{"$nulls":12},1,13,2,6,"I","2"]
[]
["2-10",null,"Keeping excavations free of water:",{"$nulls":8},4764,null,0,{"$nulls":12},1,13,2,6,"S","0"]
[]
["2-10","9","Keeping excavations free of all water other than subterranean water.","Item",{"v":1,"d":"1.00"},null,{"$f":"J953*F953","v":0},null,null,1,null,4765,null,0,{"$nulls":12},1,13,2,6,"I","I"]
[]
["2-10",null,"FILLING, ETC.",{"$nulls":8},4766,null,1766,{"$nulls":12},1,13,2,6,"H","0"]
[]
["2-10",null,"Compaction of surfaces:",{"$nulls":8},4767,null,1811,{"$nulls":12},1,13,2,6,"S","0"]
[]
["2-10","10","Compaction of ground surfaces under floors, etc including scarifying for a depth of 150mm, breaking down oversize material, adding suitable material where necessary and compacting to 95% Mod AASHTO density.","m²",{"v":597,"d":"597.00"},null,{"$f":"J959*F959","v":0},null,null,597,null,4768,null,1811,{"$nulls":12},1,13,2,6,"I","2"]
[]
["2-10",null,"Earth filling from excavations or prescibed stock piles on site compacted in 150mm layers to 95% Mod AASHTO at -1 to +2 of its optimum moisture content:",{"$nulls":8},4769,null,0,{"$nulls":12},1,13,2,6,"S","0"]
[]
["2-10","11","Backfilling to trenches, holes, etc.","m³",{"v":1,"d":"1.00"},null,{"$f":"J963*F963","v":0},null,null,1,null,4770,null,0,{"$nulls":12},1,13,2,6,"I","3"]
[]
["2-10","12","G5 Earth filling supplied by the Contractor compacted in 150mm layers to 95% Mod AASHTO at -1 to +2 of its optimum moisture content.","m³",{"v":49,"d":"49.00"},null,{"$f":"J965*F965","v":0},null,null,49,null,4871,null,0,{"$nulls":12},1,13,2,6,"I","3"]
[]
["2-10",null,"TESTS",{"$nulls":8},4773,null,1811,{"$nulls":12},1,13,2,6,"H","0"]
[]
["2-10",null,"Prescribed density tests on flling:",{"$nulls":8},4774,null,1811,{"$nulls":12},1,13,2,6,"S","0"]
[]
["2-10","13","Modified AASHTO density test.","No",{"v":1,"d":"1.00"},null,{"$f":"J971*F971","v":0},null,null,1,null,4775,null,1819,{"$nulls":12},1,13,2,6,"I","N"]
[]
["2-11",null,"SOIL POISONING",{"$nulls":8},4872,null,1819,{"$nulls":12},1,13,2,6,"H","0"]
[]
["2-11",null,"Soil insecticide in accordance with SANS 5859:",{"$nulls":8},4873,null,1819,{"$nulls":12},1,13,2,6,"S","0"]
[]
["2-11","14","Under floors etc. including forming and poisoning shallow furrows against foundation walls, etc., filling furrows and ramming.","m²",{"v":327,"d":"327.00"},null,{"$f":"J977*F977","v":0},null,null,327,null,4874,null,1819,{"$nulls":12},1,13,2,6,"I","2"]
[]
[]
[null,null,"Bill Total",{"$nulls":4},{"$f":"SUM(G903:G979)","v":0}]
[]
[]
[]
[null,null,"BILL NO.3 : CONCRETE, FORMWORK AND REINFORCEMENT",{"$nulls":23},1,13,3,15,"H"]
[]
["2-13",null,"The Tenderer is referred to the relevant clauses in the separate document \"Model Preambles for Trades\" and to the Supplementary Preambles incorporated at the front of these Bills of Quantities as well as hereunder.",{"$nulls":8},4780,null,0,{"$nulls":12},1,13,3,15,"C","0"]
[]
["2-13",null,"SUPPLEMENTARY PREAMBLES",{"$nulls":8},4781,null,0,{"$nulls":12},1,13,3,15,"H","0"]
[]
["2-13",null,"Cost of tests:",{"$nulls":8},4782,null,0,{"$nulls":12},1,13,3,15,"S","0"]
[]
["2-13",null,"The costs of making, storing and testing of concrete test cubes as required under clause 7 'Tests' of SABS 1200 G shall include the cost of providing cube moulds necessary for the purpose, for testing costs and for submitting reports on the tests to the Principal Agent. The testing shall be undertaken by an independent firm or institution nominated by the Contractor to the approval of the Principal Agent. (Test cubes are measured separately).",{"$nulls":8},4783,null,0,{"$nulls":12},1,13,3,15,"C","0"]
[]
["2-13",null,"Formwork:",{"$nulls":8},4784,null,2436,{"$nulls":12},1,13,3,15,"S","0"]
[]
["2-13",null,"Descriptions of formwork shall be deemed to include use and waste only (except where described as left in or permanent), for fitting together in the required forms, wedging, plumbing and fixing to true angles and surfaces as necessary to ensure easy release during stripping and for reconditioning as necessary before re-use.",{"$nulls":8},4785,null,2437,{"$nulls":12},1,13,3,15,"C","0"]
[]
["2-13",null,"Formwork to soffits of solid slabs etc., shall be deemed to be to slabs not exceeding 250mm thick unless otherwise described.",{"$nulls":8},4786,null,2439,{"$nulls":12},1,13,3,15,"C","0"]
[]
["2-13",null,"Unless otherwise described, formwork to all concrete is deemed to include for propping exceeding 1,5m and not exceeding 3,5m high above bearing level.",{"$nulls":8},4787,null,3011,{"$nulls":12},1,13,3,15,"C","0"]
[]
["2-13",null,"Formwork to sides of bases, pile caps, ground beams, etc., will only be measured where it is prescribed by the Engineer for design reasons.  Formwork necessitated by irregularity or collapse of excavated faces will not be measured and the cost thereof shall be deemed to be included in the allowance for taking the risk of collapse of the sides of the excavations, provision for which is made in Earthworks.",{"$nulls":8},4788,null,2440,{"$nulls":12},1,13,3,15,"C","0"]
[]
["2-13",null,"REINFORCED CONCRETE CAST AGAINST EXCAVATED SURFACES",{"$nulls":8},4789,null,0,{"$nulls":12},1,13,3,15,"H","0"]
[]
["2-13",null,"25 MPa/19mm Concrete:",{"$nulls":8},4790,null,0,{"$nulls":12},1,13,3,15,"S","0"]
[]
["2-13","1","Concrete bases for underpinning.","m³",{"v":2,"d":"2.00"},null,{"$f":"J1008*F1008","v":0},null,null,2,null,4853,null,0,{"$nulls":12},1,13,3,15,"I","3"]
[]
["2-14","2","V-drains with top surface cast to falls.","m³",{"v":35,"d":"35.00"},null,{"$f":"J1010*F1010","v":0},null,null,35,null,4795,null,0,{"$nulls":12},1,13,3,15,"I","3"]
[]
["2-14",null,"REINFORCED CONCRETE",{"$nulls":8},4792,null,0,{"$nulls":12},1,13,3,15,"H","0"]
[]
["2-14",null,"30 MPa/19mm Concrete:",{"$nulls":8},4793,null,0,{"$nulls":12},1,13,3,15,"S","0"]
[]
["2-14","3","Surface beds cast in panels on waterproofing.","m³",{"v":42,"d":"42.00"},null,{"$f":"J1016*F1016","v":0},null,null,42,null,4869,null,0,{"$nulls":12},1,13,3,15,"I","3"]
[]
["2-14",null,"TEST BLOCKS.",{"$nulls":8},4797,null,0,{"$nulls":12},1,13,3,15,"H","0"]
[]
["2-14",null,"Test blocks:",{"$nulls":8},4798,null,0,{"$nulls":12},1,13,3,15,"S","0"]
[]
["2-14","4","Making and testing set of three 150 x 150 x 150mm concrete strength test cubes.","Sets",{"v":17,"d":"17.00"},null,{"$f":"J1022*F1022","v":0},null,null,17,null,4799,null,0,{"$nulls":12},1,13,3,15,"I","S"]
[]
["2-14",null,"CONCRETE SUNDRIES",{"$nulls":8},4800,null,0,{"$nulls":12},1,13,3,15,"H","0"]
[]
["2-14",null,"Finishing top surfaces of concrete smooth with a wood float:",{"$nulls":8},4801,null,0,{"$nulls":12},1,13,3,15,"S","0"]
[]
["2-14","5","Surface beds, slabs, etc.","m²",{"v":327,"d":"327.00"},null,{"$f":"J1028*F1028","v":0},null,null,327,null,4802,null,0,{"$nulls":12},1,13,3,15,"I","2"]
[]
["2-14","6","V-drains to falls.","m²",{"v":270,"d":"270.00"},null,{"$f":"J1030*F1030","v":0},null,null,270,null,6074,null,0,{"$nulls":12},1,13,3,15,"I","2"]
[]
["2-14",null,"Crack stitching to walls:",{"$nulls":8},4855,null,0,{"$nulls":12},1,13,3,15,"S","0"]
[]
["2-14",null,"The following to be only undertaken on approval by the Engineer and in accordance with any prescribed methodologies, etc.",{"$nulls":8},4856,null,0,{"$nulls":12},1,13,3,15,"C","0"]
[]
["2-14","7","Grinding for a depth of 40mm into horizontal bedding joint/plane approximately 500mm on either side of the vertical/inclined crack including 2No. 10mm diameter holes drilled 500mm on either side of the vertical/inclined crack.","No",{"v":2,"d":"2.00"},null,{"$f":"J1036*F1036","v":0},null,null,2,null,4858,null,0,{"$nulls":12},1,13,3,15,"I","N"]
[]
["2-14","8","R8 Reinforcing staples 1000mm long with bends pressed into pre-drilled 10mm diameter holes with approved cementitious non-shrink grout filled into bedding plane including any reinstatement to the affected area.","No",{"v":2,"d":"2.00"},null,{"$f":"J1038*F1038","v":0},null,null,2,null,4859,null,0,{"$nulls":12},1,13,3,15,"I","N"]
[]
["2-14",null,"ROUGH FORMWORK (DEGREE OF ACCURACY II)",{"$nulls":8},4803,null,0,{"$nulls":12},1,13,3,15,"H","0"]
[]
["2-14",null,"Rough formwork to sides:",{"$nulls":8},4804,null,-298,{"$nulls":12},1,13,3,15,"S","0"]
[]
["2-14","9","Edges, risers, ends and reveals not exceeding 300mm high or wide.","m",{"v":7,"d":"7.00"},null,{"$f":"J1044*F1044","v":0},null,null,7,null,4806,null,0,{"$nulls":12},1,13,3,15,"I","1"]
[]
["2-14","10","Sides of underpinning bases.","m²",{"v":11,"d":"11.00"},null,{"$f":"J1046*F1046","v":0},null,null,11,null,4854,null,0,{"$nulls":12},1,13,3,15,"I","2"]
[]
["2-14",null,"MOVEMENT JOINTS, ETC.",{"$nulls":8},4807,null,0,{"$nulls":12},1,13,3,15,"H","0"]
[]
["2-14",null,"Isolation joints with 10mm softboard between vertical concrete and brick surfaces including necessary formwork:",{"$nulls":8},4875,null,0,{"$nulls":12},1,13,3,15,"S","0"]
[]
["2-14","11","Not exceeding 300mm high to edges of surface beds, v-drains etc.","m",{"v":478,"d":"478.00"},null,{"$f":"J1052*F1052","v":0},null,null,478,null,4809,null,0,{"$nulls":12},1,13,3,15,"I","1"]
[]
["2-15",null,"Saw-cut joints:",{"$nulls":8},4812,null,0,{"$nulls":12},1,13,3,15,"S","0"]
[]
["2-15","12","3 x 40mm Saw-cut joints in top of concrete.","m",{"v":179,"d":"179.00"},null,{"$f":"J1056*F1056","v":0},null,null,179,null,4813,null,0,{"$nulls":12},1,13,3,15,"I","1"]
[]
["2-15",null,"REINFORCEMENT",{"$nulls":8},4814,null,0,{"$nulls":12},1,13,3,15,"H","0"]
[]
["2-15",null,"Fabric reinforcement:",{"$nulls":8},4815,null,0,{"$nulls":12},1,13,3,15,"S","0"]
[]
["2-15","13","Type 193 fabric reinforcement in concrete surface beds, etc.","m²",{"v":597,"d":"597.00"},null,{"$f":"J1062*F1062","v":0},null,null,597,null,4816,null,0,{"$nulls":12},1,13,3,15,"I","2"]
[]
[]
[null,null,"Bill Total",{"$nulls":4},{"$f":"SUM(G986:G1064)","v":0}]
[]
[]
[]
[null,null,"BILL NO.4 : MASONRY",{"$nulls":23},1,13,4,21,"H"]
[]
["2-17",null,"The Tenderer is referred to the relevant clauses in the separate document \"Model Preambles for Trades\" and to the Supplementary Preambles incorporated at the front of these Bills of Quantities as well as hereunder.",{"$nulls":8},4373,null,0,{"$nulls":12},1,13,4,21,"C","0"]
[]
["2-17",null,"BRICKWORK SUNDRIES",{"$nulls":8},4385,null,0,{"$nulls":12},1,13,4,21,"H","0"]
[]
["2-17",null,"Galvanised wire ties etc:",{"$nulls":8},4400,null,0,{"$nulls":12},1,13,4,21,"S","0"]
[]
["2-17","1","4mm Diameter roof tie 2m girth bent double with one end fixed to timber and other end built into brickwork including breaking out 3 course brickwork and reinstating as necessary.","No",{"v":341,"d":"341.00"},null,{"$f":"J1077*F1077","v":0},null,null,341,null,4401,null,0,{"$nulls":12},1,13,4,21,"I","N"]
[]
["2-17",null,"FIBRE-CEMENT WINDOW SILLS",{"$nulls":8},6070,null,0,{"$nulls":12},1,13,4,21,"H","0"]
[]
["2-17",null,"Natural grey sills in single lengths bedded in class II mortar including metal fixing lugs etc.:",{"$nulls":8},6071,null,0,{"$nulls":12},1,13,4,21,"S","0"]
[]
["2-17","2","15  x 150mm Wide sills set sloping and slightly projecting.","m",{"v":89,"d":"89.00"},null,{"$f":"J1083*F1083","v":0},null,null,89,null,6072,null,0,{"$nulls":12},1,13,4,21,"I","1"]
[]
[]
[null,null,"Bill Total",{"$nulls":4},{"$f":"SUM(G1071:G1085)","v":0}]
[]
[]
[]
[null,null,"BILL NO.5 : WATERPROOFING",{"$nulls":23},1,13,5,24,"H"]
[]
["2-18",null,"The Tenderer is referred to the relevant clauses in the separate document \"Model Preambles for Trades\" and to the Supplementary Preambles incorporated at the front of these Bills of Quantities as well as hereunder.",{"$nulls":8},4860,null,0,{"$nulls":12},1,13,5,24,"C","0"]
[]
["2-18",null,"DAMPPROOFING OF WALLS AND FLOORS",{"$nulls":8},4861,null,0,{"$nulls":12},1,13,5,24,"H","0"]
[]
["2-18",null,"One layer of 250 micron green polyethylene waterproof sheeting (SANS 952-1985 type C) sealed at laps with PVC self-adhesive tape:",{"$nulls":8},4877,null,0,{"$nulls":12},1,13,5,24,"S","0"]
[]
["2-18","1","Under surface beds.","m²",{"v":327,"d":"327.00"},null,{"$f":"J1098*F1098","v":0},null,null,327,null,4878,null,0,{"$nulls":12},1,13,5,24,"I","2"]
[]
["2-18",null,"JOINT SEALANTS, ETC.",{"$nulls":8},4864,null,0,{"$nulls":12},1,13,5,24,"H","0"]
[]
["2-18",null,"Two-part polyurethane sealing compound including backing cord, bond breaker, primer,etc.:",{"$nulls":8},4865,null,0,{"$nulls":12},1,13,5,24,"S","0"]
[]
["2-18","2","10 x 15mm In isolation joints including raking out isolation joint filler.","m",{"v":478,"d":"478.00"},null,{"$f":"J1104*F1104","v":0},null,null,478,null,4866,null,0,{"$nulls":12},1,13,5,24,"I","1"]
[]
["2-18","3","3 x 40mm In saw-cut joints in floors.","m",{"v":179,"d":"179.00"},null,{"$f":"J1106*F1106","v":0},null,null,179,null,4867,null,0,{"$nulls":12},1,13,5,24,"I","1"]
[]
[]
[null,null,"Bill Total",{"$nulls":4},{"$f":"SUM(G1092:G1108)","v":0}]
[]
[]
[]
[null,null,"BILL NO.6 : ROOF COVERINGS",{"$nulls":23},1,13,6,27,"H"]
[]
["2-19",null,"The Tenderer is referred to the relevant clauses in the separate document \"Model Preambles for Trades\" and to the Supplementary Preambles incorporated at the front of these Bills of Quantities as well as hereunder.",{"$nulls":8},4423,null,0,{"$nulls":12},1,13,6,27,"C","0"]
[]
["2-19",null,"CORRUGATED METAL SHEETING AND ACCESSORIES",{"$nulls":8},4425,null,0,{"$nulls":12},1,13,6,27,"H","0"]
[]
["2-19",null,"0.8mm Colomet finish IBR profile Z275 spelter galvanised steel troughed sheeting @ 25deg fall in single lengths fixed to timber purlins (measured elsewhere):",{"$nulls":8},4729,null,0,{"$nulls":12},1,13,6,27,"S","0"]
[]
["2-19","1","Roof covering with pitch not exceeding 25 degrees (area measured on flat).","m²",{"v":989,"d":"989.00"},null,{"$f":"J1121*F1121","v":0},null,null,989,null,4427,null,0,{"$nulls":12},1,13,6,27,"I","2"]
[]
["2-19",null,"AG150 G550 Zincalume ride capping with broad flute closures:",{"$nulls":8},4428,null,0,{"$nulls":12},1,13,6,27,"S","0"]
[]
["2-19","2","Ridge capping to suit roof profile.","m",{"v":100,"d":"100.00"},null,{"$f":"J1125*F1125","v":0},null,null,100,null,4429,null,0,{"$nulls":12},1,13,6,27,"I","1"]
[]
["2-19",null,"RAINWATER DISPOSAL",{"$nulls":8},4431,null,0,{"$nulls":12},1,13,6,27,"H","0"]
[]
["2-19",null,"Seamless aluminium gutters:",{"$nulls":8},4432,null,0,{"$nulls":12},1,13,6,27,"S","0"]
[]
["2-19","3","125 x 75 x 0.8mm Thick seamless aluminium OGEE gutters to manufacturers specification.","m",{"v":243,"d":"243.00"},null,{"$f":"J1131*F1131","v":0},null,null,243,null,4433,null,0,{"$nulls":12},1,13,6,27,"I","1"]
[]
["2-19","4","Extra over gutter for stopped end.","No",{"v":32,"d":"32.00"},null,{"$f":"J1133*F1133","v":0},null,null,32,null,4434,null,0,{"$nulls":12},1,13,6,27,"I","N"]
[]
["2-19","5","Extra over gutter for angle.","No",{"v":4,"d":"4.00"},null,{"$f":"J1135*F1135","v":0},null,null,4,null,6568,null,0,{"$nulls":12},1,13,6,27,"I","N"]
[]
["2-19","6","Extra over 125 x 75mm eaves gutter for outlet for 100 x 75mm downpipe.","No",{"v":27,"d":"27.00"},null,{"$f":"J1137*F1137","v":0},null,null,27,null,4436,null,0,{"$nulls":12},1,13,6,27,"I","N"]
[]
["2-19","7","100 x 75mm Fluted aluminium rainwater pipes.","m",{"v":159,"d":"159.00"},null,{"$f":"J1139*F1139","v":0},null,null,159,null,4437,null,0,{"$nulls":12},1,13,6,27,"I","1"]
[]
["2-19","8","Extra over rainwater pipe for bend.","No",{"v":87,"d":"87.00"},null,{"$f":"J1141*F1141","v":0},null,null,87,null,4438,null,0,{"$nulls":12},1,13,6,27,"I","N"]
[]
["2-19","9","Extra over rainwater pipe for eaves offset 750mm projection.","No",{"v":27,"d":"27.00"},null,{"$f":"J1143*F1143","v":0},null,null,27,null,4439,null,0,{"$nulls":12},1,13,6,27,"I","N"]
[]
[]
[null,null,"Bill Total",{"$nulls":4},{"$f":"SUM(G1115:G1145)","v":0}]
[]
[]
[]
[null,null,"BILL NO.7 : CARPENTRY AND JOINERY",{"$nulls":23},1,13,7,30,"H"]
[]
["2-20",null,"The Tenderer is referred to the relevant clauses in the separate document \"Model Preambles for Trades\" and to the Supplementary Preambles incorporated at the front of these Bills of Quantities as well as hereunder.",{"$nulls":8},3722,null,0,{"$nulls":12},1,13,7,30,"C","0"]
[]
["2-20",null,"SUPPLEMENTARY PREAMBLES",{"$nulls":8},3723,null,0,{"$nulls":12},1,13,7,30,"H","0"]
[]
["2-20",null,"Prefabricated trusses shall be fabricated in a factory by a truss fabricator who has been awarded a Certificate of Competence by the Institute of Timber Construction and is approved by the Principal Agent.",{"$nulls":8},3724,null,0,{"$nulls":12},1,13,7,30,"C","0"]
[]
["2-20",null,"All trusses shall be designed by a registered Professional Engineer in accordance with SABS Code of Practice for Design of Timber Structures.",{"$nulls":8},3725,null,0,{"$nulls":12},1,13,7,30,"C","0"]
[]
["2-20",null,"The complete structure shall be inspected by the truss designer to ensure that the manufacture and erection details have been complied with.",{"$nulls":8},3726,null,0,{"$nulls":12},1,13,7,30,"C","0"]
[]
["2-20",null,"PREFABRICATED ROOF TRUSSES, ETC.",{"$nulls":8},3746,null,0,{"$nulls":12},1,13,7,30,"H","0"]
[]
["2-20",null,"Prefabricated designed double pitched timber roof construction complete including , runners, bracing hips, valleys, cleats, purlins, etc., supplied and fixed complete:",{"$nulls":8},3748,null,0,{"$nulls":12},1,13,7,30,"S","0"]
[]
["2-20",null,"Refer to drawing for shape and extent of roof.",{"$nulls":8},6075,null,0,{"$nulls":12},1,13,7,30,"C","0"]
[]
["2-20","1","Trusses for rectangular L-shaped building, size overall 55.0 X 9.4m on plan (Block A: Admin).","No",{"v":1,"d":"1.00"},null,{"$f":"J1168*F1168","v":0},null,null,1,null,3749,null,0,{"$nulls":12},1,13,7,30,"I","N"]
[]
["2-20","2","Trusses for rectangular shaped building, size overall 8.1 X 7.8m on plan (Block B: Ablution).","No",{"v":1,"d":"1.00"},null,{"$f":"J1170*F1170","v":0},null,null,1,null,4639,null,0,{"$nulls":12},1,13,7,30,"I","N"]
[]
["2-20","3","Trusses for rectangular shaped building, size overall 10.1 x 4.1m on plan (Block C: Caretaker/Store).","No",{"v":1,"d":"1.00"},null,{"$f":"J1172*F1172","v":0},null,null,1,null,3750,null,0,{"$nulls":12},1,13,7,30,"I","N"]
[]
["2-20","4","Trusses for rectangular shaped building, size overall 5.7 x 4.1m on plan (Block F: Ablution).","No",{"v":1,"d":"1.00"},null,{"$f":"J1174*F1174","v":0},null,null,1,null,3766,null,0,{"$nulls":12},1,13,7,30,"I","N"]
[]
["2-20","5","Trusses for rectangular shaped building, size overall 16.8 x 7.9m on plan (Block G: X2 Classroom).","No",{"v":1,"d":"1.00"},null,{"$f":"J1176*F1176","v":0},null,null,1,null,4640,null,0,{"$nulls":12},1,13,7,30,"I","N"]
[]
["2-20","6","Trusses for rectangular shaped building, size overall 14.9 x 7.4m on plan (Block L: X2 Classroom).","No",{"v":1,"d":"1.00"},null,{"$f":"J1178*F1178","v":0},null,null,1,null,4308,null,0,{"$nulls":12},1,13,7,30,"I","N"]
[]
["2-20","7","Trusses for rectangular shaped building, size overall 8.2 x 6.4m on plan (Block N: Caretakers).","No",{"v":1,"d":"1.00"},null,{"$f":"J1180*F1180","v":0},null,null,1,null,6549,null,0,{"$nulls":12},1,13,7,30,"I","N"]
[]
["2-20","8","Trusses for rectangular shaped building, size overall 4.6 x 3.1m on plan (Block P: Store).","No",{"v":1,"d":"1.00"},null,{"$f":"J1182*F1182","v":0},null,null,1,null,6550,null,0,{"$nulls":12},1,13,7,30,"I","N"]
[]
["2-21","9","Trusses for rectangular shaped building, size overall 3.6 x 3.0m on plan (Block Q: Ablution).","No",{"v":1,"d":"1.00"},null,{"$f":"J1184*F1184","v":0},null,null,1,null,6551,null,0,{"$nulls":12},1,13,7,30,"I","N"]
[]
["2-21","10","Trusses for rectangular shaped building, size overall 3.3 x 1.4m on plan (Block I: Store).","No",{"v":1,"d":"1.00"},null,{"$f":"J1186*F1186","v":0},null,null,1,null,6552,null,0,{"$nulls":12},1,13,7,30,"I","N"]
[]
["2-21",null,"Sawn softwood:",{"$nulls":8},4730,null,0,{"$nulls":12},1,13,7,30,"S","0"]
[]
["2-21","11","152 x 38mm Wall plates.","m",{"v":259,"d":"259.00"},null,{"$f":"J1190*F1190","v":0},null,null,259,null,4731,null,0,{"$nulls":12},1,13,7,30,"I","1"]
[]
["2-21",null,"EAVES, VERGES, ETC.",{"$nulls":8},3777,null,0,{"$nulls":12},1,13,7,30,"H","0"]
[]
["2-21",null,"NUTEC fascia and barge boards:",{"$nulls":8},3778,null,0,{"$nulls":12},1,13,7,30,"S","0"]
[]
["2-21","12","EVERITE NUTEC medium density fibre cement fascia boards (Product no. 041-204) 12mm thick x 225mm with aluminium H profile fascia joiners  Product no. 665-195). Drill for and fix with hot deep galvanised drive screws and washers.","m",{"v":261,"d":"261.00"},null,{"$f":"J1196*F1196","v":0},null,null,261,null,3779,null,0,{"$nulls":12},1,13,7,30,"I","1"]
[]
["2-21","13","EVERITE NUTEC fibre cement barge boards (Product No 521-800) 330mm x 250mm. Everite Chromaprep Hprofile barge joiners (Product No 665-894) Drill for and fix with hot-dipped galvanised screws and washers 76 x 50mm trimmer battern fixed underside of purlin ends for barge board fixing.","m",{"v":159,"d":"159.00"},null,{"$f":"J1198*F1198","v":0},null,null,159,null,5765,null,0,{"$nulls":12},1,13,7,30,"I","1"]
[]
["2-21",null,"SKIRTINGS, ETC.",{"$nulls":8},3780,null,0,{"$nulls":12},1,13,7,30,"H","0"]
[]
["2-21",null,"Wrought meranti:",{"$nulls":8},3781,null,0,{"$nulls":12},1,13,7,30,"S","0"]
[]
["2-21","14","19 x 76mm Skirtings including 19mm quadrant bead, nailed.","m",{"v":408,"d":"408.00"},null,{"$f":"J1204*F1204","v":0},null,null,408,null,3782,null,0,{"$nulls":12},1,13,7,30,"I","1"]
[]
["2-21","15","100 x 65mm Cornice laid flat.","m",{"v":531,"d":"531.00"},null,{"$f":"J1206*F1206","v":0},null,null,531,null,3783,null,0,{"$nulls":12},1,13,7,30,"I","1"]
[]
["2-21","16","16 x 150mm dado rail.","m",{"v":385,"d":"385.00"},null,{"$f":"J1208*F1208","v":0},null,null,385,null,3784,null,0,{"$nulls":12},1,13,7,30,"I","1"]
[]
["2-21","17","50 x 60mm Rebated frames bolted to suit door size of 813 x 1800mm high.","No",{"v":20,"d":"20.00"},null,{"$f":"J1210*F1210","v":0},null,null,20,null,6052,null,0,{"$nulls":12},1,13,7,30,"I","N"]
[]
["2-21",null,"DOORS, ETC.",{"$nulls":8},3785,null,0,{"$nulls":12},1,13,7,30,"H","0"]
[]
["2-21",null,"Saligna Blaco hardwood doors hung to steel frames:",{"$nulls":8},3786,null,0,{"$nulls":12},1,13,7,30,"S","0"]
[]
["2-21","18","40mm Framed batten door 813 x 2032mm high of top rail and stiles, middle ledge and braces and bottom rail filled in with  V-jointed one side boarding hung to steel frames.","No",{"v":26,"d":"26.00"},null,{"$f":"J1216*F1216","v":0},null,null,26,null,3787,null,0,{"$nulls":12},1,13,7,30,"I","N"]
[]
["2-21",null,"40mm Solid laminated flush doors with hardwood veneer and two concealed edges hung to steel frames:",{"$nulls":8},5769,null,0,{"$nulls":12},1,13,7,30,"S","0"]
[]
["2-21","19","40mm Door 813 x 2032mm high.","No",{"v":5,"d":"5.00"},null,{"$f":"J1220*F1220","v":0},null,null,5,null,5768,null,0,{"$nulls":12},1,13,7,30,"I","N"]
[]
["2-22",null,"TDM medium duty hollowcore hardboard faced interior stable door or similar approved.",{"$nulls":8},4696,null,0,{"$nulls":12},1,13,7,30,"S","0"]
[]
["2-22","20","32mm Door 813 x 1800mm high","No",{"v":20,"d":"20.00"},null,{"$f":"J1224*F1224","v":0},null,null,20,null,4697,null,0,{"$nulls":12},1,13,7,30,"I","N"]
[]
["2-22",null,"CUPBOARDS, ETC",{"$nulls":8},4315,null,277000,{"$nulls":12},1,13,7,30,"H","0"]
[]
["2-22",null,"The following joinery fittings are given as complete units i.e. the components of the units have not been given seperately. Descriptions of such units shall, therefore, be deemed to include all components, assembling, housing, notching, glueing, blocking, planting-on and screwing with countersunk screws, edge strips, thermosetting plastic laminate, glass, ironmongery, metalwork, paint or varnish finishes, etc. Prices are to include for all necessary filler pieces against walls etc.",{"$nulls":8},5793,null,277000,{"$nulls":12},1,13,7,30,"C","0"]
[]
["2-22",null,"Shop drawings are to be provided to the Architect for approval prior to construction and procurement of any of the below mentioned carpentry joinery work. No claims will be entertained for any loss suffered by the Contractor in respect of any work undertaken without the Architect's final approval.",{"$nulls":8},5794,null,277000,{"$nulls":12},1,13,7,30,"C","0"]
[]
["2-22",null,"Cupboards, shelves, etc complete:",{"$nulls":8},4316,null,277000,{"$nulls":12},1,13,7,30,"S","0"]
[]
["2-22","21","Steel stationary storage cabinet approximate size of 900 x 450 x 1800mm high or similar approved.","No",{"v":4,"d":"4.00"},null,{"$f":"J1234*F1234","v":0},null,null,4,null,4322,null,277101,{"$nulls":12},1,13,7,30,"I","N"]
[]
[]
[null,null,"Bill Total",{"$nulls":4},{"$f":"SUM(G1152:G1236)","v":0}]
[]
[]
[]
[null,null,"BILL NO.8 : CEILINGS PARTITIONS AND ACCESS FLOORING",{"$nulls":23},1,13,8,33,"H"]
[]
["2-24",null,"The Tenderer is referred to the relevant clauses in the separate document \"Model Preambles for Trades\" and to the Supplementary Preambles incorporated at the front of these Bills of Quantities as well as hereunder.",{"$nulls":8},3795,null,0,{"$nulls":12},1,13,8,33,"C","0"]
[]
["2-24",null,"NAILED UP AND SCREW UP CEILINGS",{"$nulls":8},3796,null,0,{"$nulls":12},1,13,8,33,"H","0"]
[]
["2-24",null,"6,4mm Gypsum plasterboards with H-profile galvanised steel jointing strips:",{"$nulls":8},3797,null,0,{"$nulls":12},1,13,8,33,"S","0"]
[]
["2-24","1","Ceilings including 38 x 38mm sawn softwood brandering at 450mm centres with cross brandering at 450mm centres and at joints, ends of sheets and at light fittings, etc.","m²",{"v":704,"d":"704.00"},null,{"$f":"J1249*F1249","v":0},null,null,704,null,3798,null,0,{"$nulls":12},1,13,8,33,"I","2"]
[]
["2-24","2","Extra over ceiling for 600 x 600mm hinged trap door of wrought softwood rebated framing with one sawn softwood cross brander covered with ceiling board and fitted flush in opening, including necessary trimmers all around.","No",{"v":19,"d":"19.00"},null,{"$f":"J1251*F1251","v":0},null,null,19,null,3800,null,0,{"$nulls":12},1,13,8,33,"I","N"]
[]
["2-24",null,"INSULATION",{"$nulls":8},4732,null,0,{"$nulls":12},1,13,8,33,"H","0"]
[]
["2-24",null,"Non-combustible lightweight fibreglass insulation blanket:",{"$nulls":8},5762,null,0,{"$nulls":12},1,13,8,33,"S","0"]
[]
["2-24","3","100mm thick non-combustible polyester isotherm insulation laid loosely on top of brandering.","m²",{"v":704,"d":"704.00"},null,{"$f":"J1257*F1257","v":0},null,null,704,null,4733,null,0,{"$nulls":12},1,13,8,33,"I","2"]
[]
["2-24",null,"DRYWALL PARTITIONS",{"$nulls":8},6557,null,0,{"$nulls":12},1,13,8,33,"H","0"]
[]
["2-24",null,"Partitions consisting of 70mm galvanised steel studs at 610mm centres as vertical support secured in matching galvanised steel floor and ceiling channels, clad on one or both sides as described, including additional studs as necessary at abutments, ends, etc. Board cladding shall be fixed and jointed in strict accordance with the manufacturer's instructions.",{"$nulls":8},6558,null,0,{"$nulls":12},1,13,8,33,"C","0"]
[]
["2-24",null,"Unless otherwise described, prices for partitions shall be deemed to include for standard flat section aluminium skirting on boarded sides.",{"$nulls":8},6559,null,0,{"$nulls":12},1,13,8,33,"C","0"]
[]
["2-24",null,"Wall paper and paint or varnish finishes are given separately.",{"$nulls":8},6560,null,0,{"$nulls":12},1,13,8,33,"C","0"]
[]
["2-25",null,"Partitions with 12,5mm thick with board cladding on both sides and filled in with 50mm thick glasswool insulation in blanket form with a density of not less than 32kg/m:",{"$nulls":8},6561,null,0,{"$nulls":12},1,13,8,33,"S","0"]
[]
["2-25","4","Partitions 2.8m high with bottom and top tracks plugged.","m",{"v":22,"d":"22.00"},null,{"$f":"J1269*F1269","v":0},null,null,22,null,6562,null,0,{"$nulls":12},1,13,8,33,"I","1"]
[]
["2-25","5","Extra over partition 2.8m high for vertical abutment.","No",{"v":5,"d":"5.00"},null,{"$f":"J1271*F1271","v":0},null,null,5,null,6563,null,0,{"$nulls":12},1,13,8,33,"I","N"]
[]
["2-25","6","Extra over partition 2.8m high for corner.","No",{"v":2,"d":"2.00"},null,{"$f":"J1273*F1273","v":0},null,null,2,null,6564,null,0,{"$nulls":12},1,13,8,33,"I","N"]
[]
["2-25","7","Extra over partition 2.8m high for T-intersection.","No",{"v":3,"d":"3.00"},null,{"$f":"J1275*F1275","v":0},null,null,3,null,6565,null,0,{"$nulls":12},1,13,8,33,"I","N"]
[]
["2-25","8","Extra over 2.8m high partitioning for natural annodised aluminium door frame to suit door size of 813 x 2032mm high including one and half pair 100mm aluminium butt hinges per leaf including additional studding, trimming, etc., as deemed necessary.","No",{"v":4,"d":"4.00"},null,{"$f":"J1277*F1277","v":0},null,null,4,null,6566,null,0,{"$nulls":12},1,13,8,33,"I","N"]
[]
[]
[null,null,"Bill Total",{"$nulls":4},{"$f":"SUM(G1243:G1279)","v":0}]
[]
[]
[]
[null,null,"BILL NO.9 : FLOOR COVERINGS",{"$nulls":23},1,13,9,36,"H"]
[]
["2-27",null,"The Tenderer is referred to the relevant clauses in the separate document \"Model Preambles for Trades\" and to the Supplementary Preambles incorporated at the front of these Bills of Quantities as well as hereunder.",{"$nulls":8},3810,null,0,{"$nulls":12},1,13,9,36,"C","0"]
[]
["2-27",null,"VINYL FLOOR COVERINGS, WALL LININGS, ETC.",{"$nulls":8},3811,null,0,{"$nulls":12},1,13,9,36,"H","0"]
[]
["2-27",null,"300 x 300 x 2,5mm Thick semi flexible vinyl floor tiles laid in two colour pattern fixed with an approved adhesive:",{"$nulls":8},3812,null,0,{"$nulls":12},1,13,9,36,"S","0"]
[]
["2-27","1","On screeded floors.","m²",{"v":530,"d":"530.00"},null,{"$f":"J1292*F1292","v":0},null,null,530,null,3813,null,0,{"$nulls":12},1,13,9,36,"I","2"]
[]
[]
[null,null,"Bill Total",{"$nulls":4},{"$f":"SUM(G1286:G1294)","v":0}]
[]
[]
[]
[null,null,"BILL NO.10 : IRONMONGERY",{"$nulls":23},1,13,10,39,"H"]
[]
["2-28",null,"The Tenderer is referred to the relevant clauses in the separate document \"Model Preambles for Trades\" and to the Supplementary Preambles incorporated at the front of these Bills of Quantities as well as hereunder.",{"$nulls":8},3817,null,0,{"$nulls":12},1,13,10,39,"C","0"]
[]
["2-28",null,"IRONMONGERY FIXED TO DOORS, ETC.",{"$nulls":8},3818,null,0,{"$nulls":12},1,13,10,39,"H","0"]
[]
["2-28",null,"LOCKS:",{"$nulls":8},3821,null,0,{"$nulls":12},1,13,10,39,"S","0"]
[]
["2-28","1","75mm Two lever security lockset with satin chrome furniture.","No",{"v":31,"d":"31.00"},null,{"$f":"J1307*F1307","v":0},null,null,31,null,3822,null,0,{"$nulls":12},1,13,10,39,"I","N"]
[]
["2-28","2","Union MG47 47mm padlock or similar approved.","No",{"v":16,"d":"16.00"},null,{"$f":"J1309*F1309","v":0},null,null,16,null,4829,null,0,{"$nulls":12},1,13,10,39,"I","N"]
[]
["2-28",null,"BOLTS, LATCHES, ETC.",{"$nulls":8},4705,null,0,{"$nulls":12},1,13,10,39,"S","0"]
[]
["2-28","3","WC mortice indicator bolt with emergency release.","No",{"v":20,"d":"20.00"},null,{"$f":"J1313*F1313","v":0},null,null,20,null,4706,null,0,{"$nulls":12},1,13,10,39,"I","N"]
[]
["2-28","4","100mm Brass hinge.","No",{"v":40,"d":"40.00"},null,{"$f":"J1315*F1315","v":0},null,null,40,null,6058,null,46583,{"$nulls":12},1,13,10,39,"I","N"]
[]
["2-28",null,"NUMERAL AND NAMEPLATES, ETC.",{"$nulls":8},3826,null,0,{"$nulls":12},1,13,10,39,"H","0"]
[]
["2-28",null,"Clear perspex name plate reverse engraved and enamelled in white lettering 25mm high to suit, twice countersunk holed for and tapscrewed to steel door frames or gate framing with chromium plated dome-headed selftapping screws:",{"$nulls":8},3827,null,0,{"$nulls":12},1,13,10,39,"S","0"]
[]
["2-28","5","Ditto, but with letters 'CLASSROOM'.","No",{"v":8,"d":"8.00"},null,{"$f":"J1321*F1321","v":0},null,null,8,null,3830,null,0,{"$nulls":12},1,13,10,39,"I","N"]
[]
["2-28","6","Ditto, but with letters 'STOREROOM'.","No",{"v":2,"d":"2.00"},null,{"$f":"J1323*F1323","v":0},null,null,2,null,6574,null,0,{"$nulls":12},1,13,10,39,"I","N"]
[]
["2-28","7","Ditto, but with letters 'ADMIN'.","No",{"v":2,"d":"2.00"},null,{"$f":"J1325*F1325","v":0},null,null,2,null,4845,null,0,{"$nulls":12},1,13,10,39,"I","N"]
[]
["2-28","8","Ditto, but with letters 'STAFF ROOM'.","No",{"v":1,"d":"1.00"},null,{"$f":"J1327*F1327","v":0},null,null,1,null,4846,null,0,{"$nulls":12},1,13,10,39,"I","N"]
[]
["2-28","9","Ditto, but with letters 'CARETAKER'.","No",{"v":2,"d":"2.00"},null,{"$f":"J1329*F1329","v":0},null,null,2,null,6571,null,0,{"$nulls":12},1,13,10,39,"I","N"]
[]
["2-28",null,"Indicator plates countersunk holed for and screwed to door or brickwork with chromium plated dome-headed screws:",{"$nulls":8},3847,null,0,{"$nulls":12},1,13,10,39,"S","0"]
[]
["2-28","10","190 x 190 x 3mm Thick white perspex international FB2 sign plate with red fire extinguisher symbol plugged to brickwork.","No",{"v":15,"d":"15.00"},null,{"$f":"J1333*F1333","v":0},null,null,15,null,3848,null,0,{"$nulls":12},1,13,10,39,"I","N"]
[]
["2-29",null,"Bathroom signage \"7 Year\" Green vinyl on white 0.6mm Cromadeck sheeting with 4 x 4mm diameter holes provided for by the manufacturer and installed to exterior walls according to elevation with 50mm long brass screws with washers and standard 10mm wall plugs into brick walls.",{"$nulls":8},4847,null,0,{"$nulls":12},1,13,10,39,"S","0"]
[]
["2-29","11","180 x 180mm High aluminium toilet sign with MALE/FEMALE and/or DISABLED figure fixed to walls.","No",{"v":10,"d":"10.00"},null,{"$f":"J1337*F1337","v":0},null,null,10,null,4708,null,0,{"$nulls":12},1,13,10,39,"I","N"]
[]
["2-29",null,"PINNING BOARDS, WRITING BOARDS, PROJECTION SCREENS, ETC.",{"$nulls":8},3866,null,0,{"$nulls":12},1,13,10,39,"H","0"]
[]
["2-29",null,"Carpet pinning boards in aluminium frame with round plastic corners, pen tray and fixing component all fixed according to manufacturer's instruction:",{"$nulls":8},3867,null,0,{"$nulls":12},1,13,10,39,"S","0"]
[]
["2-29","12","Pinning board size 2400 x 1200mm high plugged.","No",{"v":8,"d":"8.00"},null,{"$f":"J1343*F1343","v":0},null,null,8,null,3868,null,0,{"$nulls":12},1,13,10,39,"I","N"]
[]
["2-29",null,"Swing type green chalkboard to comply with CKS-36-1980 or equivalent code of practice, complete with chalk rail as one unit fixed to wall strictly according to manufacturers instruction:",{"$nulls":8},3870,null,0,{"$nulls":12},1,13,10,39,"S","0"]
[]
["2-29","13","System 1000 stadard vitreous enamel magnetic chalkboard 4800 x 1200mm high comprising two fixed panels, each 2400 x 1140mm high complete with aluminium chalk rail, etc. plugged.","No",{"v":8,"d":"8.00"},null,{"$f":"J1347*F1347","v":0},null,null,8,null,3871,null,0,{"$nulls":12},1,13,10,39,"I","N"]
[]
["2-29",null,"BATHROOM FITTINGS",{"$nulls":8},4707,null,0,{"$nulls":12},1,13,10,39,"H","0"]
[]
["2-29",null,"Toilet roll holders:",{"$nulls":8},4718,null,0,{"$nulls":12},1,13,10,39,"S","0"]
[]
["2-29","14","Lockable Stainless steel toilet roll holder plugged  to wall.","No",{"v":22,"d":"22.00"},null,{"$f":"J1353*F1353","v":0},null,null,22,null,4721,null,0,{"$nulls":12},1,13,10,39,"I","N"]
[]
["2-29",null,"SUNDRIES",{"$nulls":8},4722,null,0,{"$nulls":12},1,13,10,39,"H","0"]
[]
["2-29",null,"Sundry ablution accessories:",{"$nulls":8},6013,null,0,{"$nulls":12},1,13,10,39,"S","0"]
[]
["2-29","15","19mm Stainless steel chromium plated towel rail, 600mm long, with end brackets plugged to plastered or tiled wall.","No",{"v":10,"d":"10.00"},null,{"$f":"J1359*F1359","v":0},null,null,10,null,6014,null,0,{"$nulls":12},1,13,10,39,"I","N"]
[]
[]
[null,null,"Bill Total",{"$nulls":4},{"$f":"SUM(G1301:G1361)","v":0}]
[]
[]
[]
[null,null,"BILL NO.11 : METALWORK",{"$nulls":23},1,13,11,45,"H"]
[]
["2-31",null,"The Tenderer is referred to the relevant clauses in the separate document \"Model Preambles for Trades\" and to the Supplementary Preambles incorporated at the front of these Bills of Quantities as well as hereunder.",{"$nulls":8},4457,null,0,{"$nulls":12},1,13,11,45,"C","0"]
[]
["2-31",null,"STEEL WINDOWS, DOORS, ETC.",{"$nulls":8},4458,null,0,{"$nulls":12},1,13,11,45,"H","0"]
[]
["2-31",null,"Standard residential galvanised windows with galvanised steel burglar bars to fixed lights and opening sashes:",{"$nulls":8},4470,null,0,{"$nulls":12},1,13,11,45,"S","0"]
[]
["2-31","1","Window type 14BH, 889 x 854mm high with one opening light complete with approved standard brass fittings and including 2No. 8mm galvanised steel burglar bars.","No",{"v":56,"d":"56.00"},null,{"$f":"J1374*F1374","v":0},null,null,56,null,4473,null,0,{"$nulls":12},1,13,11,45,"I","N"]
[]
["2-31","2","Window type 14BH, 889 x 1248mm high with one opening light complete with approved standard brass fittings and including 2No. 8mm galvanised steel burglar bars.","No",{"v":44,"d":"44.00"},null,{"$f":"J1376*F1376","v":0},null,null,44,null,4474,null,0,{"$nulls":12},1,13,11,45,"I","N"]
[]
["2-31",null,"PRESSED STEEL DOOR FRAMES",{"$nulls":8},4481,null,0,{"$nulls":12},1,13,11,45,"H","0"]
[]
["2-31",null,"All steel door frames to be caulked solid in class II mortar, between brickwork and frame.",{"$nulls":8},4734,null,0,{"$nulls":12},1,13,11,45,"C","0"]
[]
["2-31",null,"1.2mm Galvanised mild steel double rebated frames suitable for one brick wall including one and a half pair 100mm brass butt hinges per door leaf:",{"$nulls":8},4484,null,0,{"$nulls":12},1,13,11,45,"S","0"]
[]
["2-31","3","Frame for door 813 x 2032mm high.","No",{"v":27,"d":"27.00"},null,{"$f":"J1384*F1384","v":0},null,null,27,null,4485,null,0,{"$nulls":12},1,13,11,45,"I","N"]
[]
["2-31",null,"SECURITY GATES",{"$nulls":8},4826,null,0,{"$nulls":12},1,13,11,45,"H","0"]
[]
["2-31",null,"Galvanised mild steel security  gates and frames:",{"$nulls":8},4827,null,0,{"$nulls":12},1,13,11,45,"S","0"]
[]
["2-31","4","Single gate size of 977 x 2250mm high fixed (G1).","No",{"v":16,"d":"16.00"},null,{"$f":"J1390*F1390","v":0},null,null,16,null,4828,null,0,{"$nulls":12},1,13,11,45,"I","N"]
[]
[]
[null,null,"Bill Total",{"$nulls":4},{"$f":"SUM(G1368:G1392)","v":0}]
[]
[]
[]
[null,null,"BILL NO.12 : PLASTERING",{"$nulls":23},1,13,12,48,"H"]
[]
["2-32",null,"The Tenderer is referred to the relevant clauses in the separate document \"Model Preambles for Trades\" and to the Supplementary Preambles incorporated at the front of these Bills of Quantities as well as hereunder.",{"$nulls":8},3928,null,0,{"$nulls":12},1,13,12,48,"C","0"]
[]
["2-32",null,"GRANOLITHIC",{"$nulls":8},3934,null,0,{"$nulls":12},1,13,12,48,"H","0"]
[]
["2-32",null,"Untinted granolithic on concrete:",{"$nulls":8},3935,null,0,{"$nulls":12},1,13,12,48,"S","0"]
[]
["2-32","1","30mm Thick on floors.","m²",{"v":276,"d":"276.00"},null,{"$f":"J1405*F1405","v":0},null,null,276,null,3936,null,0,{"$nulls":12},1,13,12,48,"I","2"]
[]
["2-32",null,"CEMENT SCREEDS",{"$nulls":8},4242,null,0,{"$nulls":12},1,13,12,48,"H","0"]
[]
["2-32",null,"Cement screed on concrete:",{"$nulls":8},4243,null,0,{"$nulls":12},1,13,12,48,"S","0"]
[]
["2-32","2","30mm Thick screeds steel trowelled on concrete floors.","m²",{"v":618,"d":"618.00"},null,{"$f":"J1411*F1411","v":0},null,null,618,null,4244,null,0,{"$nulls":12},1,13,12,48,"I","2"]
[]
[]
[null,null,"Bill Total",{"$nulls":4},{"$f":"SUM(G1399:G1413)","v":0}]
[]
[]
[]
[null,null,"BILL NO.13 : TILING",{"$nulls":23},1,13,13,51,"H"]
[]
["2-33",null,"The Tenderer is referred to the relevant clauses in the separate document \"Model Preambles for Trades\" and to the Supplementary Preambles incorporated at the front of these Bills of Quantities as well as hereunder.",{"$nulls":8},6059,null,0,{"$nulls":12},1,13,13,51,"C","0"]
[]
["2-33",null,"WALL TILING",{"$nulls":8},6060,null,0,{"$nulls":12},1,13,13,51,"H","0"]
[]
["2-33",null,"330 X 330mm Johnson \"Granito\" (GN570 Mid Grey colour) ceramic wall tiles fixed to plaster with approved tile adhesive and pointed with white cement:",{"$nulls":8},6061,null,0,{"$nulls":12},1,13,13,51,"S","0"]
[]
["2-33","1","Splashbacks.","m²",{"v":5,"d":"5.00"},null,{"$f":"J1426*F1426","v":0},null,null,5,null,6062,null,0,{"$nulls":12},1,13,13,51,"I","2"]
[]
["2-33",null,"FLOOR TILING",{"$nulls":8},6554,null,0,{"$nulls":12},1,13,13,51,"H","0"]
[]
["2-33",null,"330 X 330mm Johnson 'Granito' (GN570 Mid Grey colour) ceramic floor tiles fixed with approved adhesive and pointed with white cement:",{"$nulls":8},6541,null,0,{"$nulls":12},1,13,13,51,"S","0"]
[]
["2-33","2","On floors and landings.","m²",{"v":88,"d":"88.00"},null,{"$f":"J1432*F1432","v":0},null,null,88,null,6555,null,0,{"$nulls":12},1,13,13,51,"I","2"]
[]
[]
[null,null,"Bill Total",{"$nulls":4},{"$f":"SUM(G1420:G1434)","v":0}]
[]
[]
[]
[null,null,"BILL NO.14 : PLUMBING AND DRAINAGE",{"$nulls":23},1,13,14,54,"H"]
[]
["2-34",null,"The Tenderer is referred to the relevant clauses in the separate document \"Model Preambles for Trades\" and to the Supplementary Preambles incorporated at the front of these Bills of Quantities as well as hereunder.",{"$nulls":8},4522,null,0,{"$nulls":12},1,13,14,54,"C","0"]
[]
["2-34",null,"FIRE APPLIANCES, ETC.",{"$nulls":8},4619,null,0,{"$nulls":12},1,13,14,54,"H","0"]
[]
["2-34",null,"Fire hose reels, etc.:",{"$nulls":8},4620,null,0,{"$nulls":12},1,13,14,54,"S","0"]
[]
["2-34","1","4,5kg Dry chemical powder fire extinguisher fixed to wall with meranti backboard, size 520 x 100 x 22mm thick, plugged and screwed to wall complete with hook.","No",{"v":15,"d":"15.00"},null,{"$f":"J1447*F1447","v":0},null,null,15,null,4621,null,0,{"$nulls":12},1,13,14,54,"I","N"]
[]
["2-34",null,"SANITARY FITTINGS AND GEYSERS",{"$nulls":8},4684,null,0,{"$nulls":12},1,13,14,54,"H","0"]
[]
["2-34",null,"Supply and fix the following sanitary fittings, geysers and equipment together with loose ancillary fittings supplied therewith, including unloading, storing, unpacking, hoisting or lowering as required, fixing and building into position, cutting all mortices and chases as required for fixing and building in position, cutting, brackets, clamps, etc., and connecting up to existing pipework and handing over in perfect working order at completion:",{"$nulls":8},4685,null,0,{"$nulls":12},1,13,14,54,"S","0"]
[]
["2-34","2","Cobra Pause Close coupled toilet suite (Supplier code: COB-KM2-100FS) with top dual flush capacity with 3L and 4.2L flush available with box rim including cistern, cistern fittings, pan, soft close seat and cover, connector, floor fixing set, overflow plug hole supplied and installed complete. Installation and fixing to be done in strict accordance with the manufacturer's","No",{"v":21,"d":"21.00"},null,{"$f":"J1453*F1453","v":0},null,null,21,null,4687,null,0,{"$nulls":12},1,13,14,54,"I","N"]
[]
["2-34","3","Protea Paraplegic 90 degree close coupled paraplegic toilet pan and matching 9 litre cistern (Supplier code: VAA-750246WH) cistern fittings, pan, seat and cover, connector, floor fixing set, overflow plug supplied and installed complete. Installation and fixing to be done in strict accordance with the manufacturer's recommendations.","No",{"v":1,"d":"1.00"},null,{"$f":"J1455*F1455","v":0},null,null,1,null,4689,null,0,{"$nulls":12},1,13,14,54,"I","N"]
[]
["2-34","4","Duravit Fizz urinal colour White Alpin (Code: 82336 0000) size 285 x 305mm, fixed to wall with 2No. 8 x 120mm mounting bolts supplied and installed complete.","No",{"v":2,"d":"2.00"},null,{"$f":"J1457*F1457","v":0},null,null,2,null,4691,null,0,{"$nulls":12},1,13,14,54,"I","N"]
[]
["2-35","5","Cobra Welcome Medium round wall hung basin 430mm long x 390mm high including one pre-punched tap hole in the centre of the basin to receive mixer, wall mounting brackets. Installation and fixing to be done in strict accordance with the manufacturer's recommendations.","No",{"v":16,"d":"16.00"},null,{"$f":"J1459*F1459","v":0},null,null,16,null,6553,null,0,{"$nulls":12},1,13,14,54,"I","N"]
[]
["2-35",null,"TAPS, VALVES, ETC.",{"$nulls":8},6530,null,0,{"$nulls":12},1,13,14,54,"H","0"]
[]
["2-35",null,"Supply and fix the following taps, valves, etc. together with loose ancillary fittings supplied therewith, including unloading, storing, unpacking, hoisting or lowering as required, fixing and building into position, cutting all mortices and chases as required for fixing and building in position, cutting, brackets, clamps, etc., and connecting up to existing pipework and handing over in perfect working order at completion:",{"$nulls":8},6531,null,0,{"$nulls":12},1,13,14,54,"S","0"]
[]
["2-35","6","Cobra chrome plated pillar tap.","No",{"v":15,"d":"15.00"},null,{"$f":"J1465*F1465","v":0},null,null,15,null,6529,null,0,{"$nulls":12},1,13,14,54,"I","N"]
[]
["2-35","7","Cobra chrome plated paraplegic pillar tap.","No",{"v":1,"d":"1.00"},null,{"$f":"J1467*F1467","v":0},null,null,1,null,6532,null,0,{"$nulls":12},1,13,14,54,"I","N"]
[]
["2-35",null,"WASTE UNIONS, TRAPS, ETC.",{"$nulls":8},6533,null,0,{"$nulls":12},1,13,14,54,"H","0"]
[]
["2-35",null,"Supply and fix the following wate unions, traps, etc. together with loose ancillary fittings supplied therewith, including unloading, storing, unpacking, hoisting or lowering as required, fixing and building into position, cutting all mortices and chases as required for fixing and building in position, cutting, brackets, clamps, etc., and connecting up to existing pipework and handing over in perfect working order at completion:",{"$nulls":8},6534,null,0,{"$nulls":12},1,13,14,54,"S","0"]
[]
["2-35","8","50mm Resealable 'S' trap.","No",{"v":16,"d":"16.00"},null,{"$f":"J1473*F1473","v":0},null,null,16,null,6535,null,0,{"$nulls":12},1,13,14,54,"I","N"]
[]
["2-35",null,"BUDGETARY ALLOWANCES",{"$nulls":8},6536,null,0,{"$nulls":12},1,13,14,54,"H","0"]
[]
["2-35",null,"The following budgetary allowances cover work which is not fully defined at tender date and which is intended to be executed by the contractor and/or specialist sub-contractors and will be measured at completion and priced in terms of the contract. Tenders are to make the necessary allowances for this scope of work as no claim for additional prliminaries, etc., will be entertained once this scope of work is realised. The amounts shown shall be used as directed by the Principal Agent and shall be deducted in whole or in part if not required:",{"$nulls":8},6537,null,0,{"$nulls":12},1,13,14,54,"C","0"]
[]
["2-35","9","Provide the amount of R20,000.00 (Twenty Thousand Rand) for Sundry Plumbing Works.","Item",null,{"v":20000,"d":"20,000.00"},{"$f":"J1479*F1479","v":{"v":20000,"d":"20,000.00"}},null,null,1,null,6538,null,0,{"$nulls":12},1,13,14,54,"I","I"]
[]
[]
[null,null,"Bill Total",{"$nulls":4},{"$f":"SUM(G1441:G1481)","v":{"v":20000,"d":"20,000.00"}}]
[]
[]
[]
[null,null,"BILL NO.15 : GLAZING",{"$nulls":23},1,13,15,63,"H"]
[]
["2-37",null,"The Tenderer is referred to the relevant clauses in the separate document \"Model Preambles for Trades\" and to the Supplementary Preambles incorporated at the front of these Bills of Quantities as well as hereunder.",{"$nulls":8},4624,null,0,{"$nulls":12},1,13,15,63,"C","0"]
[]
["2-37",null,"GLAZING TO STEEL WITH PUTTY",{"$nulls":8},4625,null,0,{"$nulls":12},1,13,15,63,"H","0"]
[]
["2-37",null,"4mm Clear float glass:",{"$nulls":8},4626,null,0,{"$nulls":12},1,13,15,63,"S","0"]
[]
["2-37","1","Panes exceeding 0,1m² and not exceeding 0,5m².","m²",{"v":73,"d":"73.00"},null,{"$f":"J1494*F1494","v":0},null,null,73,null,4627,null,0,{"$nulls":12},1,13,15,63,"I","2"]
[]
["2-37",null,"4mm Opaque float glass:",{"$nulls":8},4840,null,0,{"$nulls":12},1,13,15,63,"S","0"]
[]
["2-37","2","Panes exceeding 0,1m² and not exceeding 0,5m².","m²",{"v":18,"d":"18.00"},null,{"$f":"J1498*F1498","v":0},null,null,18,null,4839,null,0,{"$nulls":12},1,13,15,63,"I","2"]
[]
["2-37",null,"TOPS, SHELVES, DOORS, MIRRORS, ETC.",{"$nulls":8},4841,null,0,{"$nulls":12},1,13,15,63,"H","0"]
[]
["2-37",null,"6mm 'GG' quality polished silvered float glass copper backed mirrors with polished edges holed for and fixed with round nose chromium plated mirror screws with rubber buffers to plugs in brickwork or concrete:",{"$nulls":8},4848,null,0,{"$nulls":12},1,13,15,63,"S","0"]
[]
["2-37","3","Size of 450 x 600mm high.","No",{"v":16,"d":"16.00"},null,{"$f":"J1504*F1504","v":0},null,null,16,null,4849,null,0,{"$nulls":12},1,13,15,63,"I","N"]
[]
[]
[null,null,"Bill Total",{"$nulls":4},{"$f":"SUM(G1488:G1506)","v":0}]
[]
[]
[]
[null,null,"BILL NO.16 : PAINTWORK",{"$nulls":23},1,13,16,66,"H"]
[]
["2-38",null,"The Tenderer is referred to the relevant clauses in the separate document \"Model Preambles for Trades\" and to the Supplementary Preambles incorporated at the front of these Bills of Quantities as well as hereunder.",{"$nulls":8},4053,null,0,{"$nulls":12},1,13,16,66,"C","0"]
[]
["2-38",null,"SUPPLEMENTARY PREAMBLES",{"$nulls":8},5776,null,0,{"$nulls":12},1,13,16,66,"H","0"]
[]
["2-38",null,"Colours shall be to the Architect's approved colours and there shall be no variation in price due to the type of colours. The tenderer is deemed to have allowed for this in his rates.",{"$nulls":8},5777,null,0,{"$nulls":12},1,13,16,66,"C","0"]
[]
["2-38",null,"Doors to be lightly sanded and cleaned of dust and dirt before application of paint.",{"$nulls":8},5778,null,0,{"$nulls":12},1,13,16,66,"C","0"]
[]
["2-38",null,"PREPARATORY WORK TO EXISTING WORK",{"$nulls":8},6029,null,70740,{"$nulls":12},1,13,16,66,"S","0"]
[]
["2-38",null,"Previously painted plastered surfaces",{"$nulls":8},6030,null,70760,{"$nulls":12},1,13,16,66,"C","0"]
[]
[null,null,"Surfaces shall be thoroughly washed down and allowed to dry completely before any paint is applied. Blistered or peeling paint shall be completely removed and cracks shall be opened, filled with a suitable filler and finished smooth",{"$nulls":8},6030,null,70760,{"$nulls":12},1,13,16,66,"C","0"]
[]
["2-38",null,"Previously painted metal surfaces",{"$nulls":8},6031,null,70780,{"$nulls":12},1,13,16,66,"C","0"]
[]
[null,null,"Surfaces shall be thoroughly rubbed and cleaned down.  Blistered or peeling paint shall be completely removed down to bare metal",{"$nulls":8},6031,null,70780,{"$nulls":12},1,13,16,66,"C","0"]
[]
["2-38",null,"Previously painted wood surfaces",{"$nulls":8},6032,null,70800,{"$nulls":12},1,13,16,66,"C","0"]
[]
[null,null,"Surfaces shall be thoroughly cleaned down.  Blistered or peeling paint shall be completely removed and cracks and crevices shall be primed, filled with suitable filler and finished smooth",{"$nulls":8},6032,null,70800,{"$nulls":12},1,13,16,66,"C","0"]
[]
["2-38",null,"ON EXISTING FLOATED PLASTER SURFACES",{"$nulls":8},4057,null,0,{"$nulls":12},1,13,16,66,"H","0"]
[]
["2-38",null,"Prepare surfaces and remove all loose material and apply three coats interior quality PVA paint:",{"$nulls":8},4058,null,0,{"$nulls":12},1,13,16,66,"S","0"]
[]
["2-38","1","Interior walls.","m²","  1 465",null,{"$f":"J1539*F1539","v":0},null,null,1465,null,4059,null,0,{"$nulls":12},1,13,16,66,"I","2"]
[]
["2-38",null,"Prepare and remove all loose material and apply one coat \"Dulux\" Trade alkaline resistant primer, one undercoat \"Dulux\" Trade Universla and two coats \"Dulux\" Pearglo water-based paint, or similar approved, applied in accordance with the manufacturer's instruction:",{"$nulls":8},4868,null,0,{"$nulls":12},1,13,16,66,"S","0"]
[]
["2-38","2","External walls.","m²",{"v":150,"d":"150.00"},null,{"$f":"J1543*F1543","v":0},null,null,150,null,4825,null,0,{"$nulls":12},1,13,16,66,"I","2"]
[]
["2-39",null,"ON GRANO SCREEDS",{"$nulls":8},5779,null,0,{"$nulls":12},1,13,16,66,"H","0"]
[]
["2-39",null,"Prepare surfaces and apply one coat clear expoxy primer and two coats 'StonCor' Dovegrey epoxy paint as per the manufacturer's specification:",{"$nulls":8},5780,null,0,{"$nulls":12},1,13,16,66,"S","0"]
[]
["2-39","3","On grano floors.","m²",{"v":276,"d":"276.00"},null,{"$f":"J1549*F1549","v":0},null,null,276,null,5783,null,0,{"$nulls":12},1,13,16,66,"I","2"]
[]
["2-39",null,"ON WOOD",{"$nulls":8},4077,null,0,{"$nulls":12},1,13,16,66,"H","0"]
[]
["2-39",null,"Strip, sand down, prepare and apply two coats polyurethane varnish on:",{"$nulls":8},4080,null,0,{"$nulls":12},1,13,16,66,"S","0"]
[]
["2-39","4","Exterior doors.","m²",{"v":95,"d":"95.00"},null,{"$f":"J1555*F1555","v":0},null,null,95,null,4081,null,0,{"$nulls":12},1,13,16,66,"I","2"]
[]
["2-39","5","Skirtings and quadrant bead, rails, cornices, etc., not exceeding 300 mm girth:","m","  1 361",null,{"$f":"J1557*F1557","v":0},null,null,1361,null,5782,null,0,{"$nulls":12},1,13,16,66,"I","1"]
[]
["2-39",null,"Prepare and apply one coat pink wood primer, stop and apply two finishing coats of eggshell finish enamel on:",{"$nulls":8},5781,null,0,{"$nulls":12},1,13,16,66,"S","0"]
[]
["2-39","6","Internal doors.","m²",{"v":86,"d":"86.00"},null,{"$f":"J1561*F1561","v":0},null,null,86,null,4724,null,0,{"$nulls":12},1,13,16,66,"I","2"]
[]
["2-39",null,"Prepare and apply two coats carbolineum:",{"$nulls":8},4851,null,0,{"$nulls":12},1,13,16,66,"S","0"]
[]
["2-39","7","On exposed roof timbers at eaves and verges (measured flat).","m²",{"v":245,"d":"245.00"},null,{"$f":"J1565*F1565","v":0},null,null,245,null,4852,null,0,{"$nulls":12},1,13,16,66,"I","2"]
[]
["2-39",null,"PLASTERBOARD",{"$nulls":8},4089,null,0,{"$nulls":12},1,13,16,66,"H","0"]
[]
["2-39",null,"Prepare, prime nail heads and strips with zinc chromate primer, one universal undercoat and two finishing coats of semi-gloss PVA on:",{"$nulls":8},4090,null,0,{"$nulls":12},1,13,16,66,"S","0"]
[]
["2-39","8","General surfaces of ceilings.","m²",{"v":704,"d":"704.00"},null,{"$f":"J1571*F1571","v":0},null,null,704,null,4091,null,0,{"$nulls":12},1,13,16,66,"I","2"]
[]
["2-39","9","On drywall partitioning.","m²",{"v":62,"d":"62.00"},null,{"$f":"J1573*F1573","v":0},null,null,62,null,6569,null,0,{"$nulls":12},1,13,16,66,"I","2"]
[]
["2-39",null,"VINYL TILES",{"$nulls":8},4092,null,0,{"$nulls":12},1,13,16,66,"H","0"]
[]
["2-39",null,"Prepare and apply two coats dressing on:",{"$nulls":8},4093,null,0,{"$nulls":12},1,13,16,66,"S","0"]
[]
["2-39","10","General surfaces of vinyl tile flooring.","m²",{"v":530,"d":"530.00"},null,{"$f":"J1579*F1579","v":0},null,null,530,null,4094,null,0,{"$nulls":12},1,13,16,66,"I","2"]
[]
["2-39",null,"ON FIBRE-CEMENT",{"$nulls":8},4085,null,0,{"$nulls":12},1,13,16,66,"H","0"]
[]
["2-39",null,"Prepare and apply one coat zinc chromate to nail heads and H-spline strips, one universal undercoat, stop and apply two finishing coats of eggshell enamel on:",{"$nulls":8},4086,null,0,{"$nulls":12},1,13,16,66,"S","0"]
[]
["2-39","11","Fascias, bargeboards, etc.","m²",{"v":154,"d":"154.00"},null,{"$f":"J1585*F1585","v":0},null,null,154,null,4088,null,0,{"$nulls":12},1,13,16,66,"I","2"]
[]
[]
[null,null,"Bill Total",{"$nulls":4},{"$f":"SUM(G1513:G1587)","v":0}]
[]
[]
[null,null,"Section Total ",{"$nulls":4},{"$f":"SUM(G756:G1587)","v":{"v":128000,"d":"128,000.00"}}]
[]
[]
[null,null,"SECTION NO. 3 : BUILDING WORKS",{"$nulls":23},1,14,1,6,"H"]
[]
[]
[null,null,"BILL NO.1 : EARTHWORKS",{"$nulls":23},1,14,1,6,"H"]
[]
["3-2",null,"The Tenderer is referred to the relevant clauses in the separate document \"Model Preambles for Trades\" and to the Supplementary Preambles incorporated at the front of these Bills of Quantities as well as hereunder.",{"$nulls":8},4988,null,0,{"$nulls":12},1,14,1,6,"C","0"]
[]
["3-2",null,"SUPPLEMENTARY PREAMBLES",{"$nulls":8},4942,null,0,{"$nulls":12},1,14,1,6,"H","0"]
[]
["3-2",null,"Carting away of excavated material:",{"$nulls":8},4943,null,0,{"$nulls":12},1,14,1,6,"S","0"]
[]
["3-2",null,"Descriptions of carting away of excavated material shall be deemed to include loading excavated material onto trucks directly from the excavations or, alternatively, from stock piles situated on the building site.",{"$nulls":8},4944,null,0,{"$nulls":12},1,14,1,6,"C","0"]
[]
["3-2",null,"Filling",{"$nulls":8},4945,null,47300,{"$nulls":12},1,14,1,6,"S","0"]
[]
["3-2",null,"Notwithstanding the reference to prescribed multiple handling in clause 1, Earthworks, of the Standard System of Measuring Building Work, prices for filling and backfilling shall include for all selection and any necessary multiple handling of material",{"$nulls":8},4946,null,47400,{"$nulls":12},1,14,1,6,"C","0"]
[]
["3-2",null,"Testing",{"$nulls":8},4947,null,47700,{"$nulls":12},1,14,1,6,"S","0"]
[]
["3-2",null,"Prices for filling are to include for all necessary density tests in accordance with SABS 1200D except for additional specialist testing as instructed by the Engineer.",{"$nulls":8},4948,null,47800,{"$nulls":12},1,14,1,6,"C","0"]
[]
["3-2",null,"EXCAVATION, FILLING, ETC. OTHER THAN BULK",{"$nulls":8},4952,null,0,{"$nulls":12},1,14,1,6,"H","0"]
[]
["3-2",null,"Excavation in earth not exceeding 2m deep:",{"$nulls":8},4953,null,0,{"$nulls":12},1,14,1,6,"S","0"]
[]
["3-2","1","Trenches.","m³",{"v":20,"d":"20.00"},null,{"$f":"J1619*F1619","v":0},null,null,20,null,4954,null,0,{"$nulls":12},1,14,1,6,"I","3"]
[]
["3-2","2","Holes.","m³",0.43,null,{"$f":"J1621*F1621","v":0},null,null,0.43,null,4955,null,0,{"$nulls":12},1,14,1,6,"I","3"]
[]
["3-2","3","Reduced levels under floors.","m³",{"v":15,"d":"15.00"},null,{"$f":"J1623*F1623","v":0},null,null,15,null,4956,null,0,{"$nulls":12},1,14,1,6,"I","3"]
[]
["3-2",null,"Extra over trench and hole excavations in earth for excavation:",{"$nulls":8},4959,null,0,{"$nulls":12},1,14,1,6,"S","0"]
[]
["3-2","4","Soft rock.","m³",{"v":2,"d":"2.00"},null,{"$f":"J1627*F1627","v":0},null,null,2,null,4960,null,0,{"$nulls":12},1,14,1,6,"I","3"]
[]
["3-2","5","Hard rock.","m³",{"v":1,"d":"1.00"},null,{"$f":"J1629*F1629","v":0},null,null,1,null,4961,null,0,{"$nulls":12},1,14,1,6,"I","3"]
[]
["3-2",null,"Back excavation of vertical sides of excavations in earth for working space including backfilling compacted to 95% Mod AASHTO density:",{"$nulls":8},4962,null,60700,{"$nulls":12},1,14,1,6,"S","0"]
[]
["3-2","6","Not exceeding 1.5m deep for placing and removing formwork to walls etc., against excavated face.","m²",{"v":54,"d":"54.00"},null,{"$f":"J1633*F1633","v":0},null,null,54,null,4963,null,61100,{"$nulls":12},1,14,1,6,"I","2"]
[]
["3-3",null,"Extra over all excavations for carting away:",{"$nulls":8},4964,null,0,{"$nulls":12},1,14,1,6,"S","0"]
[]
["3-3","7","Surplus material from excavations and/or stock piles on site to a dumping site to be located by the Contractor.","m³",{"v":22,"d":"22.00"},null,{"$f":"J1637*F1637","v":0},null,null,22,null,4965,null,0,{"$nulls":12},1,14,1,6,"I","3"]
[]
["3-3",null,"Risk of collapse of excavations:",{"$nulls":8},4966,null,0,{"$nulls":12},1,14,1,6,"S","0"]
[]
["3-3","8","Sides of trench and hole excavations not exceeding 1,5m deep.","m²",{"v":54,"d":"54.00"},null,{"$f":"J1641*F1641","v":0},null,null,54,null,4967,null,0,{"$nulls":12},1,14,1,6,"I","2"]
[]
["3-3",null,"Keeping excavations free of water:",{"$nulls":8},4969,null,0,{"$nulls":12},1,14,1,6,"S","0"]
[]
["3-3","9","Keeping excavations free of all water other than subterranean water.","Item",{"v":1,"d":"1.00"},null,{"$f":"J1645*F1645","v":0},null,null,1,null,4970,null,0,{"$nulls":12},1,14,1,6,"I","I"]
[]
["3-3",null,"FILLING, ETC.",{"$nulls":8},4971,null,1766,{"$nulls":12},1,14,1,6,"H","0"]
[]
["3-3",null,"Compaction of surfaces:",{"$nulls":8},4972,null,1811,{"$nulls":12},1,14,1,6,"S","0"]
[]
["3-3","10","Compaction of ground surfaces under floors, etc including scarifying for a depth of 150mm, breaking down oversize material, adding suitable material where necessary and compacting to 93% Mod AASHTO density.","m²",{"v":104,"d":"104.00"},null,{"$f":"J1651*F1651","v":0},null,null,104,null,4973,null,1811,{"$nulls":12},1,14,1,6,"I","2"]
[]
["3-3",null,"Earth filling from excavations or prescibed stock piles on site compacted in 150mm layers to 93% Mod AASHTO at -1 to +2 of its optimum moisture content:",{"$nulls":8},4974,null,0,{"$nulls":12},1,14,1,6,"S","0"]
[]
["3-3","11","Backfilling to trenches, holes, etc.","m³",{"v":14,"d":"14.00"},null,{"$f":"J1655*F1655","v":0},null,null,14,null,4975,null,0,{"$nulls":12},1,14,1,6,"I","3"]
[]
["3-3",null,"G5 Earth filling supplied by the Contractor compacted in 150mm layers to 95% Mod AASHTO at -1 to +2 of its optimum moisture content:",{"$nulls":8},4976,null,0,{"$nulls":12},1,14,1,6,"S","0"]
[]
["3-3","12","Under floors.","m³",{"v":10,"d":"10.00"},null,{"$f":"J1659*F1659","v":0},null,null,10,null,4977,null,0,{"$nulls":12},1,14,1,6,"I","3"]
[]
["3-3",null,"TESTS",{"$nulls":8},4981,null,1811,{"$nulls":12},1,14,1,6,"H","0"]
[]
["3-3",null,"Prescribed density tests on flling:",{"$nulls":8},4982,null,1811,{"$nulls":12},1,14,1,6,"S","0"]
[]
["3-3","13","Modified AASHTO density test.","No",{"v":1,"d":"1.00"},null,{"$f":"J1665*F1665","v":0},null,null,1,null,4983,null,1819,{"$nulls":12},1,14,1,6,"I","N"]
[]
["3-3",null,"SOIL POISONING",{"$nulls":8},4984,null,0,{"$nulls":12},1,14,1,6,"H","0"]
[]
["3-3",null,"Soil insecticide in accordance with SANS 5859:",{"$nulls":8},4985,null,0,{"$nulls":12},1,14,1,6,"S","0"]
[]
["3-3","14","Under floors etc. including forming and poisoning shallow furrows against foundation walls etc., filling in furrows and ramming.","m²",{"v":69,"d":"69.00"},null,{"$f":"J1671*F1671","v":0},null,null,69,null,4986,null,0,{"$nulls":12},1,14,1,6,"I","2"]
[]
["3-3","15","To bottoms and sides of trenches etc.","m²",{"v":74,"d":"74.00"},null,{"$f":"J1673*F1673","v":0},null,null,74,null,4987,null,0,{"$nulls":12},1,14,1,6,"I","2"]
[]
[]
[null,null,"Bill Total",{"$nulls":4},{"$f":"SUM(G1599:G1675)","v":0}]
[]
[]
[]
[null,null,"BILL NO.2 : CONCRETE, FORMWORK AND REINFORCEMENT",{"$nulls":23},1,14,2,15,"H"]
[]
["3-5",null,"The Tenderer is referred to the relevant clauses in the separate document \"Model Preambles for Trades\" and to the Supplementary Preambles incorporated at the front of these Bills of Quantities as well as hereunder.",{"$nulls":8},4989,null,0,{"$nulls":12},1,14,2,15,"C","0"]
[]
["3-5",null,"SUPPLEMENTARY PREAMBLES",{"$nulls":8},4990,null,0,{"$nulls":12},1,14,2,15,"H","0"]
[]
["3-5",null,"Cost of tests:",{"$nulls":8},4991,null,0,{"$nulls":12},1,14,2,15,"S","0"]
[]
["3-5",null,"The costs of making, storing and testing of concrete test cubes as required under clause 7 'Tests' of SABS 1200 G shall include the cost of providing cube moulds necessary for the purpose, for testing costs and for submitting reports on the tests to the Principal Agent. The testing shall be undertaken by an independent firm or institution nominated by the Contractor to the approval of the Principal Agent. (Test cubes are measured separately).",{"$nulls":8},4992,null,0,{"$nulls":12},1,14,2,15,"C","0"]
[]
["3-5",null,"Formwork:",{"$nulls":8},4993,null,2436,{"$nulls":12},1,14,2,15,"S","0"]
[]
["3-5",null,"Descriptions of formwork shall be deemed to include use and waste only (except where described as left in or permanent), for fitting together in the required forms, wedging, plumbing and fixing to true angles and surfaces as necessary to ensure easy release during stripping and for reconditioning as necessary before re-use.",{"$nulls":8},4994,null,2437,{"$nulls":12},1,14,2,15,"C","0"]
[]
["3-5",null,"Formwork to soffits of solid slabs etc., shall be deemed to be to slabs not exceeding 250mm thick unless otherwise described.",{"$nulls":8},4995,null,2439,{"$nulls":12},1,14,2,15,"C","0"]
[]
["3-5",null,"Unless otherwise described, formwork to all concrete is deemed to include for propping exceeding 1,5m and not exceeding 3,5m high above bearing level.",{"$nulls":8},4996,null,3011,{"$nulls":12},1,14,2,15,"C","0"]
[]
["3-5",null,"Formwork to sides of bases, pile caps, ground beams, etc., will only be measured where it is prescribed by the Engineer for design reasons.  Formwork necessitated by irregularity or collapse of excavated faces will not be measured and the cost thereof shall be deemed to be included in the allowance for taking the risk of collapse of the sides of the excavations, provision for which is made in Earthworks.",{"$nulls":8},4997,null,2440,{"$nulls":12},1,14,2,15,"C","0"]
[]
["3-6",null,"Cost of tests:",{"$nulls":8},5416,null,0,{"$nulls":12},1,14,2,15,"S","0"]
[]
["3-6",null,"The costs of making, storing and testing of concrete test cubes as required under clause 7 'Tests' of SABS 1200 G shall include the cost of providing cube moulds necessary for the purpose, for testing costs and for submitting reportson the tests to the architect.  The testing shall be undertaken by an independent firm or institution nominated by the contractor to the approval of the architect.  (Test cubes are measured separately) '",{"$nulls":8},5417,null,0,{"$nulls":12},1,14,2,15,"C","0"]
[]
["3-6",null,"Formwork:",{"$nulls":8},5418,null,0,{"$nulls":12},1,14,2,15,"S","0"]
[]
["3-6",null,"Descriptions of formwork shall be deemed to include use and waste only (except where described as 'left in' or 'permanent'), for fitting together in the required forms, wedging, plumbing and fixing to true angles and surfaces as necessaryto ensure easy release during stripping and for reconditioning as necessary before re-use. The vertical strutting shall be carried down to such construction as is sufficiently strong to afford the required support without damage and shall remain in position until the newly constructed work is able to support itself. '",{"$nulls":8},5419,null,0,{"$nulls":12},1,14,2,15,"C","0"]
[]
["3-6",null,"Descriptions of formwork shall be deemed to include use and waste only (except where described as 'left in' or 'permanent'), for fitting together in the required forms, wedging, plumbing and fixing to true angles and surfaces as necessary to ensure easy release during stripping and for reconditioning as necessary before re-use. The vertical strutting shall be carried down to such construction as is sufficiently strong to afford the required support without damage and shall remain in position until the newly constructed work is able to support itself. '",{"$nulls":8},5420,null,0,{"$nulls":12},1,14,2,15,"C","0"]
[]
["3-6",null,"UNREINFORCED CONCRETE CAST AGAINST EXCAVATED SURFACES",{"$nulls":8},6033,null,0,{"$nulls":12},1,14,2,15,"H","0"]
[]
["3-6",null,"15MPa/19mm concrete in:",{"$nulls":8},6034,null,0,{"$nulls":12},1,14,2,15,"S","0"]
[]
["3-6","1","Surface blinding under footings, bases, foundation beams, etc.","m³",{"v":1,"d":"1.00"},null,{"$f":"J1714*F1714","v":0},null,null,1,null,6035,null,0,{"$nulls":12},1,14,2,15,"I","3"]
[]
["3-6",null,"REINFORCED CONCRETE CAST AGAINST EXCAVATED SURFACES",{"$nulls":8},4998,null,0,{"$nulls":12},1,14,2,15,"H","0"]
[]
["3-6",null,"25 MPa/19mm Concrete:",{"$nulls":8},4999,null,0,{"$nulls":12},1,14,2,15,"S","0"]
[]
["3-6","2","Strip footings.","m³",{"v":6,"d":"6.00"},null,{"$f":"J1720*F1720","v":0},null,null,6,null,5000,null,0,{"$nulls":12},1,14,2,15,"I","3"]
[]
["3-6","3","Bases.","m³",0.36,null,{"$f":"J1722*F1722","v":0},null,null,0.36,null,5001,null,0,{"$nulls":12},1,14,2,15,"I","3"]
[]
["3-6",null,"REINFORCED CONCRETE",{"$nulls":8},5002,null,0,{"$nulls":12},1,14,2,15,"H","0"]
[]
["3-6",null,"30 MPa/19mm Concrete:",{"$nulls":8},5003,null,0,{"$nulls":12},1,14,2,15,"S","0"]
[]
["3-6","4","Surface beds cast in panels on waterproofing.","m³",{"v":9,"d":"9.00"},null,{"$f":"J1728*F1728","v":0},null,null,9,null,5005,null,0,{"$nulls":12},1,14,2,15,"I","3"]
[]
["3-7","5","V-drains with top surface cast to falls.","m³",{"v":5,"d":"5.00"},null,{"$f":"J1730*F1730","v":0},null,null,5,null,5006,null,0,{"$nulls":12},1,14,2,15,"I","3"]
[]
["3-7",null,"TEST BLOCKS.",{"$nulls":8},5008,null,0,{"$nulls":12},1,14,2,15,"H","0"]
[]
["3-7",null,"Test blocks:",{"$nulls":8},5009,null,0,{"$nulls":12},1,14,2,15,"S","0"]
[]
["3-7","6","Making and testing set of three 150 x 150 x 150mm concrete strength test cubes.","Sets",{"v":2,"d":"2.00"},null,{"$f":"J1736*F1736","v":0},null,null,2,null,5010,null,0,{"$nulls":12},1,14,2,15,"I","S"]
[]
["3-7",null,"CONCRETE SUNDRIES",{"$nulls":8},5423,null,0,{"$nulls":12},1,14,2,15,"H","0"]
[]
["3-7",null,"40 MPa non-shrink grout:",{"$nulls":8},5424,null,112900,{"$nulls":12},1,14,2,15,"S","0"]
[]
["3-7","7","Bedding approximately 25mm thick under 200 x 200mm base plate including chamfered edges all round.","No",{"v":3,"d":"3.00"},null,{"$f":"J1742*F1742","v":0},null,null,3,null,5425,null,113000,{"$nulls":12},1,14,2,15,"I","N"]
[]
["3-7","8","Taking delivery and cast into top of concrete set of four holding down bolts (Bolts supplied by others) (sets in no. 4).","Sets",{"v":3,"d":"3.00"},null,{"$f":"J1744*F1744","v":0},null,null,3,null,5427,null,113000,{"$nulls":12},1,14,2,15,"I","S"]
[]
["3-7",null,"Finishing top surfaces of concrete smooth with a wood float:",{"$nulls":8},5012,null,0,{"$nulls":12},1,14,2,15,"S","0"]
[]
["3-7","9","Surface beds, slabs, etc.","m²",{"v":69,"d":"69.00"},null,{"$f":"J1748*F1748","v":0},null,null,69,null,5013,null,0,{"$nulls":12},1,14,2,15,"I","2"]
[]
["3-7","10","V-drains to falls.","m²",{"v":35,"d":"35.00"},null,{"$f":"J1750*F1750","v":0},null,null,35,null,6076,null,0,{"$nulls":12},1,14,2,15,"I","2"]
[]
["3-7",null,"ROUGH FORMWORK (DEGREE OF ACCURACY II)",{"$nulls":8},5016,null,0,{"$nulls":12},1,14,2,15,"H","0"]
[]
["3-7",null,"Rough formwork to sides:",{"$nulls":8},5017,null,-298,{"$nulls":12},1,14,2,15,"S","0"]
[]
["3-7","11","Strip footings.","m²",{"v":15,"d":"15.00"},null,{"$f":"J1756*F1756","v":0},null,null,15,null,5018,null,-299,{"$nulls":12},1,14,2,15,"I","2"]
[]
["3-7","12","Bases.","m²",{"v":3,"d":"3.00"},null,{"$f":"J1758*F1758","v":0},null,null,3,null,5019,null,-300,{"$nulls":12},1,14,2,15,"I","2"]
[]
["3-7","13","Edges, risers, ends and reveals not exceeding 300mm high or wide.","m",{"v":12,"d":"12.00"},null,{"$f":"J1760*F1760","v":0},null,null,12,null,5020,null,0,{"$nulls":12},1,14,2,15,"I","1"]
[]
["3-7",null,"MOVEMENT JOINTS, ETC.",{"$nulls":8},5021,null,0,{"$nulls":12},1,14,2,15,"H","0"]
[]
["3-7",null,"Isolation joints with 10mm softboard between vertical concrete and brick surfaces including necessary formwork:",{"$nulls":8},5022,null,0,{"$nulls":12},1,14,2,15,"S","0"]
[]
["3-7","14","Not exceeding 300mm high to edges of surface beds.","m",{"v":52,"d":"52.00"},null,{"$f":"J1766*F1766","v":0},null,null,52,null,5023,null,0,{"$nulls":12},1,14,2,15,"I","1"]
[]
["3-7",null,"Isolation joints with 10mm softboard between vertical concrete surfaces including necessary formwork:",{"$nulls":8},5026,null,0,{"$nulls":12},1,14,2,15,"S","0"]
[]
["3-7","15","Not exceeding 300mm high to edges of surface beds.","m",{"v":12,"d":"12.00"},null,{"$f":"J1770*F1770","v":0},null,null,12,null,5027,null,0,{"$nulls":12},1,14,2,15,"I","1"]
[]
["3-7",null,"Saw-cut joints:",{"$nulls":8},5024,null,0,{"$nulls":12},1,14,2,15,"S","0"]
[]
["3-7","16","3 x 40mm Saw-cut joints in top of concrete.","m",{"v":23,"d":"23.00"},null,{"$f":"J1774*F1774","v":0},null,null,23,null,5025,null,0,{"$nulls":12},1,14,2,15,"I","1"]
[]
["3-8",null,"REINFORCEMENT",{"$nulls":8},5028,null,0,{"$nulls":12},1,14,2,15,"H","0"]
[]
["3-8",null,"Fabric reinforcement:",{"$nulls":8},5029,null,0,{"$nulls":12},1,14,2,15,"S","0"]
[]
["3-8","17","Type 193 fabric reinforcement in concrete surface beds, etc.","m²",{"v":104,"d":"104.00"},null,{"$f":"J1780*F1780","v":0},null,null,104,null,5030,null,0,{"$nulls":12},1,14,2,15,"I","2"]
[]
["3-8",null,"High tensile steel reinforcement to structural concrete work:",{"$nulls":8},5032,null,0,{"$nulls":12},1,14,2,15,"S","0"]
[]
["3-8","18","Various diameter bars.","Kg",{"v":152,"d":"152.00"},null,{"$f":"J1784*F1784","v":0},null,null,152,null,5033,null,0,{"$nulls":12},1,14,2,15,"I","K"]
[]
[]
[null,null,"Bill Total",{"$nulls":4},{"$f":"SUM(G1682:G1786)","v":0}]
[]
[]
[]
[null,null,"BILL NO.3 : MASONRY",{"$nulls":23},1,14,3,21,"H"]
[]
["3-10",null,"The Tenderer is referred to the relevant clauses in the separate document \"Model Preambles for Trades\" and to the Supplementary Preambles incorporated at the front of these Bills of Quantities as well as hereunder.",{"$nulls":8},5034,null,0,{"$nulls":12},1,14,3,21,"C","0"]
[]
["3-10",null,"SUPPLEMENTARY PREAMBLES",{"$nulls":8},5035,null,692672,{"$nulls":12},1,14,3,21,"H","0"]
[]
["3-10",null,"BRICKWORK",{"$nulls":8},5036,null,10216,{"$nulls":12},1,14,3,21,"H","0"]
[]
["3-10",null,"Sizes in description:",{"$nulls":8},5037,null,10216,{"$nulls":12},1,14,3,21,"S","0"]
[]
["3-10",null,"Where sizes in descriptions are given in brick units, \"one brick\" shall represent the length and \"half brick\" the width of a brick",{"$nulls":8},5038,null,10216,{"$nulls":12},1,14,3,21,"C","0"]
[]
["3-10",null,"Facebricks:",{"$nulls":8},5039,null,10216,{"$nulls":12},1,14,3,21,"S","0"]
[]
["3-10",null,"Bricks shall be ordered timeously to obtain uniformity in size and colour",{"$nulls":8},5040,null,10216,{"$nulls":12},1,14,3,21,"C","0"]
[]
["3-10",null,"Pointing:",{"$nulls":8},5041,null,10216,{"$nulls":12},1,14,3,21,"S","0"]
[]
["3-10",null,"Descriptions of recessed pointing to fair face brickwork and face brickwork shall be deemed to include square recessed, hollow recessed, weathered pointing, etc.",{"$nulls":8},5042,null,10216,{"$nulls":12},1,14,3,21,"C","0"]
[]
["3-10",null,"Wall ties, etc.:",{"$nulls":8},5043,null,10216,{"$nulls":12},1,14,3,21,"S","0"]
[]
["3-10",null,"The minimum thickness of the galvanising to wall ties to be 750g/m2",{"$nulls":8},5044,null,10216,{"$nulls":12},1,14,3,21,"C","0"]
[]
["3-10",null,"Hollow walls:",{"$nulls":8},5438,null,10216,{"$nulls":12},1,14,3,21,"S","0"]
[]
["3-10",null,"Descriptions of hollow walls shall be deemed to include leaving perpends, at maximum 1m centres, of the bottom course of the external skin open as a weep hole",{"$nulls":8},5439,null,10216,{"$nulls":12},1,14,3,21,"C","0"]
[]
["3-10",null,"BRICKWORK IN FOUNDATIONS",{"$nulls":8},5045,null,0,{"$nulls":12},1,14,3,21,"H","0"]
[]
["3-10",null,"Brickwork of NFX bricks (14 MPa nominal compressive strength) in Class I mortar:",{"$nulls":8},5046,null,0,{"$nulls":12},1,14,3,21,"S","0"]
[]
["3-10","1","One brick walls.","m²",{"v":18,"d":"18.00"},null,{"$f":"J1823*F1823","v":0},null,null,18,null,5047,null,0,{"$nulls":12},1,14,3,21,"I","2"]
[]
["3-10",null,"BRICKWORK IN SUPERSTRUCTURE",{"$nulls":8},5761,null,0,{"$nulls":12},1,14,3,21,"H","0"]
[]
["3-10",null,"Brickwork of NFP bricks in Class II mortar:",{"$nulls":8},6016,null,0,{"$nulls":12},1,14,3,21,"S","0"]
[]
["3-10","2","One brick walls of two half brick skins with inner skin bagged and sealed.","m²",{"v":85,"d":"85.00"},null,{"$f":"J1829*F1829","v":0},null,null,85,null,5443,null,0,{"$nulls":12},1,14,3,21,"I","2"]
[]
["3-10","3","Half brick walls in beamfilling.","m²",{"v":5,"d":"5.00"},null,{"$f":"J1831*F1831","v":0},null,null,5,null,5442,null,0,{"$nulls":12},1,14,3,21,"I","2"]
[]
["3-11",null,"BRICKWORK SUNDRIES",{"$nulls":8},5445,null,0,{"$nulls":12},1,14,3,21,"H","0"]
[]
["3-11",null,"Brickwork reinforcement:",{"$nulls":8},5446,null,0,{"$nulls":12},1,14,3,21,"S","0"]
[]
["3-11","4","150mm Wide reinforcement built in horizontally.","m",{"v":437,"d":"437.00"},null,{"$f":"J1837*F1837","v":0},null,null,437,null,5055,null,0,{"$nulls":12},1,14,3,21,"I","1"]
[]
["3-11",null,"Turning pieces to lintels, etc:",{"$nulls":8},5453,null,0,{"$nulls":12},1,14,3,21,"S","0"]
[]
["3-11","5","220mm Wide turning piece to lintels etc.","m",{"v":9,"d":"9.00"},null,{"$f":"J1841*F1841","v":0},null,null,9,null,5454,null,0,{"$nulls":12},1,14,3,21,"I","1"]
[]
["3-11",null,"Galvanised wire ties etc:",{"$nulls":8},5455,null,0,{"$nulls":12},1,14,3,21,"S","0"]
[]
["3-11","6","4mm Diameter roof tie 2m girth bent double with one end fixed to timber and other end built into brickwork.","No",{"v":22,"d":"22.00"},null,{"$f":"J1845*F1845","v":0},null,null,22,null,5456,null,0,{"$nulls":12},1,14,3,21,"I","N"]
[]
["3-11",null,"Air bricks etc:",{"$nulls":8},5457,null,0,{"$nulls":12},1,14,3,21,"S","0"]
[]
["3-11","7","229 x 152mm Terracotta air brick.","No",{"v":4,"d":"4.00"},null,{"$f":"J1849*F1849","v":0},null,null,4,null,5458,null,0,{"$nulls":12},1,14,3,21,"I","N"]
[]
["3-11",null,"FACE BRICKWORK",{"$nulls":8},5459,null,0,{"$nulls":12},1,14,3,21,"H","0"]
[]
["3-11",null,"Corobrik Travetine FBX clay face brick of size 222 x 106 x 73mm manufactured in accordance with SANS 227:2007, bedded and jointed in class I mortar and pointed with recessed vertical and horizontal joints suitable for exposure zones 1-4:",{"$nulls":8},5460,null,0,{"$nulls":12},1,14,3,21,"S","0"]
[]
["3-11","8","Extra over brickwork for face brickwork.","m²",{"v":66,"d":"66.00"},null,{"$f":"J1855*F1855","v":0},null,null,66,null,5461,null,0,{"$nulls":12},1,14,3,21,"I","2"]
[]
["3-11","9","Extra over brickwork for face brickwork in dado.","m²",{"v":25,"d":"25.00"},null,{"$f":"J1857*F1857","v":0},null,null,25,null,6575,null,0,{"$nulls":12},1,14,3,21,"I","2"]
[]
["3-11","10","Extra over brickwork for facing gable walls.","m²",{"v":19,"d":"19.00"},null,{"$f":"J1859*F1859","v":0},null,null,19,null,5462,null,0,{"$nulls":12},1,14,3,21,"I","2"]
[]
["3-11","11","Extra over brickwork for facing beamfilling.","m²",{"v":5,"d":"5.00"},null,{"$f":"J1861*F1861","v":0},null,null,5,null,5463,null,0,{"$nulls":12},1,14,3,21,"I","2"]
[]
["3-11","12","Fair raking cutting.","m",{"v":17,"d":"17.00"},null,{"$f":"J1863*F1863","v":0},null,null,17,null,5466,null,0,{"$nulls":12},1,14,3,21,"I","1"]
[]
["3-11",null,"Brick-on-edge header course copings, sills, etc of Corobrik Travetine FBX clay face brick bedded and jointed in Class I mortar and pointed with recessed vertical and horizontal joints:",{"$nulls":8},5467,null,0,{"$nulls":12},1,14,3,21,"S","0"]
[]
["3-11","13","230mm Wide sill set sloping and slightly projecting.","m",{"v":8,"d":"8.00"},null,{"$f":"J1867*F1867","v":0},null,null,8,null,5468,null,0,{"$nulls":12},1,14,3,21,"I","1"]
[]
["3-11","14","Face brick-on-edge header course lintel.","m",{"v":9,"d":"9.00"},null,{"$f":"J1869*F1869","v":0},null,null,9,null,5469,null,0,{"$nulls":12},1,14,3,21,"I","1"]
[]
[]
[null,null,"Bill Total",{"$nulls":4},{"$f":"SUM(G1793:G1871)","v":0}]
[]
[]
[]
[null,null,"BILL NO.4 : WATERPROOFING",{"$nulls":23},1,14,4,24,"H"]
[]
["3-13",null,"The Tenderer is referred to the relevant clauses in the separate document \"Model Preambles for Trades\" and to the Supplementary Preambles incorporated at the front of these Bills of Quantities as well as hereunder.",{"$nulls":8},5470,null,0,{"$nulls":12},1,14,4,24,"C","0"]
[]
["3-13",null,"DAMPPROOFING OF WALLS AND FLOORS",{"$nulls":8},5472,null,0,{"$nulls":12},1,14,4,24,"H","0"]
[]
["3-13",null,"One layer of 375 micron embossed polyethylene dampproof course (SANS 952-1985 type B):",{"$nulls":8},5473,null,0,{"$nulls":12},1,14,4,24,"S","0"]
[]
["3-13","1","In walls, under cills, etc.","m²",{"v":14,"d":"14.00"},null,{"$f":"J1884*F1884","v":0},null,null,14,null,5474,null,0,{"$nulls":12},1,14,4,24,"I","2"]
[]
["3-13",null,"One layer of 250 micron green polyethylene waterproof sheeting (SANS 952-1985 type C) sealed at laps with PVC self-adhesive tape:",{"$nulls":8},5475,null,0,{"$nulls":12},1,14,4,24,"S","0"]
[]
["3-13","2","Under surface beds.","m²",{"v":69,"d":"69.00"},null,{"$f":"J1888*F1888","v":0},null,null,69,null,5476,null,0,{"$nulls":12},1,14,4,24,"I","2"]
[]
["3-13",null,"JOINT SEALANTS, ETC.",{"$nulls":8},5477,null,0,{"$nulls":12},1,14,4,24,"H","0"]
[]
["3-13",null,"Two-part grey polysulphide sealing compond including backing cord, bond breaker, primer,etc.:",{"$nulls":8},5478,null,0,{"$nulls":12},1,14,4,24,"S","0"]
[]
["3-13","3","3 x 40mm In saw cut joints in floors.","m",{"v":23,"d":"23.00"},null,{"$f":"J1894*F1894","v":0},null,null,23,null,5479,null,0,{"$nulls":12},1,14,4,24,"I","1"]
[]
["3-13","4","10 x 15mm In isolation joints including raking out isolation joint filler.","m",{"v":64,"d":"64.00"},null,{"$f":"J1896*F1896","v":0},null,null,64,null,5480,null,0,{"$nulls":12},1,14,4,24,"I","1"]
[]
[]
[null,null,"Bill Total",{"$nulls":4},{"$f":"SUM(G1878:G1898)","v":0}]
[]
[]
[]
[null,null,"BILL NO.5 : ROOF COVERINGS",{"$nulls":23},1,14,5,27,"H"]
[]
["3-14",null,"The Tenderer is referred to the relevant clauses in the separate document \"Model Preambles for Trades\" and to the Supplementary Preambles incorporated at the front of these Bills of Quantities as well as hereunder.",{"$nulls":8},5481,null,0,{"$nulls":12},1,14,5,27,"C","0"]
[]
["3-14",null,"CORRUGATED METAL SHEETING AND ACCESSORIES",{"$nulls":8},5482,null,0,{"$nulls":12},1,14,5,27,"H","0"]
[]
["3-14",null,"0.8mm Colomet finish IBR profile Z275 spelter galvanised steel troughed sheeting @ 25deg fall in single lengths fixed to timber purlins (measured elsewhere):",{"$nulls":8},5483,null,0,{"$nulls":12},1,14,5,27,"S","0"]
[]
["3-14","1","Roof covering with pitch not exceeding 25 degrees. (area measured on flat)","m²",{"v":76,"d":"76.00"},null,{"$f":"J1911*F1911","v":0},null,null,76,null,5484,null,0,{"$nulls":12},1,14,5,27,"I","2"]
[]
["3-14",null,"AG150 G550 Zincalume ride capping with broad flute closures:",{"$nulls":8},5485,null,0,{"$nulls":12},1,14,5,27,"S","0"]
[]
["3-14","2","Ridge capping to suit roof profile.","m",{"v":8,"d":"8.00"},null,{"$f":"J1915*F1915","v":0},null,null,8,null,5486,null,0,{"$nulls":12},1,14,5,27,"I","1"]
[]
["3-14",null,"RAINWATER DISPOSAL",{"$nulls":8},5487,null,0,{"$nulls":12},1,14,5,27,"H","0"]
[]
["3-14",null,"Seamless aluminium gutters:",{"$nulls":8},5488,null,0,{"$nulls":12},1,14,5,27,"S","0"]
[]
["3-14","3","125 x 75 x 0.8mm thick seamless aluminium OGEE gutters fixed according to manufacturer's specification.","m",{"v":17,"d":"17.00"},null,{"$f":"J1921*F1921","v":0},null,null,17,null,5489,null,0,{"$nulls":12},1,14,5,27,"I","1"]
[]
["3-14","4","Extra over gutter for stopped end.","No",{"v":4,"d":"4.00"},null,{"$f":"J1923*F1923","v":0},null,null,4,null,5490,null,0,{"$nulls":12},1,14,5,27,"I","N"]
[]
["3-14","5","Extra over 125 x 75mm mm eaves gutter for outlet for 100 x 75mm fluted aluminium pipe.","No",{"v":2,"d":"2.00"},null,{"$f":"J1925*F1925","v":0},null,null,2,null,5491,null,0,{"$nulls":12},1,14,5,27,"I","N"]
[]
["3-14","6","100 x 75mm Fluted aluminium rainwater pipes.","m",{"v":6,"d":"6.00"},null,{"$f":"J1927*F1927","v":0},null,null,6,null,5492,null,0,{"$nulls":12},1,14,5,27,"I","1"]
[]
["3-14","7","Extra over rainwater pipe for bend.","No",{"v":6,"d":"6.00"},null,{"$f":"J1929*F1929","v":0},null,null,6,null,5494,null,0,{"$nulls":12},1,14,5,27,"I","N"]
[]
["3-14","8","Extra over rainwater pipe for eaves offset 750mm projection.","No",{"v":2,"d":"2.00"},null,{"$f":"J1931*F1931","v":0},null,null,2,null,5495,null,0,{"$nulls":12},1,14,5,27,"I","N"]
[]
[]
[null,null,"Bill Total",{"$nulls":4},{"$f":"SUM(G1905:G1933)","v":0}]
[]
[]
[]
[null,null,"BILL NO.6 : CARPENTRY AND JOINERY",{"$nulls":23},1,14,6,30,"H"]
[]
["3-15",null,"The Tenderer is referred to the relevant clauses in the separate document \"Model Preambles for Trades\" and to the Supplementary Preambles incorporated at the front of these Bills of Quantities as well as hereunder.",{"$nulls":8},5499,null,0,{"$nulls":12},1,14,6,30,"C","0"]
[]
["3-15",null,"SUPPLEMENTARY PREAMBLES",{"$nulls":8},5500,null,0,{"$nulls":12},1,14,6,30,"H","0"]
[]
["3-15",null,"Prefabricated trusses shall be fabricated in a factory by a truss fabricator who has been awarded a Certificate of Competence by the Institute of Timber Construction and is approved by the Principal Agent.",{"$nulls":8},5501,null,0,{"$nulls":12},1,14,6,30,"C","0"]
[]
["3-15",null,"All trusses shall be designed by a registered Professional Engineer in accordance with SABS Code of Practice for Design of Timber Structures.",{"$nulls":8},5502,null,0,{"$nulls":12},1,14,6,30,"C","0"]
[]
["3-15",null,"The complete structure shall be inspected by the truss designer to ensure that the manufacture and erection details have been complied with.",{"$nulls":8},5503,null,0,{"$nulls":12},1,14,6,30,"C","0"]
[]
["3-15",null,"PREFABRICATED ROOF TRUSSES, ETC.",{"$nulls":8},5504,null,0,{"$nulls":12},1,14,6,30,"H","0"]
[]
["3-15",null,"Design, supply and installation of prefabricated timber roof construction complete including purlins, runners, bracing hips, valleys, cleats, purlins, etc., supplied and fixed complete:",{"$nulls":8},5507,null,0,{"$nulls":12},1,14,6,30,"S","0"]
[]
["3-15","1","Trusses for rectangular shaped building, size overall 7.84 x 9.64m on plan (Block H: X1 Classroom).","No",{"v":1,"d":"1.00"},null,{"$f":"J1954*F1954","v":0},null,null,1,null,5508,null,0,{"$nulls":12},1,14,6,30,"I","N"]
[]
["3-15",null,"Sawn softwood:",{"$nulls":8},5505,null,0,{"$nulls":12},1,14,6,30,"S","0"]
[]
["3-15","2","152 x 38mm Wall plates.","m",{"v":16,"d":"16.00"},null,{"$f":"J1958*F1958","v":0},null,null,16,null,5506,null,0,{"$nulls":12},1,14,6,30,"I","1"]
[]
["3-15",null,"STRUCTURAL TIMBERWORK ETC",{"$nulls":8},5518,null,39150,{"$nulls":12},1,14,6,30,"H","0"]
[]
["3-15",null,"Wrought laminated Class 7 SA Pine to walkways:",{"$nulls":8},5519,null,39550,{"$nulls":12},1,14,6,30,"S","0"]
[]
["3-15","3","50 x 228mm High bolted beams.","m",{"v":8,"d":"8.00"},null,{"$f":"J1964*F1964","v":0},null,null,8,null,5520,null,101573,{"$nulls":12},1,14,6,30,"I","1"]
[]
["3-15",null,"EAVES, VERGES, ETC.",{"$nulls":8},5521,null,0,{"$nulls":12},1,14,6,30,"H","0"]
[]
["3-15",null,"NUTEC fascia and barge boards:",{"$nulls":8},5522,null,0,{"$nulls":12},1,14,6,30,"S","0"]
[]
["3-15","4","EVERITE NUTEC medium density fibre cement fascia boards (Product no. 041-204) 12mm thick x 225mm with aluminium H profile fascia joiners  Product no. 665-195). Drill for and fix with hot deep galvanised drive screws and washers.","m",{"v":17,"d":"17.00"},null,{"$f":"J1970*F1970","v":0},null,null,17,null,5523,null,0,{"$nulls":12},1,14,6,30,"I","1"]
[]
["3-16","5","EVERITE NUTEC fibre cement barge boards (Product No 521-800) 330mm x 250mm. Everite Chromaprep Hprofile barge joiners (Product No 665-894) Drill for and fix with hot-dipped galvanised screws and washers 76 x 50mm trimmer battern fixed underside of purlin ends for barge board fixing.","m",{"v":21,"d":"21.00"},null,{"$f":"J1972*F1972","v":0},null,null,21,null,5763,null,0,{"$nulls":12},1,14,6,30,"I","1"]
[]
["3-16",null,"SKIRTINGS, ETC.",{"$nulls":8},5524,null,0,{"$nulls":12},1,14,6,30,"H","0"]
[]
["3-16",null,"Wrought meranti:",{"$nulls":8},5525,null,0,{"$nulls":12},1,14,6,30,"S","0"]
[]
["3-16","6","19 x 76mm Skirtings including 19mm quadrant bead, nailed.","m",{"v":29,"d":"29.00"},null,{"$f":"J1978*F1978","v":0},null,null,29,null,5526,null,0,{"$nulls":12},1,14,6,30,"I","1"]
[]
["3-16","7","100 x 65mm Cornice laid flat.","m",{"v":29,"d":"29.00"},null,{"$f":"J1980*F1980","v":0},null,null,29,null,5527,null,0,{"$nulls":12},1,14,6,30,"I","1"]
[]
["3-16","8","16 x 150mm dado rail.","m",{"v":29,"d":"29.00"},null,{"$f":"J1982*F1982","v":0},null,null,29,null,5528,null,0,{"$nulls":12},1,14,6,30,"I","1"]
[]
["3-16",null,"DOORS, ETC.",{"$nulls":8},5529,null,0,{"$nulls":12},1,14,6,30,"H","0"]
[]
["3-16",null,"Saligna Blaco hardwood doors hung to steel frames:",{"$nulls":8},5530,null,0,{"$nulls":12},1,14,6,30,"S","0"]
[]
["3-16","9","2032 x 813 x 44mm Ledged and braced battened door with 40 x 110mm styles and top rail, 20 x 150mm middle ledge, 20 x 225mm bottom ledge and 20 110mm braces.","No",{"v":1,"d":"1.00"},null,{"$f":"J1988*F1988","v":0},null,null,1,null,5531,null,0,{"$nulls":12},1,14,6,30,"I","N"]
[]
["3-16",null,"CUPBOARDS, ETC",{"$nulls":8},5540,null,277000,{"$nulls":12},1,14,6,30,"H","0"]
[]
["3-16",null,"The following joinery fittings are given as complete units i.e. the components of the units have not been given seperately. Descriptions of such units shall, therefore, be deemed to include all components, assembling, housing, notching, glueing, blocking, planting-on and screwing with countersunk screws, edge strips, thermosetting plastic laminate, glass, ironmongery, metalwork, paint or varnish finishes, etc. Prices are to include for all necessary filler pieces against walls etc.",{"$nulls":8},5541,null,277000,{"$nulls":12},1,14,6,30,"C","0"]
[]
["3-16",null,"Shop drawings are to be provided to the Architect for approval prior to construction and procurement of any of the below mentioned carpentry joinery work. No claims will be entertained for any loss suffered by the Contractor in respect of any work undertaken without the Architect's final approval.",{"$nulls":8},5791,null,277000,{"$nulls":12},1,14,6,30,"C","0"]
[]
["3-16",null,"References given in descriptions refer to the respective types of fitttings reflected on the Architect's drawing Annexed to these Bills of Quantities for tender purposes",{"$nulls":8},5542,null,277000,{"$nulls":12},1,14,6,30,"C","0"]
[]
["3-16","10","Steel stationary storage cabinet approximate size of 900 x 450 x 1800mm high or similar approved.","No",{"v":1,"d":"1.00"},null,{"$f":"J1998*F1998","v":0},null,null,1,null,6539,null,277101,{"$nulls":12},1,14,6,30,"I","N"]
[]
[]
[null,null,"Bill Total",{"$nulls":4},{"$f":"SUM(G1940:G2000)","v":0}]
[]
[]
[]
[null,null,"BILL NO.7 : CEILINGS PARTITIONS AND ACCESS FLOORING",{"$nulls":23},1,14,7,33,"H"]
[]
["3-18",null,"The Tenderer is referred to the relevant clauses in the separate document \"Model Preambles for Trades\" and to the Supplementary Preambles incorporated at the front of these Bills of Quantities as well as hereunder.",{"$nulls":8},5552,null,0,{"$nulls":12},1,14,7,33,"C","0"]
[]
["3-18",null,"NAILED UP AND SCREW UP CEILINGS",{"$nulls":8},5553,null,0,{"$nulls":12},1,14,7,33,"H","0"]
[]
["3-18",null,"6,4mm Gypsum plasterboards with H-profile galvanised steel jointing strips:",{"$nulls":8},5554,null,0,{"$nulls":12},1,14,7,33,"S","0"]
[]
["3-18","1","Ceilings including 38 x 38mm sawn softwood brandering at 450mm centres with cross brandering at 450mm centres and at joints, ends of sheets and at light fittings, etc.","m²",{"v":52,"d":"52.00"},null,{"$f":"J2013*F2013","v":0},null,null,52,null,5555,null,0,{"$nulls":12},1,14,7,33,"I","2"]
[]
["3-18","2","Extra over ceiling for 600 x 600mm hinged trap door of wrought softwood rebated framing with one sawn softwood cross brander covered with ceiling board and fitted flush in opening, including necessary trimmers all around.","No",{"v":1,"d":"1.00"},null,{"$f":"J2015*F2015","v":0},null,null,1,null,5556,null,0,{"$nulls":12},1,14,7,33,"I","N"]
[]
["3-18",null,"INSULATION",{"$nulls":8},5557,null,0,{"$nulls":12},1,14,7,33,"H","0"]
[]
["3-18",null,"Non-combustible lightweight fibreglass insulation blanket:",{"$nulls":8},5558,null,0,{"$nulls":12},1,14,7,33,"S","0"]
[]
["3-18","3","100mm Insulation closely fitted between tie beams and laid loose on top of brandering.","m²",{"v":52,"d":"52.00"},null,{"$f":"J2021*F2021","v":0},null,null,52,null,5559,null,0,{"$nulls":12},1,14,7,33,"I","2"]
[]
[]
[null,null,"Bill Total",{"$nulls":4},{"$f":"SUM(G2007:G2023)","v":0}]
[]
[]
[]
[null,null,"BILL NO.8 : FLOOR COVERINGS",{"$nulls":23},1,14,8,36,"H"]
[]
["3-19",null,"The Tenderer is referred to the relevant clauses in the separate document \"Model Preambles for Trades\" and to the Supplementary Preambles incorporated at the front of these Bills of Quantities as well as hereunder.",{"$nulls":8},5560,null,0,{"$nulls":12},1,14,8,36,"C","0"]
[]
["3-19",null,"VINYL FLOOR COVERINGS, WALL LININGS, ETC.",{"$nulls":8},5561,null,0,{"$nulls":12},1,14,8,36,"H","0"]
[]
["3-19",null,"300 x 300 x 2,5mm Thick semi flexible vinyl floor tiles laid in two colour pattern fixed with an approved adhesive:",{"$nulls":8},5562,null,0,{"$nulls":12},1,14,8,36,"S","0"]
[]
["3-19","1","On screeded floors.","m²",{"v":52,"d":"52.00"},null,{"$f":"J2036*F2036","v":0},null,null,52,null,5563,null,0,{"$nulls":12},1,14,8,36,"I","2"]
[]
[]
[null,null,"Bill Total",{"$nulls":4},{"$f":"SUM(G2030:G2038)","v":0}]
[]
[]
[]
[null,null,"BILL NO.9 : IRONMONGERY",{"$nulls":23},1,14,9,39,"H"]
[]
["3-20",null,"The Tenderer is referred to the relevant clauses in the separate document \"Model Preambles for Trades\" and to the Supplementary Preambles incorporated at the front of these Bills of Quantities as well as hereunder.",{"$nulls":8},5564,null,0,{"$nulls":12},1,14,9,39,"C","0"]
[]
["3-20",null,"IRONMONGERY FIXED TO DOORS, ETC.",{"$nulls":8},5565,null,0,{"$nulls":12},1,14,9,39,"H","0"]
[]
["3-20",null,"Locks:",{"$nulls":8},5569,null,0,{"$nulls":12},1,14,9,39,"S","0"]
[]
["3-20","1","75mm Two lever security lockset with satin chrome furniture.","No",{"v":1,"d":"1.00"},null,{"$f":"J2051*F2051","v":0},null,null,1,null,5570,null,0,{"$nulls":12},1,14,9,39,"I","N"]
[]
["3-20","2","Union MG47 47mm padlock or similar approved.","No",{"v":1,"d":"1.00"},null,{"$f":"J2053*F2053","v":0},null,null,1,null,5571,null,0,{"$nulls":12},1,14,9,39,"I","N"]
[]
["3-20",null,"NUMERAL AND NAMEPLATES, ETC.",{"$nulls":8},5574,null,0,{"$nulls":12},1,14,9,39,"H","0"]
[]
["3-20",null,"Clear perspex name plate reverse engraved and enamelled in white lettering 25mm high to suit, twice countersunk holed for and tapscrewed to steel door frames or gate framing with chromium plated dome-headed selftapping screws:",{"$nulls":8},5575,null,0,{"$nulls":12},1,14,9,39,"S","0"]
[]
["3-20","3","With letters 'CLASSROOMS'.","No",{"v":1,"d":"1.00"},null,{"$f":"J2059*F2059","v":0},null,null,1,null,5577,null,0,{"$nulls":12},1,14,9,39,"I","N"]
[]
["3-20",null,"Indicator plates countersunk holed for and screwed to door or brickwork with chromium plated dome-headed screws:",{"$nulls":8},5580,null,0,{"$nulls":12},1,14,9,39,"S","0"]
[]
["3-20","4","190 x 190 x 3mm Thick white perspex international FB2 sign plate with red fire extinguisher symbol plugged to brickwork.","No",{"v":1,"d":"1.00"},null,{"$f":"J2063*F2063","v":0},null,null,1,null,5581,null,0,{"$nulls":12},1,14,9,39,"I","N"]
[]
["3-20",null,"PINNING BOARDS, WRITING BOARDS, PROJECTION SCREENS, ETC.",{"$nulls":8},5597,null,0,{"$nulls":12},1,14,9,39,"H","0"]
[]
["3-20",null,"Carpet pinning boards in aluminium frame with round plastic corners, pen tray and fixing component all fixed according to manufacturer's instruction:",{"$nulls":8},5598,null,0,{"$nulls":12},1,14,9,39,"S","0"]
[]
["3-20","5","Pinning board size 2400 x 1200mm high plugged.","No",{"v":1,"d":"1.00"},null,{"$f":"J2069*F2069","v":0},null,null,1,null,5599,null,0,{"$nulls":12},1,14,9,39,"I","N"]
[]
["3-20",null,"Swing type green chalkboard to comply with CKS-36-1980 or equivalent code of practice, complete with chalk rail as one unit fixed to wall strictly according to manufacturers instruction:",{"$nulls":8},5601,null,0,{"$nulls":12},1,14,9,39,"S","0"]
[]
["3-20","6","System 1000 stadard vitreous enamel magnetic chalkboard 4800 x 1200mm high comprising two fixed panels, each 2400 x 1140mm high complete with aluminium chalk rail, etc. plugged.","No",{"v":1,"d":"1.00"},null,{"$f":"J2073*F2073","v":0},null,null,1,null,5602,null,0,{"$nulls":12},1,14,9,39,"I","N"]
[]
[]
[null,null,"Bill Total",{"$nulls":4},{"$f":"SUM(G2045:G2075)","v":0}]
[]
[]
[]
[null,null,"BILL NO.10 : STRUCTURAL STEELWORK",{"$nulls":23},1,14,10,42,"H"]
[]
["3-21",null,"The Tenderer is referred to the relevant clauses in the separate document \"Model Preambles for Trades\" and to the Supplementary Preambles incorporated at the front of these Bills of Quantities as well as hereunder.",{"$nulls":8},5603,null,339300,{"$nulls":12},1,14,10,42,"C","0"]
[]
["3-21",null,"SUPPLEMENTARY PREAMBLES",{"$nulls":8},5604,null,339300,{"$nulls":12},1,14,10,42,"H","0"]
[]
["3-21",null,"Descriptions:",{"$nulls":8},5605,null,339400,{"$nulls":12},1,14,10,42,"S","0"]
[]
["3-21",null,"Descriptions of bolts shall be deemed to include nuts and washers.",{"$nulls":8},5606,null,339450,{"$nulls":12},1,14,10,42,"C","0"]
[]
["3-21",null,"Descriptions of L-shaped and U-shaped anchor bolts shall be deemed to include bending, threading, nuts and washers and embedding in concrete.",{"$nulls":8},5607,null,339500,{"$nulls":12},1,14,10,42,"C","0"]
[]
["3-21",null,"Descriptions of expansion anchors and bolts and chemical anchors and bolts shall be deemed to include nuts, washers and mortices in brickwork or concrete.",{"$nulls":8},5608,null,339600,{"$nulls":12},1,14,10,42,"C","0"]
[]
["3-21",null,"GALVANISED STEEL COLUMNS AND BEAMS",{"$nulls":8},5609,null,694001,{"$nulls":12},1,14,10,42,"H","0"]
[]
["3-21",null,"Welded columns in single lengths with flat base, cap, bearer and connection plates, bolted to concrete:",{"$nulls":8},5610,null,694018,{"$nulls":12},1,14,10,42,"S","0"]
[]
["3-21","1","76 x 76 x 3mm SHS posts","Kg",{"v":66,"d":"66.00"},null,{"$f":"J2098*F2098","v":0},null,null,66,null,5611,null,694019,{"$nulls":12},1,14,10,42,"I","K"]
[]
["3-21",null,"Plates etc.:",{"$nulls":8},5612,null,694019,{"$nulls":12},1,14,10,42,"S","0"]
[]
["3-21","2","12mm Thick plates bolted to timber and/or concrete.","Kg",{"v":28,"d":"28.00"},null,{"$f":"J2102*F2102","v":0},null,null,28,null,5613,null,694019,{"$nulls":12},1,14,10,42,"I","K"]
[]
["3-21",null,"BOLTS, FASTENERS, ETC",{"$nulls":8},5614,null,351300,{"$nulls":12},1,14,10,42,"H","0"]
[]
["3-21",null,"Bolts and fasteners:",{"$nulls":8},5615,null,-229,{"$nulls":12},1,14,10,42,"S","0"]
[]
["3-21","3","M12 Grade 4.8 galvanised or stainless steel bolts to timber beam.","No",{"v":6,"d":"6.00"},null,{"$f":"J2108*F2108","v":0},null,null,6,null,5617,null,-234,{"$nulls":12},1,14,10,42,"I","N"]
[]
[]
[null,null,"Bill Total",{"$nulls":4},{"$f":"SUM(G2082:G2110)","v":0}]
[]
[]
[]
[null,null,"BILL NO.11 : METALWORK",{"$nulls":23},1,14,11,45,"H"]
[]
["3-22",null,"The Tenderer is referred to the relevant clauses in the separate document \"Model Preambles for Trades\" and to the Supplementary Preambles incorporated at the front of these Bills of Quantities as well as hereunder.",{"$nulls":8},5618,null,0,{"$nulls":12},1,14,11,45,"C","0"]
[]
["3-22",null,"STEEL WINDOWS, DOORS, ETC.",{"$nulls":8},5619,null,0,{"$nulls":12},1,14,11,45,"H","0"]
[]
["3-22",null,"Standard galvanised mild steel residential windows with steel burglar bars to fixed lights and opening sashes:",{"$nulls":8},5620,null,0,{"$nulls":12},1,14,11,45,"S","0"]
[]
["3-22","1","Window type 14BH, 889 x 1248mm high with one opening light complete with approved standard brass fittings and including 2 no. 8mm galvanised steel burglar bars.","No",{"v":5,"d":"5.00"},null,{"$f":"J2123*F2123","v":0},null,null,5,null,5622,null,0,{"$nulls":12},1,14,11,45,"I","N"]
[]
["3-22","2","Window of size 889 x 854mm high with one opening light complete with approved standard brass fittings and including 2 no. 8mm galvanised steel burglar bars.","No",{"v":4,"d":"4.00"},null,{"$f":"J2125*F2125","v":0},null,null,4,null,5623,null,0,{"$nulls":12},1,14,11,45,"I","N"]
[]
["3-22",null,"PRESSED STEEL DOOR FRAMES",{"$nulls":8},5625,null,0,{"$nulls":12},1,14,11,45,"H","0"]
[]
["3-22",null,"All steel door frames to be caulked solid in class II mortar, between brickwork and frame.",{"$nulls":8},5626,null,386900,{"$nulls":12},1,14,11,45,"C","0"]
[]
["3-22",null,"1.2mm Galvanised mild steel double rebated frames suitable for one brick wall including one and a half pair 100mm brass butt hinges per door leaf:",{"$nulls":8},5627,null,0,{"$nulls":12},1,14,11,45,"S","0"]
[]
["3-22","3","Frame for door 813 x 2032mm high.","No",{"v":1,"d":"1.00"},null,{"$f":"J2133*F2133","v":0},null,null,1,null,5628,null,0,{"$nulls":12},1,14,11,45,"I","N"]
[]
["3-22",null,"SECURITY GATES",{"$nulls":8},5632,null,0,{"$nulls":12},1,14,11,45,"H","0"]
[]
["3-22",null,"Galvanised mild steel security gates and frames:",{"$nulls":8},5633,null,0,{"$nulls":12},1,14,11,45,"S","0"]
[]
["3-22","4","Single gate size of 977 x 2250mm high fixed (G1).","No",{"v":1,"d":"1.00"},null,{"$f":"J2139*F2139","v":0},null,null,1,null,5634,null,0,{"$nulls":12},1,14,11,45,"I","N"]
[]
[]
[null,null,"Bill Total",{"$nulls":4},{"$f":"SUM(G2117:G2141)","v":0}]
[]
[]
[]
[null,null,"BILL NO.12 : PLASTERING",{"$nulls":23},1,14,12,48,"H"]
[]
["3-23",null,"The Tenderer is referred to the relevant clauses in the separate document \"Model Preambles for Trades\" and to the Supplementary Preambles incorporated at the front of these Bills of Quantities as well as hereunder.",{"$nulls":8},5635,null,0,{"$nulls":12},1,14,12,48,"C","0"]
[]
["3-23",null,"CEMENT SCREEDS",{"$nulls":8},5636,null,0,{"$nulls":12},1,14,12,48,"H","0"]
[]
["3-23",null,"Cement screed on concrete:",{"$nulls":8},5637,null,0,{"$nulls":12},1,14,12,48,"S","0"]
[]
["3-23","1","30mm Thick screeds steel trowelled on concrete floors.","m²",{"v":52,"d":"52.00"},null,{"$f":"J2154*F2154","v":0},null,null,52,null,5638,null,0,{"$nulls":12},1,14,12,48,"I","2"]
[]
["3-23",null,"GRANOLITHIC",{"$nulls":8},5639,null,0,{"$nulls":12},1,14,12,48,"H","0"]
[]
["3-23",null,"Untinted granolithic on concrete:",{"$nulls":8},5640,null,0,{"$nulls":12},1,14,12,48,"S","0"]
[]
["3-23","2","30mm Thick on floors .","m²",{"v":17,"d":"17.00"},null,{"$f":"J2160*F2160","v":0},null,null,17,null,5641,null,0,{"$nulls":12},1,14,12,48,"I","2"]
[]
["3-23",null,"INTERNAL PLASTER",{"$nulls":8},5643,null,0,{"$nulls":12},1,14,12,48,"H","0"]
[]
["3-23",null,"One coat cement plaster steel trowelled on brickwork or concrete:",{"$nulls":8},5644,null,0,{"$nulls":12},1,14,12,48,"S","0"]
[]
["3-23","3","On walls.","m²",{"v":52,"d":"52.00"},null,{"$f":"J2166*F2166","v":0},null,null,52,null,5645,null,0,{"$nulls":12},1,14,12,48,"I","2"]
[]
["3-23","4","On narrow widths.","m²",{"v":4,"d":"4.00"},null,{"$f":"J2168*F2168","v":0},null,null,4,null,5646,null,0,{"$nulls":12},1,14,12,48,"I","2"]
[]
[]
[null,null,"Bill Total",{"$nulls":4},{"$f":"SUM(G2148:G2170)","v":0}]
[]
[]
[]
[null,null,"BILL NO.13 : GLAZING",{"$nulls":23},1,14,13,63,"H"]
[]
["3-24",null,"The Tenderer is referred to the relevant clauses in the separate document \"Model Preambles for Trades\" and to the Supplementary Preambles incorporated at the front of these Bills of Quantities as well as hereunder.",{"$nulls":8},5718,null,0,{"$nulls":12},1,14,13,63,"C","0"]
[]
["3-24",null,"GLAZING TO STEEL WITH PUTTY",{"$nulls":8},5719,null,0,{"$nulls":12},1,14,13,63,"H","0"]
[]
["3-24",null,"4mm Clear float glass:",{"$nulls":8},5720,null,0,{"$nulls":12},1,14,13,63,"S","0"]
[]
["3-24","1","Panes exceeding 0,1m² and not exceeding 0,5m².","m²",{"v":9,"d":"9.00"},null,{"$f":"J2183*F2183","v":0},null,null,9,null,5721,null,0,{"$nulls":12},1,14,13,63,"I","2"]
[]
[]
[null,null,"Bill Total",{"$nulls":4},{"$f":"SUM(G2177:G2185)","v":0}]
[]
[]
[]
[null,null,"BILL NO.14 : PAINTWORK",{"$nulls":23},1,14,14,66,"H"]
[]
["3-25",null,"The Tenderer is referred to the relevant clauses in the separate document \"Model Preambles for Trades\" and to the Supplementary Preambles incorporated at the front of these Bills of Quantities as well as hereunder.",{"$nulls":8},5729,null,0,{"$nulls":12},1,14,14,66,"C","0"]
[]
["3-25",null,"SUPPLEMENTARY PREAMBLES",{"$nulls":8},5730,null,21780,{"$nulls":12},1,14,14,66,"H","0"]
[]
["3-25",null,"Colours shall be to the Architect's approved colours and there shall be no variation in price due to type of colours. The tenderer is deemed to have allowed for this in his rates",{"$nulls":8},5731,null,21780,{"$nulls":12},1,14,14,66,"C","0"]
[]
["3-25",null,"Doors to be lightly sanded and cleaned of dust and dirt before application of paint.",{"$nulls":8},5732,null,21780,{"$nulls":12},1,14,14,66,"C","0"]
[]
["3-25",null,"ON FLOATED PLASTER SURFACES",{"$nulls":8},5733,null,0,{"$nulls":12},1,14,14,66,"H","0"]
[]
["3-25",null,"Prepare surfaces and remove all loose material and apply three coats interior quality PVA paint:",{"$nulls":8},5734,null,0,{"$nulls":12},1,14,14,66,"S","0"]
[]
["3-25","1","Interior walls.","m²",{"v":56,"d":"56.00"},null,{"$f":"J2204*F2204","v":0},null,null,56,null,5735,null,0,{"$nulls":12},1,14,14,66,"I","2"]
[]
["3-25",null,"ON GRANO SCREEDS",{"$nulls":8},5736,null,0,{"$nulls":12},1,14,14,66,"H","0"]
[]
["3-25",null,"Prepare surfaces and apply one coat clear epoxy primer and two coats 'StonCor' Dovegrey epoxy paint as per manufacturer's specification:",{"$nulls":8},5737,null,0,{"$nulls":12},1,14,14,66,"S","0"]
[]
["3-25","2","Grano floors.","m²",{"v":17,"d":"17.00"},null,{"$f":"J2210*F2210","v":0},null,null,17,null,5738,null,0,{"$nulls":12},1,14,14,66,"I","2"]
[]
["3-25",null,"ON WOOD",{"$nulls":8},5744,null,0,{"$nulls":12},1,14,14,66,"H","0"]
[]
["3-25",null,"Prepare and apply two coats carbolineum on:",{"$nulls":8},5745,null,0,{"$nulls":12},1,14,14,66,"S","0"]
[]
["3-25","3","Roof timbers at eaves and verges. (measured flat).","m²",{"v":20,"d":"20.00"},null,{"$f":"J2216*F2216","v":0},null,null,20,null,5746,null,0,{"$nulls":12},1,14,14,66,"I","2"]
[]
["3-25",null,"Strip, sand down, prepare and apply two coats polyurethane varnish on:",{"$nulls":8},5747,null,0,{"$nulls":12},1,14,14,66,"S","0"]
[]
["3-25","4","Exterior doors.","m²",{"v":4,"d":"4.00"},null,{"$f":"J2220*F2220","v":0},null,null,4,null,5748,null,0,{"$nulls":12},1,14,14,66,"I","2"]
[]
["3-25","5","Skirtings and quadrant bead, rails, cornices, etc., not exceeding 300 mm girth:","m",{"v":86,"d":"86.00"},null,{"$f":"J2222*F2222","v":0},null,null,86,null,5749,null,0,{"$nulls":12},1,14,14,66,"I","1"]
[]
["3-25",null,"PLASTERBOARD",{"$nulls":8},5752,null,0,{"$nulls":12},1,14,14,66,"H","0"]
[]
["3-25",null,"Prepare, prime nail heads and strips with zinc chromate primer, one universal undercoat and two finishing coats of semi-gloss PVA on:",{"$nulls":8},5753,null,0,{"$nulls":12},1,14,14,66,"S","0"]
[]
["3-25","6","General surfaces of ceilings.","m²",{"v":52,"d":"52.00"},null,{"$f":"J2228*F2228","v":0},null,null,52,null,5754,null,0,{"$nulls":12},1,14,14,66,"I","2"]
[]
["3-26",null,"VINYL TILES",{"$nulls":8},5755,null,0,{"$nulls":12},1,14,14,66,"H","0"]
[]
["3-26",null,"Prepare and apply two coats dressing on:",{"$nulls":8},5756,null,0,{"$nulls":12},1,14,14,66,"S","0"]
[]
["3-26","7","General surfaces of vinyl tile flooring.","m²",{"v":52,"d":"52.00"},null,{"$f":"J2234*F2234","v":0},null,null,52,null,5757,null,0,{"$nulls":12},1,14,14,66,"I","2"]
[]
["3-26",null,"FIBRE CEMENT",{"$nulls":8},5758,null,0,{"$nulls":12},1,14,14,66,"H","0"]
[]
["3-26",null,"Prepare and apply one coat zinc chromate to nail heads and H-spline strips, one universal undercoat, stop and apply two finishing coats of eggshell enamel on:",{"$nulls":8},5759,null,0,{"$nulls":12},1,14,14,66,"S","0"]
[]
["3-26","8","Fascias, bargeboards, etc.","m²",{"v":15,"d":"15.00"},null,{"$f":"J2240*F2240","v":0},null,null,15,null,5760,null,0,{"$nulls":12},1,14,14,66,"I","2"]
[]
[]
[null,null,"Bill Total",{"$nulls":4},{"$f":"SUM(G2192:G2242)","v":0}]
[]
[]
[null,null,"Section Total ",{"$nulls":4},{"$f":"SUM(G1595:G2242)","v":0}]
[]
[]
[null,null,"SECTION NO. 4 : ELECTRICAL",{"$nulls":23},1,1,1,201,"H"]
[]
[]
[null,null,"BILL NO.1 : LOW VOLTAGE RETICULATION",{"$nulls":23},1,1,1,201,"H"]
[]
["4-2",null,"SECTION 1 : LT DISTRIBUTION",{"$nulls":8},6576,null,0,{"$nulls":12},1,1,1,201,"H"]
[]
["4-2",null,"DISTRIBUTION BOARDS",{"$nulls":8},6577,null,0,{"$nulls":12},1,1,1,201,"H"]
[]
["4-2",null,"Supply the following Distribution Boards complete with all switchgear, accessories as specified on the schematic layouts, all fitted in the factory and tested, including delivery to Site and off-loading but excluding cable terminations.",{"$nulls":8},6740,null,0,{"$nulls":12},1,1,1,201,"S","0"]
[]
["4-2","1","Main DB (Please refer to Drawing No. BD099-E-SLD-01)","No",{"v":1,"d":"1.00"},null,{"$f":"J2260*F2260","v":0},null,null,1,null,6578,null,0,{"$nulls":12},1,1,1,201,"I","N"]
[]
["4-2","2","DB-C (Please refer to Drawing No. BD099-E-SLD-02)","No",{"v":1,"d":"1.00"},null,{"$f":"J2262*F2262","v":0},null,null,1,null,6579,null,0,{"$nulls":12},1,1,1,201,"I","N"]
[]
["4-2","3","DB-D (Please refer to Drawing No. BD099-E-SLD-03)","No",{"v":1,"d":"1.00"},null,{"$f":"J2264*F2264","v":0},null,null,1,null,6580,null,0,{"$nulls":12},1,1,1,201,"I","N"]
[]
["4-2","4","DB-G (Please refer to Drawing No. BD099-E-SLD-04)","No",{"v":1,"d":"1.00"},null,{"$f":"J2266*F2266","v":0},null,null,1,null,6581,null,0,{"$nulls":12},1,1,1,201,"I","N"]
[]
["4-2","5","DB-H (Please refer to Drawing No. BD099-E-SLD-05)","No",{"v":1,"d":"1.00"},null,{"$f":"J2268*F2268","v":0},null,null,1,null,6582,null,0,{"$nulls":12},1,1,1,201,"I","N"]
[]
["4-2","6","DB-I (Please refer to Drawing No. BD099-E-SLD-06)","No",{"v":1,"d":"1.00"},null,{"$f":"J2270*F2270","v":0},null,null,1,null,6583,null,0,{"$nulls":12},1,1,1,201,"I","N"]
[]
["4-2","7","DB-J (Please refer to Drawing No. BD099-E-SLD-07)","No",{"v":1,"d":"1.00"},null,{"$f":"J2272*F2272","v":0},null,null,1,null,6584,null,0,{"$nulls":12},1,1,1,201,"I","N"]
[]
["4-2","8","DB-K (Please refer to Drawing No. BD099-E-SLD-08)","No",{"v":1,"d":"1.00"},null,{"$f":"J2274*F2274","v":0},null,null,1,null,6585,null,0,{"$nulls":12},1,1,1,201,"I","N"]
[]
["4-2","9","DB-L (Please refer to Drawing No. BD099-E-SLD-09)","No",{"v":1,"d":"1.00"},null,{"$f":"J2276*F2276","v":0},null,null,1,null,6586,null,0,{"$nulls":12},1,1,1,201,"I","N"]
[]
["4-2","10","DB-N (Please refer to Drawing No. BD099-E-SLD-10)","No",{"v":1,"d":"1.00"},null,{"$f":"J2278*F2278","v":0},null,null,1,null,6587,null,0,{"$nulls":12},1,1,1,201,"I","N"]
[]
["4-2","11","DB-O (Please refer to Drawing No. BD099-E-SLD-11)","No",{"v":1,"d":"1.00"},null,{"$f":"J2280*F2280","v":0},null,null,1,null,6588,null,0,{"$nulls":12},1,1,1,201,"I","N"]
[]
["4-2",null,"Install and connect up, including earthing and conduit terminations but excluding cable terminations.",{"$nulls":8},6589,null,0,{"$nulls":12},1,1,1,201,"H"]
[]
["4-2","12","Main DB (Please refer to Drawing No. BD099-E-SLD-01)","No",{"v":1,"d":"1.00"},null,{"$f":"J2284*F2284","v":0},null,null,1,null,6590,null,0,{"$nulls":12},1,1,1,201,"I","N"]
[]
["4-2","13","DB-C (Please refer to Drawing No. BD099-E-SLD-02)","No",{"v":1,"d":"1.00"},null,{"$f":"J2286*F2286","v":0},null,null,1,null,6591,null,0,{"$nulls":12},1,1,1,201,"I","N"]
[]
["4-2","14","DB-D (Please refer to Drawing No. BD099-E-SLD-03)","No",{"v":1,"d":"1.00"},null,{"$f":"J2288*F2288","v":0},null,null,1,null,6592,null,0,{"$nulls":12},1,1,1,201,"I","N"]
[]
["4-2","15","DB-G (Please refer to Drawing No. BD099-E-SLD-04)","No",{"v":1,"d":"1.00"},null,{"$f":"J2290*F2290","v":0},null,null,1,null,6593,null,0,{"$nulls":12},1,1,1,201,"I","N"]
[]
["4-2","16","DB-H (Please refer to Drawing No. BD099-E-SLD-05)","No",{"v":1,"d":"1.00"},null,{"$f":"J2292*F2292","v":0},null,null,1,null,6594,null,0,{"$nulls":12},1,1,1,201,"I","N"]
[]
["4-2","17","DB-I (Please refer to Drawing No. BD099-E-SLD-06)","No",{"v":1,"d":"1.00"},null,{"$f":"J2294*F2294","v":0},null,null,1,null,6595,null,0,{"$nulls":12},1,1,1,201,"I","N"]
[]
["4-2","18","DB-J (Please refer to Drawing No. BD099-E-SLD-07)","No",{"v":1,"d":"1.00"},null,{"$f":"J2296*F2296","v":0},null,null,1,null,6596,null,0,{"$nulls":12},1,1,1,201,"I","N"]
[]
["4-2","19","DB-K (Please refer to Drawing No. BD099-E-SLD-08)","No",{"v":1,"d":"1.00"},null,{"$f":"J2298*F2298","v":0},null,null,1,null,6597,null,0,{"$nulls":12},1,1,1,201,"I","N"]
[]
["4-3","20","DB-L (Please refer to Drawing No. BD099-E-SLD-09)","No",{"v":1,"d":"1.00"},null,{"$f":"J2300*F2300","v":0},null,null,1,null,6598,null,0,{"$nulls":12},1,1,1,201,"I","N"]
[]
["4-3","21","DB-N (Please refer to Drawing No. BD099-E-SLD-10)","No",{"v":1,"d":"1.00"},null,{"$f":"J2302*F2302","v":0},null,null,1,null,6599,null,0,{"$nulls":12},1,1,1,201,"I","N"]
[]
["4-3",null,"Provisional Switchgear to DB's. Rate to include for supply and installation, internal wiring and connections, complete for the following switchgear.",{"$nulls":8},6600,null,0,{"$nulls":12},1,1,1,201,"H"]
[]
["4-3","22","60Amp, 5kA, 230V Earth leakage device","No",{"v":1,"d":"1.00"},null,{"$f":"J2306*F2306","v":0},null,null,1,null,6601,null,0,{"$nulls":12},1,1,1,201,"I","N"]
[]
["4-3","23","30Amp, or less, 5kA, SP, MCB","No",{"v":1,"d":"1.00"},null,{"$f":"J2308*F2308","v":0},null,null,1,null,6602,null,0,{"$nulls":12},1,1,1,201,"I","N"]
[]
["4-3","24","30 to 59Amp, 5kA, SP, MCB","No",{"v":1,"d":"1.00"},null,{"$f":"J2310*F2310","v":0},null,null,1,null,6603,null,0,{"$nulls":12},1,1,1,201,"I","N"]
[]
["4-3","25","60 to 100Amp, 5kA, SP, MCB","No",{"v":1,"d":"1.00"},null,{"$f":"J2312*F2312","v":0},null,null,1,null,6604,null,0,{"$nulls":12},1,1,1,201,"I","N"]
[]
["4-3","26","60Amp, 5kA, 400V Earth leakage device","No",{"v":1,"d":"1.00"},null,{"$f":"J2314*F2314","v":0},null,null,1,null,6605,null,0,{"$nulls":12},1,1,1,201,"I","N"]
[]
["4-3","27","30Amp, or less, 5kA, TP, MCB","No",{"v":1,"d":"1.00"},null,{"$f":"J2316*F2316","v":0},null,null,1,null,6606,null,0,{"$nulls":12},1,1,1,201,"I","N"]
[]
["4-3","28","30 to 59Amp, 5kA, TP, MCB","No",{"v":1,"d":"1.00"},null,{"$f":"J2318*F2318","v":0},null,null,1,null,6607,null,0,{"$nulls":12},1,1,1,201,"I","N"]
[]
["4-3","29","60 to 100Amp, 5kA, TP, MCB","No",{"v":1,"d":"1.00"},null,{"$f":"J2320*F2320","v":0},null,null,1,null,6608,null,0,{"$nulls":12},1,1,1,201,"I","N"]
[]
["4-3","30","60Amp, 5kA, 230V, DP, Isolator","No",{"v":1,"d":"1.00"},null,{"$f":"J2322*F2322","v":0},null,null,1,null,6609,null,0,{"$nulls":12},1,1,1,201,"I","N"]
[]
["4-3","31","60Amp, 5kA, 400V, TP, Isolator","No",{"v":1,"d":"1.00"},null,{"$f":"J2324*F2324","v":0},null,null,1,null,6610,null,0,{"$nulls":12},1,1,1,201,"I","N"]
[]
["4-3","32","100Amp, 5kA, 400V, TP, Isolator","No",{"v":1,"d":"1.00"},null,{"$f":"J2326*F2326","v":0},null,null,1,null,6611,null,0,{"$nulls":12},1,1,1,201,"I","N"]
[]
["4-3","33","20Amp, 3phase, 230V coil, AC3 Contactor","No",{"v":1,"d":"1.00"},null,{"$f":"J2328*F2328","v":0},null,null,1,null,6612,null,0,{"$nulls":12},1,1,1,201,"I","N"]
[]
["4-3",null,"CABLES and EARTH WIRE (PROVISIONAL)",{"$nulls":8},6613,null,0,{"$nulls":12},1,1,1,201,"H"]
[]
["4-3",null,"Rates to include for supply, delivery and installation via sleeves, cable tray or fixed to surface but excluding terminations, joints, cable trays or sleeves for 600/1000 Volts cables and earth wires:- PVC/PVC/SWA/ECC/PVC/ copper cables",{"$nulls":8},6741,null,0,{"$nulls":12},1,1,1,201,"S","0"]
[]
["4-3","34","35mm² x 4 core","m",{"v":125,"d":"125.00"},null,{"$f":"J2334*F2334","v":0},null,null,125,null,6614,null,0,{"$nulls":12},1,1,1,201,"I","1"]
[]
["4-3","35","16mm² x 4 core","m",{"v":45,"d":"45.00"},null,{"$f":"J2336*F2336","v":0},null,null,45,null,6615,null,0,{"$nulls":12},1,1,1,201,"I","1"]
[]
["4-3","36","16 mm² x 2 core","m",{"v":448,"d":"448.00"},null,{"$f":"J2338*F2338","v":0},null,null,448,null,6616,null,0,{"$nulls":12},1,1,1,201,"I","1"]
[]
["4-3","37","10 mm² x 2 core","m",{"v":10,"d":"10.00"},null,{"$f":"J2340*F2340","v":0},null,null,10,null,6617,null,0,{"$nulls":12},1,1,1,201,"I","1"]
[]
["4-3","38","4mm² x 2 core","m",{"v":5,"d":"5.00"},null,{"$f":"J2342*F2342","v":0},null,null,5,null,6618,null,0,{"$nulls":12},1,1,1,201,"I","1"]
[]
["4-4",null,"CABLE TERMINATIONS",{"$nulls":8},6619,null,0,{"$nulls":12},1,1,1,201,"H"]
[]
["4-4",null,"Supply, delivery, installation and labour for making-off, terminating and connecting cables and earth wires including glands, shrouds, lugs and connections for the following cables and earth wires:- PVC/PVC/SWA/ECC/PVC/ copper cables",{"$nulls":8},6742,null,0,{"$nulls":12},1,1,1,201,"S","0"]
[]
["4-4","39","35mm² x 4 core","No",{"v":2,"d":"2.00"},null,{"$f":"J2348*F2348","v":0},null,null,2,null,6620,null,0,{"$nulls":12},1,1,1,201,"I","N"]
[]
["4-4","40","16mm² x 4 core","No",{"v":2,"d":"2.00"},null,{"$f":"J2350*F2350","v":0},null,null,2,null,6621,null,0,{"$nulls":12},1,1,1,201,"I","N"]
[]
["4-4","41","16 mm² x 2 core","No",{"v":16,"d":"16.00"},null,{"$f":"J2352*F2352","v":0},null,null,16,null,6622,null,0,{"$nulls":12},1,1,1,201,"I","N"]
[]
["4-4","42","10 mm² x 2 core","No",{"v":2,"d":"2.00"},null,{"$f":"J2354*F2354","v":0},null,null,2,null,6623,null,0,{"$nulls":12},1,1,1,201,"I","N"]
[]
["4-4","43","4mm² x 2 core","No",{"v":2,"d":"2.00"},null,{"$f":"J2356*F2356","v":0},null,null,2,null,6624,null,0,{"$nulls":12},1,1,1,201,"I","N"]
[]
["4-4",null,"SUNDRIES",{"$nulls":8},6625,null,0,{"$nulls":12},1,1,1,201,"H"]
[]
["4-4","44","Liason and attendance to Local Supply Authority","No",{"v":1,"d":"1.00"},null,{"$f":"J2360*F2360","v":0},null,null,1,null,6626,null,0,{"$nulls":12},1,1,1,201,"I","N"]
[]
["4-4","45","Liason and attendance to Telephone Operator","No",{"v":1,"d":"1.00"},null,{"$f":"J2362*F2362","v":0},null,null,1,null,6627,null,0,{"$nulls":12},1,1,1,201,"I","N"]
[]
["4-4",null,"EARTHING AND BONDING",{"$nulls":8},6628,null,0,{"$nulls":12},1,1,1,201,"H"]
[]
["4-4","46","Earth and Bond the complete all the distribution boards in accordance with the Specifications and SANS Standards.","No",{"v":10,"d":"10.00"},null,{"$f":"J2366*F2366","v":0},null,null,10,null,6629,null,0,{"$nulls":12},1,1,1,201,"I","N"]
[]
["4-4",null,"TEST AND COMMISSION",{"$nulls":8},6630,null,0,{"$nulls":12},1,1,1,201,"H"]
[]
["4-4","47","Test and Commision the complete installation in accordance with the Specifications and SANS Standards","No",{"v":10,"d":"10.00"},null,{"$f":"J2370*F2370","v":0},null,null,10,null,6631,null,0,{"$nulls":12},1,1,1,201,"I","N"]
[]
["4-4","48","Issue a Certificate of Compliance (CoC) in accordance with the SANS 10142-1 (2017) requirements per DB.","No",{"v":10,"d":"10.00"},null,{"$f":"J2372*F2372","v":0},null,null,10,null,6632,null,0,{"$nulls":12},1,1,1,201,"I","N"]
[]
["4-4",null,"SECTION 2 : CABLE LADDER AND SLEEVES",{"$nulls":8},6633,null,0,{"$nulls":12},1,1,1,201,"H"]
[]
["4-4",null,"SLEEVES",{"$nulls":8},6634,null,0,{"$nulls":12},1,1,1,201,"H"]
[]
["4-4",null,"Supply and install the following underground sleeves",{"$nulls":8},6743,null,0,{"$nulls":12},1,1,1,201,"S","0"]
[]
["4-4","49","50mm Diameter","m",{"v":10,"d":"10.00"},null,{"$f":"J2380*F2380","v":0},null,null,10,null,6635,null,0,{"$nulls":12},1,1,1,201,"I","1"]
[]
["4-4","50","50mm Diameter slow radius bends","No",{"v":2,"d":"2.00"},null,{"$f":"J2382*F2382","v":0},null,null,2,null,6636,null,0,{"$nulls":12},1,1,1,201,"I","N"]
[]
["4-4","51","75mm Diameter","m",{"v":50,"d":"50.00"},null,{"$f":"J2384*F2384","v":0},null,null,50,null,6637,null,0,{"$nulls":12},1,1,1,201,"I","1"]
[]
["4-4","52","75mm Diameter slow radius bends","No",{"v":10,"d":"10.00"},null,{"$f":"J2386*F2386","v":0},null,null,10,null,6638,null,0,{"$nulls":12},1,1,1,201,"I","N"]
[]
["4-4","53","110mm Diameter","m",{"v":150,"d":"150.00"},null,{"$f":"J2388*F2388","v":0},null,null,150,null,6639,null,0,{"$nulls":12},1,1,1,201,"I","1"]
[]
["4-4","54","110mm Diameter slow radius bends","No",{"v":10,"d":"10.00"},null,{"$f":"J2390*F2390","v":0},null,null,10,null,6640,null,0,{"$nulls":12},1,1,1,201,"I","N"]
[]
["4-4","55","160mm Diameter","m",{"v":100,"d":"100.00"},null,{"$f":"J2392*F2392","v":0},null,null,100,null,6641,null,0,{"$nulls":12},1,1,1,201,"I","1"]
[]
["4-5","56","160mm Diameter slow radius bends","No",{"v":5,"d":"5.00"},null,{"$f":"J2394*F2394","v":0},null,null,5,null,6642,null,0,{"$nulls":12},1,1,1,201,"I","N"]
[]
["4-5",null,"EXCAVATION",{"$nulls":8},6643,null,0,{"$nulls":12},1,1,1,201,"H"]
[]
["4-5",null,"Excavate and backfill of a sleeve trench 600mm deep x 300mm wide including 200mm deep bedding material and compacting.",{"$nulls":8},6744,null,0,{"$nulls":12},1,1,1,201,"S","0"]
[]
["4-5","57","Ordinary material","m³",{"v":115,"d":"115.00"},null,{"$f":"J2400*F2400","v":0},null,null,115,null,6644,null,0,{"$nulls":12},1,1,1,201,"I","3"]
[]
["4-5","58","Extra over rate for soft rock","m³",{"v":45,"d":"45.00"},null,{"$f":"J2402*F2402","v":0},null,null,45,null,6645,null,0,{"$nulls":12},1,1,1,201,"I","3"]
[]
["4-5","59","Extra over rate for hard rock","m³",{"v":25,"d":"25.00"},null,{"$f":"J2404*F2404","v":0},null,null,25,null,6646,null,0,{"$nulls":12},1,1,1,201,"I","3"]
[]
["4-5",null,"MANHOLES",{"$nulls":8},6647,null,0,{"$nulls":12},1,1,1,201,"H"]
[]
["4-5",null,"Excavate and build brick manholes with bagged internal surfaces, Meduim duty round access hatch and concrete lid for the following internal size manholes:-",{"$nulls":8},6745,null,0,{"$nulls":12},1,1,1,201,"S","0"]
[]
["4-5","60","1000 x 1000 x 600","No",{"v":2,"d":"2.00"},null,{"$f":"J2410*F2410","v":0},null,null,2,null,6648,null,0,{"$nulls":12},1,1,1,201,"I","N"]
[]
["4-5","61","800 x 800 x 600","No",{"v":2,"d":"2.00"},null,{"$f":"J2412*F2412","v":0},null,null,2,null,6649,null,0,{"$nulls":12},1,1,1,201,"I","N"]
[]
["4-5","62","600 x 600 x 600","No",{"v":1,"d":"1.00"},null,{"$f":"J2414*F2414","v":0},null,null,1,null,6650,null,0,{"$nulls":12},1,1,1,201,"I","N"]
[]
["4-5",null,"SUNDRIES",{"$nulls":8},6651,null,0,{"$nulls":12},1,1,1,201,"H"]
[]
["4-5","63","Earth and Bond the complete Cable Racking distribution installation in accordance with the Specifications and SANS Standards.","No",{"v":1,"d":"1.00"},null,{"$f":"J2418*F2418","v":0},null,null,1,null,6652,null,0,{"$nulls":12},1,1,1,201,"I","N"]
[]
[]
[null,null,"Bill Total",{"$nulls":4},{"$f":"SUM(G2254:G2420)","v":0}]
[]
[]
[]
[null,null,"BILL NO.2 : LIGHTING AND POWER",{"$nulls":23},1,1,2,202,"H"]
[]
["4-7",null,"SECTION 3 : POWER - GENERAL PURPOSE OUTLETS AND LIGHTING",{"$nulls":8},6653,null,0,{"$nulls":12},1,1,2,202,"H"]
[]
["4-7",null,"CONDUITS",{"$nulls":8},6654,null,0,{"$nulls":12},1,1,2,202,"H"]
[]
["4-7",null,"Supply and install PVC conduit complete with all accessories including couplings, bending, fixings and waste fixed as specified.",{"$nulls":8},6746,null,0,{"$nulls":12},1,1,2,202,"S","0"]
[]
["4-7","1","20 mm Conduit","m","  1 760",null,{"$f":"J2433*F2433","v":0},null,null,1760,null,6655,null,0,{"$nulls":12},1,1,2,202,"I","1"]
[]
["4-7","2","25 mm Conduit","m","  1 160",null,{"$f":"J2435*F2435","v":0},null,null,1160,null,6656,null,0,{"$nulls":12},1,1,2,202,"I","1"]
[]
["4-7","3","32 mm Conduit","m",{"v":140,"d":"140.00"},null,{"$f":"J2437*F2437","v":0},null,null,140,null,6657,null,0,{"$nulls":12},1,1,2,202,"I","1"]
[]
["4-7",null,"CONDUIT BOXES",{"$nulls":8},6658,null,0,{"$nulls":12},1,1,2,202,"H"]
[]
["4-7",null,"Supply and install boxes complete with all accessories, including conduit terminations",{"$nulls":8},6747,null,0,{"$nulls":12},1,1,2,202,"S","0"]
[]
["4-7","4","60 mm round, 60 mm deep PVC box for 20 mm conduit fixed in sofit or brickwork or ceiling void","No",{"v":242,"d":"242.00"},null,{"$f":"J2443*F2443","v":0},null,null,242,null,6659,null,0,{"$nulls":12},1,1,2,202,"I","N"]
[]
["4-7","5","100 x 50 x 50 mm galv. box, flush mounted in brickwork","No",{"v":116,"d":"116.00"},null,{"$f":"J2445*F2445","v":0},null,null,116,null,6660,null,0,{"$nulls":12},1,1,2,202,"I","N"]
[]
["4-7","6","100 x 100 x 50 mm galv. box, flush mounted in brickwork","No",{"v":28,"d":"28.00"},null,{"$f":"J2447*F2447","v":0},null,null,28,null,6661,null,0,{"$nulls":12},1,1,2,202,"I","N"]
[]
["4-7",null,"CONDUCTORS AND CABLES",{"$nulls":8},6662,null,0,{"$nulls":12},1,1,2,202,"H"]
[]
["4-7",null,"Supply and install PVC insulated copper conductors in required colours drawn into conduit or in trunking",{"$nulls":8},6748,null,0,{"$nulls":12},1,1,2,202,"S","0"]
[]
["4-7","7","1.5 mm²","m","  6 160",null,{"$f":"J2453*F2453","v":0},null,null,6160,null,6663,null,0,{"$nulls":12},1,1,2,202,"I","1"]
[]
["4-7","8","2.5 mm²","m","  3 712",null,{"$f":"J2455*F2455","v":0},null,null,3712,null,6664,null,0,{"$nulls":12},1,1,2,202,"I","1"]
[]
["4-7","9","4 mm²","m",{"v":448,"d":"448.00"},null,{"$f":"J2457*F2457","v":0},null,null,448,null,6665,null,0,{"$nulls":12},1,1,2,202,"I","1"]
[]
["4-7",null,"OCCUPANCY SENSORS",{"$nulls":8},6666,null,0,{"$nulls":12},1,1,2,202,"H"]
[]
["4-7",null,"Suppy, deliver and store the following occupancy sensor complete with all accessories",{"$nulls":8},6749,null,0,{"$nulls":12},1,1,2,202,"S","0"]
[]
["4-7","10","Occupancy sensor complete","No",{"v":48,"d":"48.00"},null,{"$f":"J2463*F2463","v":0},null,null,48,null,6667,null,0,{"$nulls":12},1,1,2,202,"I","N"]
[]
["4-7",null,"LIGHT SWITCHES",{"$nulls":8},6668,null,0,{"$nulls":12},1,1,2,202,"H"]
[]
["4-7",null,"Flush mounted switch unit complete with cover plate and all accessories",{"$nulls":8},6750,null,0,{"$nulls":12},1,1,2,202,"S","0"]
[]
["4-7","11","16A, Single Lever, One Way","No",{"v":4,"d":"4.00"},null,{"$f":"J2469*F2469","v":0},null,null,4,null,6669,null,0,{"$nulls":12},1,1,2,202,"I","N"]
[]
["4-8","12","16A, 2 Lever, 1 Way","No",{"v":9,"d":"9.00"},null,{"$f":"J2471*F2471","v":0},null,null,9,null,6670,null,0,{"$nulls":12},1,1,2,202,"I","N"]
[]
["4-8","13","16A, 1 Lever, 2 Way","No",{"v":10,"d":"10.00"},null,{"$f":"J2473*F2473","v":0},null,null,10,null,6671,null,0,{"$nulls":12},1,1,2,202,"I","N"]
[]
["4-8","14","Photocell","No",{"v":8,"d":"8.00"},null,{"$f":"J2475*F2475","v":0},null,null,8,null,6672,null,0,{"$nulls":12},1,1,2,202,"I","N"]
[]
["4-8",null,"LIGHT FITTINGS",{"$nulls":8},6673,null,0,{"$nulls":12},1,1,2,202,"H"]
[]
["4-8",null,"Suppy, deliver and store the following light fittings complete; inclusive of lamps (Please refer to the Lightfitting schedule attached in the electrical Specification)",{"$nulls":8},6751,null,0,{"$nulls":12},1,1,2,202,"S","0"]
[]
["4-8","15","Type A - 1200mm Long, 51W LED Vapourproof Luminaire, surface mounted","No",{"v":16,"d":"16.00"},null,{"$f":"J2481*F2481","v":0},null,null,16,null,6674,null,0,{"$nulls":12},1,1,2,202,"I","N"]
[]
["4-8","16","Type B - 1200mm Long, 45W, double parabolic LED lightfitting, surface mounted","No",{"v":80,"d":"80.00"},null,{"$f":"J2483*F2483","v":0},null,null,80,null,6675,null,0,{"$nulls":12},1,1,2,202,"I","N"]
[]
["4-8","17","Type C  5W LED round recessed downlight luminaire","No",{"v":52,"d":"52.00"},null,{"$f":"J2485*F2485","v":0},null,null,52,null,6676,null,0,{"$nulls":12},1,1,2,202,"I","N"]
[]
["4-8","18","Type D, 22W LED round bulkhead luminaire","No",{"v":72,"d":"72.00"},null,{"$f":"J2487*F2487","v":0},null,null,72,null,6677,null,0,{"$nulls":12},1,1,2,202,"I","N"]
[]
["4-8","19","TYPE G - 55W LED Posttop luminaire with an aluminium boby body and a polycaronate glass, on a 4m GRP/ steel pole","No",{"v":15,"d":"15.00"},null,{"$f":"J2489*F2489","v":0},null,null,15,null,6678,null,0,{"$nulls":12},1,1,2,202,"I","N"]
[]
["4-8",null,"Install, fix and connect to surfaces as indicated, inclusive of lamps:",{"$nulls":8},6679,null,0,{"$nulls":12},1,1,2,202,"S"]
[]
["4-8","20","Type A - 1200mm Long, 51W LED Vapourproof Luminaire, surface mounted","No",{"v":16,"d":"16.00"},null,{"$f":"J2493*F2493","v":0},null,null,16,null,6680,null,0,{"$nulls":12},1,1,2,202,"I","N"]
[]
["4-8","21","Type B - 1200mm Long, 45W, double parabolic LED lightfitting, surface mounted","No",{"v":80,"d":"80.00"},null,{"$f":"J2495*F2495","v":0},null,null,80,null,6681,null,0,{"$nulls":12},1,1,2,202,"I","N"]
[]
["4-8","22","Type C  5W LED round recessed downlight luminaire","No",{"v":52,"d":"52.00"},null,{"$f":"J2497*F2497","v":0},null,null,52,null,6682,null,0,{"$nulls":12},1,1,2,202,"I","N"]
[]
["4-8","23","Type D, 22W LED round bulkhead luminaire","No",{"v":72,"d":"72.00"},null,{"$f":"J2499*F2499","v":0},null,null,72,null,6683,null,0,{"$nulls":12},1,1,2,202,"I","N"]
[]
["4-8","24","TYPE G - 55W LED Posttop luminaire with an aluminium boby body and a polycaronate glass, on a 4m GRP/ steel pole","No",{"v":15,"d":"15.00"},null,{"$f":"J2501*F2501","v":0},null,null,15,null,6684,null,0,{"$nulls":12},1,1,2,202,"I","N"]
[]
["4-8",null,"SWITCHED SOCKET OUTLETS",{"$nulls":8},6685,null,0,{"$nulls":12},1,1,2,202,"H"]
[]
["4-8",null,"Supply, install and connect switch socket outlets as specified including cover plates and all accessories",{"$nulls":8},6752,null,0,{"$nulls":12},1,1,2,202,"S","0"]
[]
["4-8","25","16 Amp switched socket outlet installed flush in wall","No",{"v":12,"d":"12.00"},null,{"$f":"J2507*F2507","v":0},null,null,12,null,6686,null,0,{"$nulls":12},1,1,2,202,"I","N"]
[]
["4-8","26","16 Amp double switched socket outlet installed flush on wall","No",{"v":38,"d":"38.00"},null,{"$f":"J2509*F2509","v":0},null,null,38,null,6687,null,0,{"$nulls":12},1,1,2,202,"I","N"]
[]
["4-8","27","16 Amp switch socket outlet installed in power trunking","No",{"v":22,"d":"22.00"},null,{"$f":"J2511*F2511","v":0},null,null,22,null,6688,null,0,{"$nulls":12},1,1,2,202,"I","N"]
[]
["4-9","28","16 Amp dedicated switched socket outlet complete with shaved earthpin in power trunking","No",{"v":22,"d":"22.00"},null,{"$f":"J2513*F2513","v":0},null,null,22,null,6689,null,0,{"$nulls":12},1,1,2,202,"I","N"]
[]
["4-9","29","16 Amp Euro two pin socket outlet installed in power skirting","No",{"v":22,"d":"22.00"},null,{"$f":"J2515*F2515","v":0},null,null,22,null,6690,null,0,{"$nulls":12},1,1,2,202,"I","N"]
[]
["4-9",null,"ISOLATORS",{"$nulls":8},6691,null,0,{"$nulls":12},1,1,2,202,"H"]
[]
["4-9",null,"Supply and install isolators mounted as specified complete with cover plate and all accessories",{"$nulls":8},6753,null,0,{"$nulls":12},1,1,2,202,"S","0"]
[]
["4-9","30","20 Amp Double pole surface isolators installed surface on wall","No",{"v":6,"d":"6.00"},null,{"$f":"J2521*F2521","v":0},null,null,6,null,6692,null,0,{"$nulls":12},1,1,2,202,"I","N"]
[]
["4-9","31","30 Amp Double Pole Surface isolators installed surface on wall","No",{"v":4,"d":"4.00"},null,{"$f":"J2523*F2523","v":0},null,null,4,null,6693,null,0,{"$nulls":12},1,1,2,202,"I","N"]
[]
["4-9","32","30 Amp 4 Pole Surface isolators installed surface on wall","No",{"v":4,"d":"4.00"},null,{"$f":"J2525*F2525","v":0},null,null,4,null,6694,null,0,{"$nulls":12},1,1,2,202,"I","N"]
[]
["4-9",null,"EARTHING AND BONDING",{"$nulls":8},6695,null,0,{"$nulls":12},1,1,2,202,"H"]
[]
["4-9","33","Earth and Bond the complete Bill No. 3 installation in accordance with the Specifications and SANS Standards.","No",{"v":1,"d":"1.00"},null,{"$f":"J2529*F2529","v":0},null,null,1,null,6696,null,0,{"$nulls":12},1,1,2,202,"I","N"]
[]
["4-9",null,"TEST AND COMMISIONING",{"$nulls":8},6697,null,0,{"$nulls":12},1,1,2,202,"H"]
[]
["4-9","34","Test and Commision the complete Bill No. 3 installation in accordance with the Specifications and SANS Standards.","No",{"v":1,"d":"1.00"},null,{"$f":"J2533*F2533","v":0},null,null,1,null,6698,null,0,{"$nulls":12},1,1,2,202,"I","N"]
[]
["4-9",null,"SECTION 4 : WIRING TRUNKING & MESH TRAY",{"$nulls":8},6699,null,0,{"$nulls":12},1,1,2,202,"H"]
[]
["4-9",null,"POWER SKIRTING",{"$nulls":8},6700,null,0,{"$nulls":12},1,1,2,202,"H"]
[]
["4-9",null,"Supply and install Power skirting complete with all fixings, separate covers and accessories.",{"$nulls":8},6754,null,0,{"$nulls":12},1,1,2,202,"S","0"]
[]
["4-9","35","Two compartment Power skirting - on straight wall","m",{"v":165,"d":"165.00"},null,{"$f":"J2541*F2541","v":0},null,null,165,null,6701,null,0,{"$nulls":12},1,1,2,202,"I","1"]
[]
["4-9","36","Two compartment Power skirting - End caps","No",{"v":10,"d":"10.00"},null,{"$f":"J2543*F2543","v":0},null,null,10,null,6702,null,0,{"$nulls":12},1,1,2,202,"I","N"]
[]
["4-9","37","Two compartment Power skirting - Internal angles","No",{"v":5,"d":"5.00"},null,{"$f":"J2545*F2545","v":0},null,null,5,null,6703,null,0,{"$nulls":12},1,1,2,202,"I","N"]
[]
["4-9","38","Two compartment Power skirting - External angles","No",{"v":5,"d":"5.00"},null,{"$f":"J2547*F2547","v":0},null,null,5,null,6704,null,0,{"$nulls":12},1,1,2,202,"I","N"]
[]
["4-9","39","Two compartment Power skirting - 90 degree bends","No",{"v":5,"d":"5.00"},null,{"$f":"J2549*F2549","v":0},null,null,5,null,6705,null,0,{"$nulls":12},1,1,2,202,"I","N"]
[]
["4-9","40","Conduit terminations into Power skirting for 2 x 25mm diameter conduits","No",{"v":4,"d":"4.00"},null,{"$f":"J2551*F2551","v":0},null,null,4,null,6706,null,0,{"$nulls":12},1,1,2,202,"I","N"]
[]
["4-9",null,"WIRING TRUNKING",{"$nulls":8},6707,null,0,{"$nulls":12},1,1,2,202,"H"]
[]
["4-9",null,"Supply and install trunking complete with all fixings, separate covers and accessories.  (trunking to be epoxy powder coated white)",{"$nulls":8},6755,null,0,{"$nulls":12},1,1,2,202,"S","0"]
[]
["4-9","41","P2000 trunking (OL 8000)","m",{"v":35,"d":"35.00"},null,{"$f":"J2557*F2557","v":0},null,null,35,null,6708,null,0,{"$nulls":12},1,1,2,202,"I","1"]
[]
["4-10","42","P2000 trunking - 90° bends","No",{"v":10,"d":"10.00"},null,{"$f":"J2559*F2559","v":0},null,null,10,null,6709,null,0,{"$nulls":12},1,1,2,202,"I","N"]
[]
["4-10","43","P2000 trunking - T pieces","No",{"v":4,"d":"4.00"},null,{"$f":"J2561*F2561","v":0},null,null,4,null,6710,null,0,{"$nulls":12},1,1,2,202,"I","N"]
[]
["4-10","44","P2000 trunking - 4 way","No",{"v":2,"d":"2.00"},null,{"$f":"J2563*F2563","v":0},null,null,2,null,6711,null,0,{"$nulls":12},1,1,2,202,"I","N"]
[]
["4-10","45","P2000 trunking - End caps","No",{"v":10,"d":"10.00"},null,{"$f":"J2565*F2565","v":0},null,null,10,null,6712,null,0,{"$nulls":12},1,1,2,202,"I","N"]
[]
["4-10","46","P2000 trunking - DB entry","No",{"v":2,"d":"2.00"},null,{"$f":"J2567*F2567","v":0},null,null,2,null,6713,null,0,{"$nulls":12},1,1,2,202,"I","N"]
[]
["4-10","47","P2000 trunking - elbow","No",{"v":2,"d":"2.00"},null,{"$f":"J2569*F2569","v":0},null,null,2,null,6714,null,0,{"$nulls":12},1,1,2,202,"I","N"]
[]
["4-10",null,"SUNDRIES",{"$nulls":8},6715,null,0,{"$nulls":12},1,1,2,202,"H"]
[]
["4-10","48","Allow for attendance to HVAC Contactor to co-odinate isolator and thermostat positions.","No",{"v":1,"d":"1.00"},null,{"$f":"J2573*F2573","v":0},null,null,1,null,6716,null,0,{"$nulls":12},1,1,2,202,"I","N"]
[]
["4-10",null,"TEST AND COMMISSIONING",{"$nulls":8},6717,null,0,{"$nulls":12},1,1,2,202,"H"]
[]
["4-10","49","Test and commission the complete Bill No 3 installation in accordance with the Specifications and SANS Standards","No",{"v":1,"d":"1.00"},null,{"$f":"J2577*F2577","v":0},null,null,1,null,6718,null,0,{"$nulls":12},1,1,2,202,"I","N"]
[]
["4-10",null,"SECTION 5: AUXILIARY SERVICES",{"$nulls":8},6719,null,0,{"$nulls":12},1,1,2,202,"H"]
[]
["4-10",null,"DISTRIBUTION BOARDS",{"$nulls":8},6720,null,0,{"$nulls":12},1,1,2,202,"H"]
[]
["4-10",null,"Supply and install pressed steel telephone DB, complete with wood backing, flush mounted in wall, including conduit terminations and all accessories",{"$nulls":8},6756,null,0,{"$nulls":12},1,1,2,202,"S","0"]
[]
["4-10","50","600 x 600 mm","No",{"v":1,"d":"1.00"},null,{"$f":"J2585*F2585","v":0},null,null,1,null,6721,null,0,{"$nulls":12},1,1,2,202,"I","N"]
[]
["4-10","51","450 x 450 mm","No",{"v":1,"d":"1.00"},null,{"$f":"J2587*F2587","v":0},null,null,1,null,6722,null,0,{"$nulls":12},1,1,2,202,"I","N"]
[]
["4-10",null,"CONDUITS",{"$nulls":8},6723,null,0,{"$nulls":12},1,1,2,202,"H"]
[]
["4-10",null,"Supply and install PVC conduit complete with all accessories including couplings, bending, fixings and waste fixed as specified.",{"$nulls":8},6757,null,0,{"$nulls":12},1,1,2,202,"S","0"]
[]
["4-10","52","25 mm - surface","m",{"v":30,"d":"30.00"},null,{"$f":"J2593*F2593","v":0},null,null,30,null,6724,null,0,{"$nulls":12},1,1,2,202,"I","1"]
[]
["4-10","53","25 mm - chased in brickwork","m",{"v":145,"d":"145.00"},null,{"$f":"J2595*F2595","v":0},null,null,145,null,6725,null,0,{"$nulls":12},1,1,2,202,"I","1"]
[]
["4-10","54","32 mm - cast in slab","m",{"v":145,"d":"145.00"},null,{"$f":"J2597*F2597","v":0},null,null,145,null,6726,null,0,{"$nulls":12},1,1,2,202,"I","1"]
[]
["4-10","55","32 mm - chased in brickwork","m",{"v":30,"d":"30.00"},null,{"$f":"J2599*F2599","v":0},null,null,30,null,6727,null,0,{"$nulls":12},1,1,2,202,"I","1"]
[]
["4-10",null,"DRAW WIRE",{"$nulls":8},6728,null,0,{"$nulls":12},1,1,2,202,"H"]
[]
["4-10","56","Supply and install 1mm galvanised steel draw wire drawn into conduit","m",{"v":150,"d":"150.00"},null,{"$f":"J2603*F2603","v":0},null,null,150,null,6729,null,0,{"$nulls":12},1,1,2,202,"I","1"]
[]
["4-11",null,"POWER SKIRTING OUTLETS",{"$nulls":8},6730,null,0,{"$nulls":12},1,1,2,202,"H"]
[]
["4-11",null,"Supply and install telephone and data outlets in power skirting including cover plates and all accessories.",{"$nulls":8},6758,null,0,{"$nulls":12},1,1,2,202,"S","0"]
[]
["4-11","57","Telephone outlet in power skirting","No",{"v":20,"d":"20.00"},null,{"$f":"J2609*F2609","v":0},null,null,20,null,6731,null,0,{"$nulls":12},1,1,2,202,"I","N"]
[]
["4-11","58","Data outlet in power skirting","No",{"v":20,"d":"20.00"},null,{"$f":"J2611*F2611","v":0},null,null,20,null,6732,null,0,{"$nulls":12},1,1,2,202,"I","N"]
[]
["4-11",null,"TELEPHONE CABLING",{"$nulls":8},6733,null,0,{"$nulls":12},1,1,2,202,"H"]
[]
["4-11","59","Supply and install telephone cabling as specified","m",{"v":170,"d":"170.00"},null,{"$f":"J2615*F2615","v":0},null,null,170,null,6734,null,0,{"$nulls":12},1,1,2,202,"I","1"]
[]
["4-11",null,"SUNDRIES",{"$nulls":8},6735,null,0,{"$nulls":12},1,1,2,202,"H"]
[]
["4-11","60","Provide attendence to specialist personnel for the telephone cabling","No",{"v":1,"d":"1.00"},null,{"$f":"J2619*F2619","v":0},null,null,1,null,6736,null,0,{"$nulls":12},1,1,2,202,"I","N"]
[]
["4-11","61","Provide attendence to specialist personnel for the data cabling","No",{"v":1,"d":"1.00"},null,{"$f":"J2621*F2621","v":0},null,null,1,null,6737,null,0,{"$nulls":12},1,1,2,202,"I","N"]
[]
["4-11",null,"TEST AND COMMISSIONING",{"$nulls":8},6738,null,0,{"$nulls":12},1,1,2,202,"H"]
[]
["4-11","62","Test and commission the complete installation as included in Section 3 of Bill No. 4 in accordance with the Specifications","No",{"v":1,"d":"1.00"},null,{"$f":"J2625*F2625","v":0},null,null,1,null,6739,null,0,{"$nulls":12},1,1,2,202,"I","N"]
[]
[]
[null,null,"Bill Total",{"$nulls":4},{"$f":"SUM(G2427:G2627)","v":0}]
[]
[]
[null,null,"Section Total ",{"$nulls":4},{"$f":"SUM(G2250:G2627)","v":0}]
[]
[]
[null,null,"SECTION NO. 5 : EXTERNAL WORKS (PROVISIONAL)",{"$nulls":23},1,11,1,6,"H"]
[]
[]
[null,null,"BILL NO.1 : EARTHWORKS",{"$nulls":23},1,11,1,6,"H"]
[]
["5-2",null,"SUPPLEMENTARY PREAMBLES",{"$nulls":8},1147,null,0,{"$nulls":12},1,11,1,6,"H","0"]
[]
["5-2",null,"Nature of ground:",{"$nulls":8},1148,null,0,{"$nulls":12},1,11,1,6,"S","0"]
[]
["5-2",null,"The nature of the ground is assumed to be gravel, therefore earth, but possibly interspersed with soft rock.",{"$nulls":8},1149,null,0,{"$nulls":12},1,11,1,6,"C","0"]
[]
["5-2",null,"Carting away of excavated material:",{"$nulls":8},1150,null,0,{"$nulls":12},1,11,1,6,"S","0"]
[]
["5-2",null,"Descriptions of carting away of excavated material shall be deemed to include loading excavated material onto trucks directly from the excavations or, alternatively, from stock piles situated on the building site.",{"$nulls":8},1151,null,0,{"$nulls":12},1,11,1,6,"C","0"]
[]
["5-2",null,"SITE CLEARANCE, ETC.",{"$nulls":8},1152,null,0,{"$nulls":12},1,11,1,6,"H","0"]
[]
["5-2",null,"Site clearance:",{"$nulls":8},1153,null,0,{"$nulls":12},1,11,1,6,"S","0"]
[]
["5-2","1","Digging up and removing rubbish, debris, vegetation, hedges, shrubs and trees not exceeding 200mm girth, bush, etc.","m²",{"v":380,"d":"380.00"},null,{"$f":"J2653*F2653","v":0},null,null,380,null,6026,null,0,{"$nulls":12},1,11,1,6,"I","2"]
[]
["5-2","2","Stripping average 150mm thick layer of top soil and stockpiling on site","m³",{"v":57,"d":"57.00"},null,{"$f":"J2655*F2655","v":0},null,null,57,null,6525,null,0,{"$nulls":12},1,11,1,6,"I","3"]
[]
["5-2",null,"BULK EXCAVATIONS ETC",{"$nulls":8},4655,null,51520,{"$nulls":12},1,11,1,6,"H","0"]
[]
["5-2",null,"Open face excavation in earth over sloping site:",{"$nulls":8},4656,null,-681,{"$nulls":12},1,11,1,6,"S","0"]
[]
["5-2","3","Open face excavation for form platform levels.","m³",{"v":55,"d":"55.00"},null,{"$f":"J2661*F2661","v":0},null,null,55,null,6526,null,-682,{"$nulls":12},1,11,1,6,"I","3"]
[]
["5-2",null,"Extra over bulk excavations in earth for excavation in:",{"$nulls":8},4658,null,53400,{"$nulls":12},1,11,1,6,"S","0"]
[]
["5-2","4","Soft rock.","m³",{"v":5,"d":"5.00"},null,{"$f":"J2665*F2665","v":0},null,null,5,null,4659,null,53500,{"$nulls":12},1,11,1,6,"I","3"]
[]
["5-2","5","Hard rock.","m³",{"v":3,"d":"3.00"},null,{"$f":"J2667*F2667","v":0},null,null,3,null,4660,null,53600,{"$nulls":12},1,11,1,6,"I","3"]
[]
["5-2",null,"Extra over bulk excavations in earth for breaking up and removing:",{"$nulls":8},4661,null,53700,{"$nulls":12},1,11,1,6,"S","0"]
[]
["5-2","6","Brickwork","m³",{"v":2,"d":"2.00"},null,{"$f":"J2671*F2671","v":0},null,null,2,null,6527,null,53800,{"$nulls":12},1,11,1,6,"I","3"]
[]
["5-2","7","Reinforced concrete","m³",{"v":2,"d":"2.00"},null,{"$f":"J2673*F2673","v":0},null,null,2,null,6528,null,54000,{"$nulls":12},1,11,1,6,"I","3"]
[]
["5-2",null,"The Tenderer is referred to the relevant clauses in the separate document \"Model Preambles for Trades\" and to the Supplementary Preambles incorporated at the front of these Bills of Quantities as well as hereunder.",{"$nulls":8},1146,null,0,{"$nulls":12},1,11,1,6,"C","0"]
[]
[]
[null,null,"Bill Total",{"$nulls":4},{"$f":"SUM(G2639:G2677)","v":0}]
[]
[]
[]
[null,null,"BILL NO.2 : PLUMBING AND DRAINAGE",{"$nulls":23},1,11,2,54,"H"]
[]
["5-3",null,"The Tenderer is referred to the relevant clauses in the separate document \"Model Preambles for Trades\" and to the Supplementary Preambles incorporated at the front of these Bills of Quantities as well as hereunder.",{"$nulls":8},1243,null,0,{"$nulls":12},1,11,2,54,"C","0"]
[]
["5-3",null,"STORMWATER DRAINAGE",{"$nulls":8},4912,null,0,{"$nulls":12},1,11,2,54,"H","0"]
[]
["5-3",null,"Unplasticised polyvinyl chloride (uPVC) Class 51 HD pipes:",{"$nulls":8},4913,null,0,{"$nulls":12},1,11,2,54,"S","0"]
[]
["5-3","1","200mm pipes in and including trenches not exceeding 1m deep.","m",{"v":150,"d":"150.00"},null,{"$f":"J2690*F2690","v":0},null,null,150,null,4914,null,0,{"$nulls":12},1,11,2,54,"I","1"]
[]
["5-3","2","160mm pipes in and including trenches not exceeding 1m deep.","m",{"v":300,"d":"300.00"},null,{"$f":"J2692*F2692","v":0},null,null,300,null,4915,null,0,{"$nulls":12},1,11,2,54,"I","1"]
[]
["5-3","3","160mm pipes in and including trenches exceeding 1m deep but not exceeding 2m deep.","m",{"v":150,"d":"150.00"},null,{"$f":"J2694*F2694","v":0},null,null,150,null,4916,null,0,{"$nulls":12},1,11,2,54,"I","1"]
[]
["5-3",null,"Extra over uPVC pipes for fittings:",{"$nulls":8},4917,null,0,{"$nulls":12},1,11,2,54,"S","0"]
[]
["5-3","4","200mm Bend.","No",{"v":8,"d":"8.00"},null,{"$f":"J2698*F2698","v":0},null,null,8,null,4918,null,0,{"$nulls":12},1,11,2,54,"I","N"]
[]
["5-3","5","200mm Reducer.","No",{"v":4,"d":"4.00"},null,{"$f":"J2700*F2700","v":0},null,null,4,null,4921,null,0,{"$nulls":12},1,11,2,54,"I","N"]
[]
["5-3","6","200mm Junction.","No",{"v":4,"d":"4.00"},null,{"$f":"J2702*F2702","v":0},null,null,4,null,4919,null,0,{"$nulls":12},1,11,2,54,"I","N"]
[]
["5-3","7","200mm Reducing junction.","No",{"v":2,"d":"2.00"},null,{"$f":"J2704*F2704","v":0},null,null,2,null,4920,null,0,{"$nulls":12},1,11,2,54,"I","N"]
[]
["5-3","8","160mm Bend.","No",{"v":16,"d":"16.00"},null,{"$f":"J2706*F2706","v":0},null,null,16,null,4922,null,0,{"$nulls":12},1,11,2,54,"I","N"]
[]
["5-3","9","160mm Junction.","No",{"v":4,"d":"4.00"},null,{"$f":"J2708*F2708","v":0},null,null,4,null,4923,null,0,{"$nulls":12},1,11,2,54,"I","N"]
[]
["5-3",null,"Inspection chamber, catch pits, etc.:",{"$nulls":8},4924,null,0,{"$nulls":12},1,11,2,54,"S","0"]
[]
["5-3",null,"Stormwater grid inlets shall be constructed complete including for excavations, concrete base, brick walls, precast rings, cover slab with rebated openings, general backfilling, cement stabilised backfilling, etc.",{"$nulls":8},4925,null,0,{"$nulls":12},1,11,2,54,"C","0"]
[]
["5-3","10","Excavate and build 1020 x 1020mm stormwater grid inlet with one brick sides in extra hard burned bricks cross bonded in English bond and laid in Class I mortar finished with one coat internal plaster with 200mm thick mass concrete 25MPa/19mm stone base fitted with cast iron grating and frame (measured elsewhere) on HD precast concrete cover slab to falls with smooth finish on exposed faces and with the bottoms benched up in 15MPa/8mm stone finished smooth in 1:1 cement plaster around channels not exceeding 1m deep.","No",{"v":25,"d":"25.00"},null,{"$f":"J2714*F2714","v":0},null,null,25,null,4926,null,0,{"$nulls":12},1,11,2,54,"I","N"]
[]
["5-4",null,"Stormwater Discharge Headwall:",{"$nulls":8},4927,null,0,{"$nulls":12},1,11,2,54,"S","0"]
[]
["5-4","11","1700 x 595 x 450 high headwall for stormwater discharge on reinforced concrete base with 230mm thick screen wall to receive 200mm diameter stormwater pipe including all excavations, reinforced concrete base, brick walls, general backfilling, cement stabilised backfilling, stone pitching, etc. as required.","No",{"v":18,"d":"18.00"},null,{"$f":"J2718*F2718","v":0},null,null,18,null,4928,null,0,{"$nulls":12},1,11,2,54,"I","N"]
[]
["5-4",null,"Gratings, covers, etc.:",{"$nulls":8},4940,null,0,{"$nulls":12},1,11,2,54,"S","0"]
[]
["5-4","12","ST. Gobain 450 x 450mm type 2946 grid and frame.","No",{"v":25,"d":"25.00"},null,{"$f":"J2722*F2722","v":0},null,null,25,null,4941,null,0,{"$nulls":12},1,11,2,54,"I","N"]
[]
["5-4",null,"TANKS, ETC.",{"$nulls":8},1338,null,0,{"$nulls":12},1,11,2,54,"H","0"]
[]
["5-4",null,"Jo-Jo':",{"$nulls":8},1339,null,0,{"$nulls":12},1,11,2,54,"S","0"]
[]
["5-4","13","5 000 Litre water storage tank, size approximately 1800mm diameter x 2040mm high, or similar approved.","No",{"v":6,"d":"6.00"},null,{"$f":"J2728*F2728","v":0},null,null,6,null,1340,null,0,{"$nulls":12},1,11,2,54,"I","N"]
[]
["5-4","14","Brass tank tap or similar approved, including forming outlet opening, all necessary fittings, etc.","No",{"v":6,"d":"6.00"},null,{"$f":"J2730*F2730","v":0},null,null,6,null,4911,null,0,{"$nulls":12},1,11,2,54,"I","N"]
[]
[]
[null,null,"Bill Total",{"$nulls":4},{"$f":"SUM(G2684:G2732)","v":0}]
[]
[]
[]
[null,null,"BILL NO.3 : EXTERNAL WORKS",{"$nulls":23},1,11,3,72,"H"]
[]
["5-6",null,"The Tenderer is referred to the relevant clauses in the separate document \"Model Preambles for Trades\" and to the Supplementary Preambles incorporated at the front of these Bills of Quantities as well as hereunder.",{"$nulls":8},1350,null,0,{"$nulls":12},1,11,3,72,"C","0"]
[]
["5-6",null,"THE FOLLOWING IN BASES TO WATER TANKS",{"$nulls":8},1351,null,0,{"$nulls":12},1,11,3,72,"H","0"]
[]
["5-6",null,"Plinth for jojo tank:",{"$nulls":8},4648,null,0,{"$nulls":12},1,11,3,72,"S","0"]
[]
["5-6","1","Excavate for raft foundation not exceeding 2m deep.","m³",{"v":27,"d":"27.00"},null,{"$f":"J2745*F2745","v":0},null,null,27,null,1352,null,0,{"$nulls":12},1,11,3,72,"I","3"]
[]
["5-6","2","Risk of collapse not exceeding 1.5 m deep.","m²",{"v":54,"d":"54.00"},null,{"$f":"J2747*F2747","v":0},null,null,54,null,1353,null,0,{"$nulls":12},1,11,3,72,"I","2"]
[]
["5-6","3","Extra over excavations for carting away surplus material to a dumping site to be located by the contractor.","m³",{"v":27,"d":"27.00"},null,{"$f":"J2749*F2749","v":0},null,null,27,null,4653,null,0,{"$nulls":12},1,11,3,72,"I","3"]
[]
["5-6","4","Mass concrete 25MPa in raft foundation.","m³",{"v":13,"d":"13.00"},null,{"$f":"J2751*F2751","v":0},null,null,13,null,1355,null,0,{"$nulls":12},1,11,3,72,"I","3"]
[]
["5-6","5","One brick wall.","m²",{"v":60,"d":"60.00"},null,{"$f":"J2753*F2753","v":0},null,null,60,null,1356,null,0,{"$nulls":12},1,11,3,72,"I","2"]
[]
["5-6","6","Extra over ordinary brickwork for external facings.","m²",{"v":60,"d":"60.00"},null,{"$f":"J2755*F2755","v":0},null,null,60,null,1357,null,0,{"$nulls":12},1,11,3,72,"I","2"]
[]
["5-6","7","External face brick-on edge course to top of one brick wall.","m",{"v":60,"d":"60.00"},null,{"$f":"J2757*F2757","v":0},null,null,60,null,1358,null,0,{"$nulls":12},1,11,3,72,"I","1"]
[]
["5-6","8","G6 earth filling supplied by the contractor in 150mm layers compacted to 93% MOD AASHTO density under floors.","m³",{"v":23,"d":"23.00"},null,{"$f":"J2759*F2759","v":0},null,null,23,null,1359,null,0,{"$nulls":12},1,11,3,72,"I","3"]
[]
["5-6","9","25Mpa reinforced concrete surface slab.","m³",{"v":6,"d":"6.00"},null,{"$f":"J2761*F2761","v":0},null,null,6,null,4649,null,0,{"$nulls":12},1,11,3,72,"I","3"]
[]
["5-6","10","Cement Mortar bedding for tank.","m³",{"v":8,"d":"8.00"},null,{"$f":"J2763*F2763","v":0},null,null,8,null,4650,null,0,{"$nulls":12},1,11,3,72,"I","3"]
[]
["5-6","11","Fabric reinforcement - Mesh ref 193.","m²",{"v":38,"d":"38.00"},null,{"$f":"J2765*F2765","v":0},null,null,38,null,4651,null,0,{"$nulls":12},1,11,3,72,"I","2"]
[]
["5-6","12","Fabric reinforcement - Mesh ref 395.","m²",{"v":38,"d":"38.00"},null,{"$f":"J2767*F2767","v":0},null,null,38,null,4652,null,0,{"$nulls":12},1,11,3,72,"I","2"]
[]
["5-6",null,"V-drain for jojo tank plinth:",{"$nulls":8},4904,null,0,{"$nulls":12},1,11,3,72,"S","0"]
[]
["5-6","13","Excavation in earth not exceeding 2m deep for reduced levels under v-drain.","m³",{"v":10,"d":"10.00"},null,{"$f":"J2771*F2771","v":0},null,null,10,null,4906,null,0,{"$nulls":12},1,11,3,72,"I","3"]
[]
["5-6","14","Extra over all excavations for carting away surplus material to a dumping site to be located by the Contractor.","m³",{"v":10,"d":"10.00"},null,{"$f":"J2773*F2773","v":0},null,null,10,null,4907,null,0,{"$nulls":12},1,11,3,72,"I","3"]
[]
["5-6","15","Compaction of ground surfaces under floors, etc. including breaking down oversize material, adding suitable material where necessary and compacting to 95% Mod AASHTO density.","m²",{"v":73,"d":"73.00"},null,{"$f":"J2775*F2775","v":0},null,null,73,null,4905,null,0,{"$nulls":12},1,11,3,72,"I","2"]
[]
["5-7","16","25MPa/19mm Reinforced concrete cast against excavated surfaces for v-drains.","m³",{"v":10,"d":"10.00"},null,{"$f":"J2777*F2777","v":0},null,null,10,null,4908,null,0,{"$nulls":12},1,11,3,72,"I","3"]
[]
["5-7","17","Mesh ref 193 fabric reinforcement to v-drains.","m²",{"v":73,"d":"73.00"},null,{"$f":"J2779*F2779","v":0},null,null,73,null,4909,null,0,{"$nulls":12},1,11,3,72,"I","2"]
[]
["5-7","18","Rough formwork (degree of accuracy II) to edges, risers, ends and reveals not exceeding 300mm high or wide.","m",{"v":82,"d":"82.00"},null,{"$f":"J2781*F2781","v":0},null,null,82,null,4910,null,0,{"$nulls":12},1,11,3,72,"I","1"]
[]
["5-7",null,"FENCING",{"$nulls":8},4879,null,0,{"$nulls":12},1,11,3,72,"H","0"]
[]
["5-7",null,"Galvanised security fence with bitumen dipped steel standards and bitumen-aluminium painted (two coats) steel posts, stays, etc., including galvanised steel bolts, straining eye bolts, etc., site clearance, preparation, of ground, reinforced concrete bases, footings, etc.:",{"$nulls":8},4880,null,0,{"$nulls":12},1,11,3,72,"S","0"]
[]
["5-7","19","1.8m High security fence supplied and installed complete in accordance with manufacturer's specification.","m",{"v":714,"d":"714.00"},null,{"$f":"J2787*F2787","v":0},null,null,714,null,4881,null,0,{"$nulls":12},1,11,3,72,"I","1"]
[]
["5-7","20","Extra over security fence for 1.2m wide pedestrian gates in fence.","No",{"v":2,"d":"2.00"},null,{"$f":"J2789*F2789","v":0},null,null,2,null,4882,null,0,{"$nulls":12},1,11,3,72,"I","N"]
[]
["5-7","21","Extra over security fence for 4.5m wide vehicular entrance gates in fence.","No",{"v":1,"d":"1.00"},null,{"$f":"J2791*F2791","v":0},null,null,1,null,4883,null,0,{"$nulls":12},1,11,3,72,"I","N"]
[]
["5-7",null,"BUDGETARY ALLOWANCES",{"$nulls":8},6039,null,0,{"$nulls":12},1,11,3,72,"H","0"]
[]
["5-7",null,"The following budgetary allowances cover work which is not fully defined at tender date and which is intended to be executed by the contractor and/or specialist sub-contractors and will be measured at completion and priced in terms of the contract. Tenders are to make the necessary allowances for this scope of work as no claim for additional prliminaries, etc., will be entertained once this scope of work is realised. The amounts shown shall be used as directed by the Principal Agent and shall be deducted in whole or in part if not required:",{"$nulls":8},6040,null,0,{"$nulls":12},1,11,3,72,"S","0"]
[]
["5-7","22","Provide the amount of R108,000.00 (One Hundred and Eight Thousand Rand) for New Entrance Feature Wall.","Item",null,{"v":108000,"d":"108,000.00"},{"$f":"J2797*F2797","v":{"v":108000,"d":"108,000.00"}},null,null,1,null,6041,null,0,{"$nulls":12},1,11,3,72,"I","I"]
[]
[]
[null,null,"Bill Total",{"$nulls":4},{"$f":"SUM(G2739:G2799)","v":{"v":108000,"d":"108,000.00"}}]
[]
[]
[null,null,"Section Total ",{"$nulls":4},{"$f":"SUM(G2635:G2799)","v":{"v":108000,"d":"108,000.00"}}]
[]
[]
[null,null,"SECTION NO. 6 : PROVISIONAL SUMS",{"$nulls":23},1,12,1,99,"H"]
[]
[]
[null,null,"BILL NO.1 : PROVISIONAL SUMS",{"$nulls":23},1,12,1,99,"H"]
[]
["6-2",null,"The Tenderer is referred to the relevant clauses in the separate document \"Model Preambles for Trades\" and to the Supplementary Preambles incorporated at the front of these Bills of Quantities as well as hereunder.",{"$nulls":8},6027,null,0,{"$nulls":12},1,12,1,99,"C","0"]
[]
["6-2",null,"PROVISIONAL SUMS",{"$nulls":8},1410,null,0,{"$nulls":12},1,12,1,99,"H","0"]
[]
["6-2",null,"SUPPLEMENTARY PREAMBLES",{"$nulls":8},6017,null,0,{"$nulls":12},1,12,1,99,"H","0"]
[]
["6-2",null,"General:",{"$nulls":8},6018,null,0,{"$nulls":12},1,12,1,99,"S","0"]
[]
["6-2",null,"1.The following sums and amounts are NET.",{"$nulls":8},1412,null,0,{"$nulls":12},1,12,1,99,"C","0"]
[]
["6-2",null,"2. Under no circumstances may any Provisional Sum be extended at an amount lower than the amount given in the bill.",{"$nulls":8},1413,null,0,{"$nulls":12},1,12,1,99,"C","0"]
[]
["6-2",null,"3. Unless a specific percentage mark-up for Attendance is indicated in a rate column, the amount priced by the Contractor for Attendance against each Provisional Sum shall be deemed to be the Lump Sum and shall not be adjusted unless the scope of the sub contract varies significantly.",{"$nulls":8},1414,null,0,{"$nulls":12},1,12,1,99,"C","0"]
[]
["6-2",null,"4. Provisional Sums contained here-in may be omitted or reduced at the employer's sole discretion and the  Contractor shall not be entitled to claim for any loss by way of reductions or omissions or any discount, or percentage relating to Provisional Sums or PC amounts or any loss of profit related thereto.",{"$nulls":8},1415,null,0,{"$nulls":12},1,12,1,99,"C","0"]
[]
["6-2",null,"5. The Contractor is to only commence works related to any provisional sum or budgetary allowance upon the receipt of a written instruction from a representative of the Principal Agent.",{"$nulls":8},6019,null,0,{"$nulls":12},1,12,1,99,"C","0"]
[]
["6-2",null,"ELECTRICAL UPGRADE",{"$nulls":8},6501,null,0,{"$nulls":12},1,12,1,99,"H","0"]
[]
["6-2","1","Provide the sum of R269,000.00 (Two Hundred and Sixty-Nine Thousand Rand) for Electrical Upgrade","Item",null,{"v":269000,"d":"269,000.00"},{"$f":"J2831*F2831","v":{"v":269000,"d":"269,000.00"}},null,null,1,null,6502,null,0,{"$nulls":12},1,12,1,99,"I","I"]
[]
["6-2","2","Profit on above item.","%",null,null,{"$f":"J2833*F2833","v":0},null,null,1,null,6503,null,0,{"$nulls":12},1,12,1,99,"I","I"]
[]
["6-2","3","Attendance on ditto.","%",null,null,{"$f":"J2835*F2835","v":0},null,null,1,null,6504,null,0,{"$nulls":12},1,12,1,99,"I","I"]
[]
["6-2",null,"ELECTRICAL DECOMMISSIONS",{"$nulls":8},6505,null,0,{"$nulls":12},1,12,1,99,"H","0"]
[]
["6-2","4","Provide the sum of R89,000.00 (Eighty-Nine Thousand Rand) for Electrical Decommissions","Item",null,{"v":89000,"d":"89,000.00"},{"$f":"J2839*F2839","v":{"v":89000,"d":"89,000.00"}},null,null,1,null,6506,null,0,{"$nulls":12},1,12,1,99,"I","I"]
[]
["6-2","5","Profit on above item.","%",null,null,{"$f":"J2841*F2841","v":0},null,null,1,null,6507,null,0,{"$nulls":12},1,12,1,99,"I","I"]
[]
["6-2","6","Attendance on ditto.","%",null,null,{"$f":"J2843*F2843","v":0},null,null,1,null,6508,null,0,{"$nulls":12},1,12,1,99,"I","I"]
[]
["6-2",null,"LIGHTNING PROTECTION",{"$nulls":8},6509,null,0,{"$nulls":12},1,12,1,99,"H","0"]
[]
["6-2","7","Provide the sum of R86,000.00 (Eighty-Six Thousand Rand) for Lightning Protection","Item",null,{"v":86000,"d":"86,000.00"},{"$f":"J2847*F2847","v":{"v":86000,"d":"86,000.00"}},null,null,1,null,6510,null,0,{"$nulls":12},1,12,1,99,"I","I"]
[]
["6-2","8","Profit on above item.","%",null,null,{"$f":"J2849*F2849","v":0},null,null,1,null,6511,null,0,{"$nulls":12},1,12,1,99,"I","I"]
[]
["6-3","9","Attendance on ditto.","%",null,null,{"$f":"J2851*F2851","v":0},null,null,1,null,6512,null,0,{"$nulls":12},1,12,1,99,"I","I"]
[]
["6-3",null,"SECURITY, CCTV AND ACCESS CONTROL CONTAINMENT",{"$nulls":8},6513,null,0,{"$nulls":12},1,12,1,99,"H","0"]
[]
["6-3","10","Provide the sum of R41,000.00 (Forty-One Thousand Rand) for Security, CCTV and Access Control Containment","Item",null,{"v":41000,"d":"41,000.00"},{"$f":"J2855*F2855","v":{"v":41000,"d":"41,000.00"}},null,null,1,null,6514,null,0,{"$nulls":12},1,12,1,99,"I","I"]
[]
["6-3","11","Profit on above item.","%",null,null,{"$f":"J2857*F2857","v":0},null,null,1,null,6515,null,0,{"$nulls":12},1,12,1,99,"I","I"]
[]
["6-3","12","Attendance on ditto.","%",null,null,{"$f":"J2859*F2859","v":0},null,null,1,null,6516,null,0,{"$nulls":12},1,12,1,99,"I","I"]
[]
["6-3",null,"COMMUNICATION SYSTEM CONTAINMENT",{"$nulls":8},6517,null,0,{"$nulls":12},1,12,1,99,"H","0"]
[]
["6-3","13","Provide the sum of R35,000.00 (Thirty-Five Thousand Rand) for Communication System Containment","Item",null,{"v":35000,"d":"35,000.00"},{"$f":"J2863*F2863","v":{"v":35000,"d":"35,000.00"}},null,null,1,null,6518,null,0,{"$nulls":12},1,12,1,99,"I","I"]
[]
["6-3","14","Profit on above item.","%",null,null,{"$f":"J2865*F2865","v":0},null,null,1,null,6519,null,0,{"$nulls":12},1,12,1,99,"I","I"]
[]
["6-3","15","Attendance on ditto.","%",null,null,{"$f":"J2867*F2867","v":0},null,null,1,null,6520,null,0,{"$nulls":12},1,12,1,99,"I","I"]
[]
["6-3",null,"HVAC AND FIRE PROTECTION",{"$nulls":8},6521,null,0,{"$nulls":12},1,12,1,99,"H","0"]
[]
["6-3","16","Provide the sum of R165,000.00 (One Hundred and Sixty-Five Thousand Rand) for HVAC and Fire Protection","Item",null,{"v":165000,"d":"165,000.00"},{"$f":"J2871*F2871","v":{"v":165000,"d":"165,000.00"}},null,null,1,null,6522,null,0,{"$nulls":12},1,12,1,99,"I","I"]
[]
["6-3","17","Profit on above item.","%",null,null,{"$f":"J2873*F2873","v":0},null,null,1,null,6523,null,0,{"$nulls":12},1,12,1,99,"I","I"]
[]
["6-3","18","Attendance on ditto.","%",null,null,{"$f":"J2875*F2875","v":0},null,null,1,null,6524,null,0,{"$nulls":12},1,12,1,99,"I","I"]
[]
["6-3",null,"TEMPORARY CLASSROOMS",{"$nulls":8},1416,null,0,{"$nulls":12},1,12,1,99,"H","0"]
[]
["6-3","19","Provide the sum of R706,000.00 (Seven Hundred and Six Thousand Rand) for Temporary Classrooms.","Item",null,{"v":706000,"d":"706,000.00"},{"$f":"J2879*F2879","v":{"v":706000,"d":"706,000.00"}},null,null,1,null,1417,null,0,{"$nulls":12},1,12,1,99,"I","I"]
[]
["6-3","20","Profit on above item.","%",null,null,{"$f":"J2881*F2881","v":0},null,null,1,null,1418,null,0,{"$nulls":12},1,12,1,99,"I","I"]
[]
["6-3","21","Attendance on ditto.","%",null,null,{"$f":"J2883*F2883","v":0},null,null,1,null,1419,null,0,{"$nulls":12},1,12,1,99,"I","I"]
[]
["6-3",null,"TEMPORARY ABLUTIONS",{"$nulls":8},1428,null,0,{"$nulls":12},1,12,1,99,"H","0"]
[]
["6-3","22","Provide the amount of R130,000.00 (One Hundred and Thirty Thousand Rand) for Temporary Ablutions.","Item",null,{"v":130000,"d":"130,000.00"},{"$f":"J2887*F2887","v":{"v":130000,"d":"130,000.00"}},null,null,1,null,1429,null,0,{"$nulls":12},1,12,1,99,"I","I"]
[]
["6-3","23","Profit on above item.","%",null,null,{"$f":"J2889*F2889","v":0},null,null,1,null,1430,null,0,{"$nulls":12},1,12,1,99,"I","I"]
[]
["6-3","24","Attendance on ditto.","%",null,null,{"$f":"J2891*F2891","v":0},null,null,1,null,1431,null,0,{"$nulls":12},1,12,1,99,"I","I"]
[]
["6-3",null,"JOINERY FITTINGS",{"$nulls":8},1420,null,0,{"$nulls":12},1,12,1,99,"H","0"]
[]
["6-3","25","Provide the sum of R107,000.00 (One Hundred and Seven Rand) for Joinery Fittings installed complete.","Item",null,{"v":107000,"d":"107,000.00"},{"$f":"J2895*F2895","v":{"v":107000,"d":"107,000.00"}},null,null,1,null,1421,null,0,{"$nulls":12},1,12,1,99,"I","I"]
[]
["6-3","26","Profit on above item.","%",null,null,{"$f":"J2897*F2897","v":0},null,null,1,null,1422,null,0,{"$nulls":12},1,12,1,99,"I","I"]
[]
["6-3","27","Attendance on ditto.","%",null,null,{"$f":"J2899*F2899","v":0},null,null,1,null,1423,null,0,{"$nulls":12},1,12,1,99,"I","I"]
[]
["6-4",null,"BUDGETARY ALLOWANCES",{"$nulls":8},6020,null,0,{"$nulls":12},1,12,1,99,"H","0"]
[]
["6-4",null,"The following budgetary allowances cover work which is not fully defined at tender date and which is intended to be executed by the contractor and/or specialist sub-contractors and will be measured at completion and priced in terms of the contract. Tenders are to make the necessary allowances for this scope of work as no claim for additional prliminaries, etc., will be entertained once this scope of work is realised. The amounts shown shall be used as directed by the Principal Agent and shall be deducted in whole or in part if not required:",{"$nulls":8},6021,null,0,{"$nulls":12},1,12,1,99,"S","0"]
[]
["6-4","28","Provide the amount of R100,000.00 (One Hundred Thousand Rand) for the designated Community Liaison Officer (R10,000.00 per month).","Item",null,{"v":100000,"d":"100,000.00"},{"$f":"J2905*F2905","v":{"v":100000,"d":"100,000.00"}},null,null,1,null,6023,null,0,{"$nulls":12},1,12,1,99,"I","I"]
[]
["6-4","29","Provide the amount of R50,000.00 (Fifty Thousand Rand) for Sundry Builder's Work for Specialist Services.","%",null,{"v":50000,"d":"50,000.00"},{"$f":"J2907*F2907","v":{"v":50000,"d":"50,000.00"}},null,null,1,null,6025,null,0,{"$nulls":12},1,12,1,99,"I","I"]
[]
[null,null,"CPD BUILD PROGRAMME"]
[]
[null,null,"Note to tenderers: As CPGs may not provide any bidder a competitive advantage. Provisional amounts and fixed percentages for profit and attendance have been provided. Only the provisional amount will be adjusted once the awarded tender amount and/or the beneficiaries have been appointed, and the final values have been ascertained. "]
[]
[null,null,"MINIMUM TARGETED LOCAL BUILDING MATERIAL MANUFACTURERS"]
[null,null,"Provision is made for the Minimum Targeted Local Building Material Manufacturers CPG in the execution of this project as described in   C3.1 Project Specifications.  Allowance for monitoring and monthly reporting on material purchased from Local Building Material Manufacturers by main contractor and subcontractors based on determination by Employer taking into account specific project variables","PS",{"v":1,"d":"1.00"},{"v":20871.986400000005,"d":"20,871.99"}]
[null,null,"Allowance for profit and attendance, all inclusive of associated costs to the contractor for implementation. ","%"]
[]
[null,null,"Allowance for attendance all inclusive of associated costs to the contractor for implementation. ","%"]
[]
[null,null,"MINIMUM TARGETED LOCAL BUILDING MATERIAL SUPPLIERS "]
[null,null,"Provision is made for the Minimum Targeted Local Building Material Suppliers CPG in the execution of this project as described in   C3.1 Project Specifications. Allowance for monitoring and monthly reporting on material purchased from Local Building Material Suppliers by main contractor and subcontractors based on determination by Employer  taking into account specific project variables ","PS",{"v":1,"d":"1.00"},{"v":20871.986400000005,"d":"20,871.99"}]
[null,null,"Allowance for profit all inclusive of associated costs to the contractor for implementation. ","%"]
[null,null,"Allowance for attendance all inclusive of associated costs to the contractor for implementation. ","%"]
[]
[null,null,"MINIMUM TARGETED ENTERPRISE DEVELOPMENT"]
[null,null,"A provisional amount has been allowed for in the execution of this project as described in  C3.1 Project Specifications. The provisional amount allowed is for the appointment of training coordinator, mentor, training service providers and training of the beneficiary enterprises including monitoring and monthly reporting.","PS",{"v":1,"d":"1.00"},{"v":208719.86400000003,"d":"208,719.86"}]
[null,null,"Allowance for profit all inclusive of associated costs to the contractor for implementation. ","%"]
[null,null,"Allowance for attendance all inclusive of associated costs to the contractor for implementation. ","%"]
[]
[null,null,"LABOUR INTENSIVE PARTICIPATION GOAL"]
[null,null,"Labour Intensive Participation Goal - Allowance for monthly reporting of labour intensive works by main contractor based on determination by Employer taking into account specific project variables. Allowance for monitoring and monthly reporting on Works executed by means of Labour Intensive methods by main contractor and subcontractors based on determination by Employer taking into account specific project variables ",null,{"v":1,"d":"1.00"},{"v":72000,"d":"72,000.00"}]
[null,null,"Allowance for profit all inclusive of associated costs to the contractor for implementation. ","%"]
[{"$nulls":4}," "]
[null,null,"MINIMUM 30% SUB-CONTRACTING"]
[]
[null,null,"Provision is made for 30% subcontracting to SMMEs in the execution of this project as described in  C3.1 Project Specifications . This is the contractors allowance for the P&G's for the 30% sub-contractors (SMME's).The Employer will  define the actual P&G items applicable to the SMME's  after tender award",null,{"v":1,"d":"1.00"},{"v":216025.05923999997,"d":"216,025.06"}]
[]
[]
[null,null,"Allowance for profit and attendance, all inclusive of  associated costs to the contractor for implementation","%"]
[]
[null,null,"Allowance for attendance all inclusive of associated costs to the contractor for implementation","%"]
[]
[]
[null,null,"Bill Total",{"$nulls":4},{"$f":"SUM(G2811:G2942)","v":{"v":1778000,"d":"1,778,000.00"}}]
[]
[]
[null,null,"Section Total ",{"$nulls":4},{"$f":"SUM(G2807:G2942)","v":{"v":1778000,"d":"1,778,000.00"}}]

{"sheet":"Final Summary","index":2,"n_rows":27,"n_cols":7,"rows_kept":27,"merged":[[2,1,2,4],[3,1,3,4],[20,1,20,4]]}
[]
[]
[null,"MANGETE PRIMARY SCHOOL",{"$nulls":3},"Page","Total"]
["Section","FINAL SUMMARY",{"$nulls":4},"R"]
[1,"PRELIMINARIES",{"$nulls":4},{"$f":"+'Bills Of Quantities'!H752","v":{"v":0,"d":"0.00"}}]
[]
[2,"ALTERATIONS",{"$nulls":4},{"$f":"+'Bills Of Quantities'!H1591","v":{"v":128000,"d":"128,000.00"}}]
[]
[3,"BUILDING WORKS",{"$nulls":4},{"$f":"+'Bills Of Quantities'!H2246","v":{"v":0,"d":"0.00"}}]
[]
[4,"ELECTRICAL ",{"$nulls":4},{"$f":"+'Bills Of Quantities'!H2631","v":{"v":0,"d":"0.00"}}]
[]
[5,"EXTERNAL WORKS",{"$nulls":4},{"$f":"+'Bills Of Quantities'!H2803","v":{"v":108000,"d":"108,000.00"}}]
[]
[6,"PROVISIONAL SUMS",{"$nulls":4},{"$f":"+'Bills Of Quantities'!H2946","v":{"v":1778000,"d":"1,778,000.00"}}]
[]
[]
[null,"SUB-TOTAL",{"$nulls":3},"R ",{"$f":"+SUM(G5:G15)","v":{"v":2014000,"d":"2,014,000.00"}}]
[]
[null,"CONTINGENCY ALLOWANCE"]
[null,"Allow the sum equivalent to 5% of the sub-total above for contingencies, to be expended as directed by the Principal Agent and to be deducted in whole or in part if not required",{"$nulls":3},"R ",{"$f":"+ROUND(G18*10%,2)","v":{"v":201400,"d":"201,400.00"}}]
[]
[null,"SUB-TOTAL",{"$nulls":3},"R ",{"$f":"+SUM(G18:G21)","v":{"v":2215400,"d":"2,215,400.00"}}]
[]
[null,"ADD:    VALUE ADDED TAX",null,{"v":0.15,"d":"15%"},null,"R ",{"$f":"+ROUND(G23*15%,2)","v":{"v":332310,"d":"332,310.00"}}]
[]
[null,"TOTAL ",{"$nulls":3},"R ",{"$f":"+SUM(G23:G25)","v":{"v":2547710,"d":"2,547,710.00"}}]